﻿Department Family,Entity,Date,Expense Type,Expense Area,Supplier,Transaction Number,Amount,Item Description
BEIS,UKRI - AHRC,04/01/2022,Unspecified,Infrastruture Roadmap,Alexander Mann Solutions Ltd,99109662,1386.12,Legal & Professional Services
BEIS,UKRI - AHRC,05/01/2022,Research Grant Expenditure,Public Engagement,University of London,99104553,35000,Research Grant Expenditure
BEIS,UKRI - AHRC,06/01/2022,Meetings & Catering,SMT,Harbour and Jones Ltd T/A Dartmouth House,99109619,-305.18,Meetings & Catering
BEIS,UKRI - AHRC,06/01/2022,Meetings & Catering,SMT,Harbour and Jones Ltd T/A Dartmouth House,99115416,396,Meetings & Catering
BEIS,UKRI - AHRC,06/01/2022,Fees (Including College Members),Operations,Unspecified,99121432,170,Fees (Including College Members)
BEIS,UKRI - AHRC,06/01/2022,Fees (Including College Members),Operations,Unspecified,99121433,500,Fees (Including College Members)
BEIS,UKRI - AHRC,06/01/2022,Fees (Including College Members),Operations,Unspecified,99121434,340,Fees (Including College Members)
BEIS,UKRI - AHRC,06/01/2022,T&S UK - Public Transport,AHRC - Creative Industries,Unspecified,99128429,54.8,T&S UK - Public Transport
BEIS,UKRI - AHRC,06/01/2022,T&S UK - Public Transport,AHRC - Creative Industries,Unspecified,99128429,216.18,T&S UK - Public Transport
BEIS,UKRI - AHRC,06/01/2022,T&S UK - Subsistence,AHRC - Creative Industries,Unspecified,99128429,87.45,T&S UK - Subsistence
BEIS,UKRI - AHRC,06/01/2022,T&S UK - Subsistence,AHRC - Creative Industries,Unspecified,99128429,5.04,T&S UK - Subsistence
BEIS,UKRI - AHRC,06/01/2022,T&S UK - Subsistence,AHRC - Creative Industries,Unspecified,99128429,8,T&S UK - Subsistence
BEIS,UKRI - AHRC,07/01/2022,Fees (Including College Members),Operations,Unspecified,99121563,340,Fees (Including College Members)
BEIS,UKRI - AHRC,07/01/2022,T&S UK - Other Charges,Skills Strategy,Unspecified,99121776,127.2,T&S UK - Other Charges
BEIS,UKRI - AHRC,07/01/2022,T&S UK - Other Charges,Skills Strategy,Unspecified,99121777,268.8,T&S UK - Other Charges
BEIS,UKRI - AHRC,10/01/2022,Unspecified,Skills Strategy,Careers Research and Advisory Centre (CRAC Ltd),99121647,61128,Legal & Professional Services
BEIS,UKRI - AHRC,11/01/2022,Fees (Including College Members),Operations,Unspecified,99122110,170,Fees (Including College Members)
BEIS,UKRI - AHRC,11/01/2022,Fees (Including College Members),Operations,Unspecified,99122111,460,Fees (Including College Members)
BEIS,UKRI - AHRC,11/01/2022,Fees (Including College Members),Operations,Unspecified,99122112,340,Fees (Including College Members)
BEIS,UKRI - AHRC,11/01/2022,Fees (Including College Members),Operations,Unspecified,99122113,170,Fees (Including College Members)
BEIS,UKRI - AHRC,11/01/2022,T&S UK - Subsistence,AHRC - Creative Industries,Unspecified,99122403,14.9,T&S UK - Subsistence
BEIS,UKRI - AHRC,11/01/2022,Financial Services,Corporate Services,CCI Credit Management Ltd,99148418,0.36,Financial Services
BEIS,UKRI - AHRC,11/01/2022,Financial Services,Corporate Services,CCI Credit Management Ltd,99148418,0.8,Financial Services
BEIS,UKRI - AHRC,11/01/2022,Financial Services,Corporate Services,CCI Credit Management Ltd,99148418,0.16,Financial Services
BEIS,UKRI - AHRC,12/01/2022,Unspecified,Balance Sheet,HM Revenue & Customs,99121930,57752.9,NI Payable Salaries
BEIS,UKRI - AHRC,12/01/2022,Unspecified,Balance Sheet,HM Revenue & Customs,99121931,42506.36,PAYE Payable Salaries
BEIS,UKRI - AHRC,12/01/2022,Unspecified,Balance Sheet,HM Revenue & Customs,99121932,5023,Student Loans
BEIS,UKRI - AHRC,12/01/2022,Unspecified,Corporate Services,HM Revenue & Customs,99121933,1527,Apprenticeship Levy
BEIS,UKRI - AHRC,12/01/2022,T&S UK - Accommodation,AI&Design,Corporate Travel Management (North) Ltd,99159538,0.8,T&S UK - Accommodation
BEIS,UKRI - AHRC,12/01/2022,T&S UK - Accommodation,AI&Design,Corporate Travel Management (North) Ltd,99159538,61,T&S UK - Accommodation
BEIS,UKRI - AHRC,12/01/2022,T&S UK - Accommodation,AI&Design,Corporate Travel Management (North) Ltd,99159538,0.16,T&S UK - Accommodation
BEIS,UKRI - AHRC,12/01/2022,T&S UK - Accommodation,Industrial Strategy Challenge Fund (ISCF) - Creative Clusters,Corporate Travel Management (North) Ltd,99159538,0.8,T&S UK - Accommodation
BEIS,UKRI - AHRC,12/01/2022,T&S UK - Accommodation,Industrial Strategy Challenge Fund (ISCF) - Creative Clusters,Corporate Travel Management (North) Ltd,99159538,99,T&S UK - Accommodation
BEIS,UKRI - AHRC,12/01/2022,T&S UK - Accommodation,Industrial Strategy Challenge Fund (ISCF) - Creative Clusters,Corporate Travel Management (North) Ltd,99159538,0.16,T&S UK - Accommodation
BEIS,UKRI - AHRC,12/01/2022,T&S UK - Accommodation,Infrastruture Roadmap,Corporate Travel Management (North) Ltd,99159538,0.8,T&S UK - Accommodation
BEIS,UKRI - AHRC,12/01/2022,T&S UK - Accommodation,Infrastruture Roadmap,Corporate Travel Management (North) Ltd,99159538,54.38,T&S UK - Accommodation
BEIS,UKRI - AHRC,12/01/2022,T&S UK - Accommodation,Infrastruture Roadmap,Corporate Travel Management (North) Ltd,99159538,0.16,T&S UK - Accommodation
BEIS,UKRI - AHRC,12/01/2022,T&S UK - Public Transport,AI&Design,Corporate Travel Management (North) Ltd,99159538,0.25,T&S UK - Public Transport
BEIS,UKRI - AHRC,12/01/2022,T&S UK - Public Transport,AI&Design,Corporate Travel Management (North) Ltd,99159538,83.9,T&S UK - Public Transport
BEIS,UKRI - AHRC,12/01/2022,T&S UK - Public Transport,ISCF Creative Clusters,Corporate Travel Management (North) Ltd,99159538,0.25,T&S UK - Public Transport
BEIS,UKRI - AHRC,12/01/2022,T&S UK - Public Transport,ISCF Creative Clusters,Corporate Travel Management (North) Ltd,99159538,25.4,T&S UK - Public Transport
BEIS,UKRI - AHRC,12/01/2022,T&S UK - Public Transport,ISCF Creative Clusters,Corporate Travel Management (North) Ltd,99159538,0.25,T&S UK - Public Transport
BEIS,UKRI - AHRC,12/01/2022,T&S UK - Public Transport,ISCF Creative Clusters,Corporate Travel Management (North) Ltd,99159538,161.4,T&S UK - Public Transport
BEIS,UKRI - AHRC,12/01/2022,T&S UK - Public Transport,ISCF Creative Clusters,Corporate Travel Management (North) Ltd,99159538,0.25,T&S UK - Public Transport
BEIS,UKRI - AHRC,12/01/2022,T&S UK - Public Transport,ISCF Creative Clusters,Corporate Travel Management (North) Ltd,99159538,161.4,T&S UK - Public Transport
BEIS,UKRI - AHRC,12/01/2022,T&S UK - Public Transport,ISCF Creative Clusters,Corporate Travel Management (North) Ltd,99159538,0.25,T&S UK - Public Transport
BEIS,UKRI - AHRC,12/01/2022,T&S UK - Public Transport,ISCF Creative Clusters,Corporate Travel Management (North) Ltd,99159538,161.4,T&S UK - Public Transport
BEIS,UKRI - AHRC,12/01/2022,T&S UK - Public Transport,ISCF Creative Clusters,Corporate Travel Management (North) Ltd,99159538,0.5,T&S UK - Public Transport
BEIS,UKRI - AHRC,12/01/2022,T&S UK - Public Transport,ISCF Creative Clusters,Corporate Travel Management (North) Ltd,99159538,80.7,T&S UK - Public Transport
BEIS,UKRI - AHRC,12/01/2022,T&S UK - Public Transport,ISCF Creative Clusters,Corporate Travel Management (North) Ltd,99159538,127.6,T&S UK - Public Transport
BEIS,UKRI - AHRC,12/01/2022,T&S UK - Public Transport,ISCF Creative Clusters,Corporate Travel Management (North) Ltd,99159538,0.25,T&S UK - Public Transport
BEIS,UKRI - AHRC,12/01/2022,T&S UK - Public Transport,ISCF Creative Clusters,Corporate Travel Management (North) Ltd,99159538,29.2,T&S UK - Public Transport
BEIS,UKRI - AHRC,12/01/2022,T&S UK - Public Transport,Infrastruture Roadmap,Corporate Travel Management (North) Ltd,99159538,0.75,T&S UK - Public Transport
BEIS,UKRI - AHRC,12/01/2022,T&S UK - Public Transport,Infrastruture Roadmap,Corporate Travel Management (North) Ltd,99159538,7.1,T&S UK - Public Transport
BEIS,UKRI - AHRC,12/01/2022,T&S UK - Public Transport,Infrastruture Roadmap,Corporate Travel Management (North) Ltd,99159538,35.6,T&S UK - Public Transport
BEIS,UKRI - AHRC,12/01/2022,T&S UK - Public Transport,Infrastruture Roadmap,Corporate Travel Management (North) Ltd,99159538,28.8,T&S UK - Public Transport
BEIS,UKRI - AHRC,12/01/2022,T&S UK - Public Transport,Infrastruture Roadmap,Corporate Travel Management (North) Ltd,99159538,5,T&S UK - Public Transport
BEIS,UKRI - AHRC,12/01/2022,T&S UK - Public Transport,Infrastruture Roadmap,Corporate Travel Management (North) Ltd,99159538,-39.6,T&S UK - Public Transport
BEIS,UKRI - AHRC,12/01/2022,T&S UK - Public Transport,SMT,Corporate Travel Management (North) Ltd,99159538,0.25,T&S UK - Public Transport
BEIS,UKRI - AHRC,12/01/2022,T&S UK - Public Transport,SMT,Corporate Travel Management (North) Ltd,99159538,175.3,T&S UK - Public Transport
BEIS,UKRI - AHRC,13/01/2022,Voluntary Deductions,Balance Sheet,Swindon Office Sports and Social Club,99121934,22,Voluntary Deductions
BEIS,UKRI - AHRC,13/01/2022,Union Deductions,Balance Sheet,PCS Union,99121935,64.8,Union Deductions
BEIS,UKRI - AHRC,13/01/2022,Unspecified,Balance Sheet,Unspecified,99121936,10453.83,Ees Pension Deductions - JSS
BEIS,UKRI - AHRC,13/01/2022,Unspecified,Balance Sheet,Unspecified,99121937,43049.59,Ers Pension Deductions - JSS
BEIS,UKRI - AHRC,13/01/2022,Unspecified,Balance Sheet,Scottish Widows,99121938,384.68,Partnership Pension Deductions
BEIS,UKRI - AHRC,13/01/2022,Unspecified,Balance Sheet,Cabinet Office RM Shared Services,99121939,8298.14,Ees Pension Deductions - MyCSP
BEIS,UKRI - AHRC,13/01/2022,Unspecified,Balance Sheet,Cabinet Office RM Shared Services,99121940,41487.51,Ers Pension Deductions - MyCSP
BEIS,UKRI - AHRC,13/01/2022,Unspecified,Balance Sheet,Unspecified,99121941,139.92,Ees Pension Deductions - MRC
BEIS,UKRI - AHRC,13/01/2022,Unspecified,Balance Sheet,Unspecified,99121942,344.43,Ers Pension Deductions - MRC
BEIS,UKRI - AHRC,13/01/2022,Nursery Deductions,Balance Sheet,UKRI - Engineering & Physical Sciences Research Council,99121943,1063,Nursery Deductions
BEIS,UKRI - AHRC,14/01/2022,Fees (Including College Members),Operations,Unspecified,99168781,340,Fees (Including College Members)
BEIS,UKRI - AHRC,14/01/2022,Fees (Including College Members),Operations,Unspecified,99168782,340,Fees (Including College Members)
BEIS,UKRI - AHRC,17/01/2022,T&S UK - Public Transport,Strategy and Evidence,Unspecified,99121775,2.5,T&S UK - Public Transport
BEIS,UKRI - AHRC,17/01/2022,T&S UK - Public Transport,Strategy and Evidence,Unspecified,99121775,69.5,T&S UK - Public Transport
BEIS,UKRI - AHRC,17/01/2022,T&S UK - Subsistence,Strategy and Evidence,Unspecified,99121775,10.95,T&S UK - Subsistence
BEIS,UKRI - AHRC,17/01/2022,Fees (Including College Members),Operations,Unspecified,99177539,340,Fees (Including College Members)
BEIS,UKRI - AHRC,17/01/2022,Unspecified,Infrastruture Roadmap,Alexander Mann Solutions Ltd,99177814,2772.24,Legal & Professional Services
BEIS,UKRI - AHRC,18/01/2022,Training Awards - Postgraduates,Collabrative Doctoral Grants - Block Payment,University of Sussex,99145431,5539.75,Training Awards - Postgraduates
BEIS,UKRI - AHRC,18/01/2022,Training Awards - Postgraduates,Collabrative Doctoral Grants - Block Payment,University of Southampton GRANT,99145432,5539.75,Training Awards - Postgraduates
BEIS,UKRI - AHRC,18/01/2022,Training Awards - Postgraduates,Collabrative Doctoral Grants - Block Payment,University of Southampton GRANT,99145432,5539.75,Training Awards - Postgraduates
BEIS,UKRI - AHRC,18/01/2022,Training Awards - Postgraduates,Collabrative Doctoral Grants - Block Payment,University of Cambridge,99145433,5539.75,Training Awards - Postgraduates
BEIS,UKRI - AHRC,18/01/2022,Training Awards - Postgraduates,Collabrative Doctoral Grants - Block Payment,University of Cambridge,99145433,5539.75,Training Awards - Postgraduates
BEIS,UKRI - AHRC,18/01/2022,Training Awards - Postgraduates,Collabrative Doctoral Grants - Block Payment,Bournemouth University,99145434,5539.75,Training Awards - Postgraduates
BEIS,UKRI - AHRC,18/01/2022,Training Awards - Postgraduates,Collabrative Doctoral Grants - Block Payment,Bournemouth University,99145434,5539.75,Training Awards - Postgraduates
BEIS,UKRI - AHRC,18/01/2022,Training Awards - Postgraduates,Collabrative Doctoral Grants - Block Payment,Birkbeck College,99145435,5789.75,Training Awards - Postgraduates
BEIS,UKRI - AHRC,18/01/2022,Training Awards - Postgraduates,Collabrative Doctoral Grants - Block Payment,Birkbeck College,99145435,5789.75,Training Awards - Postgraduates
BEIS,UKRI - AHRC,18/01/2022,Training Awards - Postgraduates,Collabrative Doctoral Grants - Block Payment,King's College London,99145436,5789.75,Training Awards - Postgraduates
BEIS,UKRI - AHRC,18/01/2022,Training Awards - Postgraduates,Collabrative Doctoral Grants - Block Payment,King's College London,99145436,5789.75,Training Awards - Postgraduates
BEIS,UKRI - AHRC,18/01/2022,Training Awards - Postgraduates,Collabrative Doctoral Grants - Block Payment,University of Warwick,99145437,5539.75,Training Awards - Postgraduates
BEIS,UKRI - AHRC,18/01/2022,Training Awards - Postgraduates,Collabrative Doctoral Grants - Block Payment,University of Warwick,99145437,5539.75,Training Awards - Postgraduates
BEIS,UKRI - AHRC,18/01/2022,Training Awards - Postgraduates,Collabrative Doctoral Grants - Block Payment,University of York,99145438,5289.75,Training Awards - Postgraduates
BEIS,UKRI - AHRC,18/01/2022,Training Awards - Postgraduates,Collabrative Doctoral Grants - Block Payment,University of York,99145438,5289.75,Training Awards - Postgraduates
BEIS,UKRI - AHRC,18/01/2022,Training Awards - Postgraduates,Collabrative Doctoral Grants - Block Payment,University of Oxford,99145439,5539.75,Training Awards - Postgraduates
BEIS,UKRI - AHRC,18/01/2022,Training Awards - Postgraduates,Collabrative Doctoral Grants - Block Payment,University of Oxford,99145439,5539.75,Training Awards - Postgraduates
BEIS,UKRI - AHRC,18/01/2022,Training Awards - Postgraduates,Collabrative Doctoral Grants - Block Payment,Birkbeck College,99145440,5789.75,Training Awards - Postgraduates
BEIS,UKRI - AHRC,18/01/2022,Training Awards - Postgraduates,Collabrative Doctoral Grants - Block Payment,Birkbeck College,99145440,5789.75,Training Awards - Postgraduates
BEIS,UKRI - AHRC,18/01/2022,Training Awards - Postgraduates,Collabrative Doctoral Grants - Block Payment,University of Leicester,99145441,5539.75,Training Awards - Postgraduates
BEIS,UKRI - AHRC,18/01/2022,Training Awards - Postgraduates,Collabrative Doctoral Grants - Block Payment,University of Leicester,99145441,5539.75,Training Awards - Postgraduates
BEIS,UKRI - AHRC,18/01/2022,Training Awards - Postgraduates,Collabrative Doctoral Grants - Block Payment,University of Durham,99145442,5539.75,Training Awards - Postgraduates
BEIS,UKRI - AHRC,18/01/2022,Training Awards - Postgraduates,Collabrative Doctoral Grants - Block Payment,University of Durham,99145442,5539.75,Training Awards - Postgraduates
BEIS,UKRI - AHRC,18/01/2022,Training Awards - Postgraduates,Collabrative Doctoral Grants - Block Payment,University of Edinburgh,99145443,5289.75,Training Awards - Postgraduates
BEIS,UKRI - AHRC,18/01/2022,Training Awards - Postgraduates,Collabrative Doctoral Grants - Block Payment,University of Edinburgh,99145443,5289.75,Training Awards - Postgraduates
BEIS,UKRI - AHRC,18/01/2022,Training Awards - Postgraduates,Collabrative Doctoral Grants - Block Payment,University College London,99145444,5789.75,Training Awards - Postgraduates
BEIS,UKRI - AHRC,18/01/2022,Training Awards - Postgraduates,Collabrative Doctoral Grants - Block Payment,University College London,99145444,5789.75,Training Awards - Postgraduates
BEIS,UKRI - AHRC,18/01/2022,Training Awards - Postgraduates,Collabrative Doctoral Grants - Block Payment,Birkbeck College,99145445,5789.75,Training Awards - Postgraduates
BEIS,UKRI - AHRC,18/01/2022,Training Awards - Postgraduates,Collabrative Doctoral Grants - Block Payment,Birkbeck College,99145445,5789.75,Training Awards - Postgraduates
BEIS,UKRI - AHRC,18/01/2022,Training Awards - Postgraduates,Collabrative Doctoral Grants - Block Payment,University of Leeds,99145446,5539.75,Training Awards - Postgraduates
BEIS,UKRI - AHRC,18/01/2022,Training Awards - Postgraduates,Collabrative Doctoral Grants - Block Payment,University College London,99145447,5789.75,Training Awards - Postgraduates
BEIS,UKRI - AHRC,18/01/2022,Training Awards - Postgraduates,Collabrative Doctoral Grants - Block Payment,University College London,99145447,5789.75,Training Awards - Postgraduates
BEIS,UKRI - AHRC,18/01/2022,Training Awards - Postgraduates,Collabrative Doctoral Grants - Block Payment,University College London,99145448,5789.75,Training Awards - Postgraduates
BEIS,UKRI - AHRC,18/01/2022,Training Awards - Postgraduates,Collabrative Doctoral Grants - Block Payment,University College London,99145448,5789.75,Training Awards - Postgraduates
BEIS,UKRI - AHRC,18/01/2022,Training Awards - Postgraduates,Collabrative Doctoral Grants - Block Payment,University of Edinburgh,99145449,5289.75,Training Awards - Postgraduates
BEIS,UKRI - AHRC,18/01/2022,Training Awards - Postgraduates,Collabrative Doctoral Grants - Block Payment,Courtauld Institute of Art,99145450,5789.75,Training Awards - Postgraduates
BEIS,UKRI - AHRC,18/01/2022,Training Awards - Postgraduates,Collabrative Doctoral Grants - Block Payment,Courtauld Institute of Art,99145450,5789.75,Training Awards - Postgraduates
BEIS,UKRI - AHRC,18/01/2022,Training Awards - Postgraduates,Collabrative Doctoral Grants - Block Payment,University of Southampton GRANT,99145451,5539.75,Training Awards - Postgraduates
BEIS,UKRI - AHRC,18/01/2022,Training Awards - Postgraduates,Collabrative Doctoral Grants - Block Payment,University of Leeds,99145452,5289.75,Training Awards - Postgraduates
BEIS,UKRI - AHRC,18/01/2022,Training Awards - Postgraduates,Collabrative Doctoral Grants - Block Payment,University of Exeter,99145453,5539.75,Training Awards - Postgraduates
BEIS,UKRI - AHRC,18/01/2022,Training Awards - Postgraduates,Collabrative Doctoral Grants - Block Payment,University of Exeter,99145454,5539.75,Training Awards - Postgraduates
BEIS,UKRI - AHRC,18/01/2022,Training Awards - Postgraduates,Collabrative Doctoral Grants - Block Payment,University of Newcastle Upon Tyne,99145455,5539.75,Training Awards - Postgraduates
BEIS,UKRI - AHRC,18/01/2022,Training Awards - Postgraduates,Collabrative Doctoral Grants - Block Payment,University of Newcastle Upon Tyne,99145455,5539.75,Training Awards - Postgraduates
BEIS,UKRI - AHRC,18/01/2022,Training Awards - Postgraduates,Collabrative Doctoral Grants - Block Payment,"Royal Holloway, University of London",99145456,5789.75,Training Awards - Postgraduates
BEIS,UKRI - AHRC,18/01/2022,Training Awards - Postgraduates,Collabrative Doctoral Grants - Block Payment,"Royal Holloway, University of London",99145456,5789.75,Training Awards - Postgraduates
BEIS,UKRI - AHRC,18/01/2022,Training Awards - Postgraduates,Collabrative Doctoral Grants - Block Payment,University of Hull,99145457,250.01,Training Awards - Postgraduates
BEIS,UKRI - AHRC,18/01/2022,Training Awards - Postgraduates,Collabrative Doctoral Grants - Block Payment,University of Hull,99145457,5539.75,Training Awards - Postgraduates
BEIS,UKRI - AHRC,18/01/2022,Training Awards - Postgraduates,Collabrative Doctoral Grants - Block Payment,University of Exeter,99145458,5289.75,Training Awards - Postgraduates
BEIS,UKRI - AHRC,18/01/2022,Training Awards - Postgraduates,Collabrative Doctoral Grants - Block Payment,University of Essex,99145459,5539.75,Training Awards - Postgraduates
BEIS,UKRI - AHRC,18/01/2022,Training Awards - Postgraduates,Collabrative Doctoral Grants - Block Payment,University of Essex,99145459,5539.75,Training Awards - Postgraduates
BEIS,UKRI - AHRC,18/01/2022,Training Awards - Postgraduates,Collabrative Doctoral Grants - Block Payment,Edge Hill University College,99145460,5539.75,Training Awards - Postgraduates
BEIS,UKRI - AHRC,18/01/2022,Training Awards - Postgraduates,Collabrative Doctoral Grants - Block Payment,Edge Hill University College,99145460,5539.75,Training Awards - Postgraduates
BEIS,UKRI - AHRC,18/01/2022,Training Awards - Postgraduates,Collabrative Doctoral Grants - Block Payment,Royal Northern College of Music,99145461,5539.75,Training Awards - Postgraduates
BEIS,UKRI - AHRC,18/01/2022,Training Awards - Postgraduates,Collabrative Doctoral Grants - Block Payment,Royal Northern College of Music,99145461,5539.75,Training Awards - Postgraduates
BEIS,UKRI - AHRC,18/01/2022,Training Awards - Postgraduates,Collabrative Doctoral Grants - Block Payment,University of East Anglia,99145462,5539.75,Training Awards - Postgraduates
BEIS,UKRI - AHRC,18/01/2022,Training Awards - Postgraduates,Collabrative Doctoral Grants - Block Payment,University of East Anglia,99145462,5539.75,Training Awards - Postgraduates
BEIS,UKRI - AHRC,18/01/2022,Training Awards - Postgraduates,Collabrative Doctoral Grants - Block Payment,University of Stirling,99145463,5289.75,Training Awards - Postgraduates
BEIS,UKRI - AHRC,18/01/2022,Training Awards - Postgraduates,Collabrative Doctoral Grants - Block Payment,University of Stirling,99145463,5289.75,Training Awards - Postgraduates
BEIS,UKRI - AHRC,18/01/2022,Training Awards - Postgraduates,Collabrative Doctoral Grants - Block Payment,University of Edinburgh,99145464,5289.75,Training Awards - Postgraduates
BEIS,UKRI - AHRC,18/01/2022,Training Awards - Postgraduates,Collabrative Doctoral Grants - Block Payment,University of Leeds,99145465,5706.81,Training Awards - Postgraduates
BEIS,UKRI - AHRC,18/01/2022,Training Awards - Postgraduates,Collabrative Doctoral Grants - Block Payment,University of Brighton,99145466,5289.75,Training Awards - Postgraduates
BEIS,UKRI - AHRC,18/01/2022,Training Awards - Postgraduates,Collabrative Doctoral Grants - Block Payment,University of Brighton,99145466,5289.75,Training Awards - Postgraduates
BEIS,UKRI - AHRC,18/01/2022,Training Awards - Postgraduates,Collabrative Doctoral Grants - Block Payment,The University of Manchester,99145467,5539.75,Training Awards - Postgraduates
BEIS,UKRI - AHRC,18/01/2022,Training Awards - Postgraduates,Collabrative Doctoral Grants - Block Payment,The University of Manchester,99145467,5539.75,Training Awards - Postgraduates
BEIS,UKRI - AHRC,18/01/2022,Training Awards - Postgraduates,Collabrative Doctoral Grants - Block Payment,University of York,99145468,5531,Training Awards - Postgraduates
BEIS,UKRI - AHRC,18/01/2022,Training Awards - Postgraduates,Collabrative Doctoral Grants - Block Payment,Cardiff University,99145469,5281,Training Awards - Postgraduates
BEIS,UKRI - AHRC,18/01/2022,Training Awards - Postgraduates,Collabrative Doctoral Grants - Block Payment,University of Sheffield,99145470,5531,Training Awards - Postgraduates
BEIS,UKRI - AHRC,18/01/2022,Training Awards - Postgraduates,Collabrative Doctoral Grants - Block Payment,Heriot Watt University,99145471,5281,Training Awards - Postgraduates
BEIS,UKRI - AHRC,18/01/2022,Training Awards - Postgraduates,Collabrative Doctoral Grants - Block Payment,University of Durham,99145472,5531,Training Awards - Postgraduates
BEIS,UKRI - AHRC,18/01/2022,Training Awards - Postgraduates,Collabrative Doctoral Grants - Block Payment,University of East Anglia,99145473,5281,Training Awards - Postgraduates
BEIS,UKRI - AHRC,18/01/2022,Training Awards - Postgraduates,Collabrative Doctoral Grants - Block Payment,University of East Anglia,99145474,5531,Training Awards - Postgraduates
BEIS,UKRI - AHRC,18/01/2022,Training Awards - Postgraduates,Collabrative Doctoral Grants - Block Payment,University of Reading,99145475,5281,Training Awards - Postgraduates
BEIS,UKRI - AHRC,18/01/2022,Training Awards - Postgraduates,Collabrative Doctoral Grants - Block Payment,University of Bristol GRANT,99145476,5531,Training Awards - Postgraduates
BEIS,UKRI - AHRC,18/01/2022,Training Awards - Postgraduates,Collabrative Doctoral Grants - Block Payment,Birkbeck College,99145477,5781,Training Awards - Postgraduates
BEIS,UKRI - AHRC,18/01/2022,Training Awards - Postgraduates,Collabrative Doctoral Grants - Block Payment,University of Lincoln,99145478,5531,Training Awards - Postgraduates
BEIS,UKRI - AHRC,18/01/2022,Training Awards - Postgraduates,Collabrative Doctoral Grants - Block Payment,"Royal Holloway, University of London",99145479,5781,Training Awards - Postgraduates
BEIS,UKRI - AHRC,18/01/2022,Training Awards - Postgraduates,Collabrative Doctoral Grants - Block Payment,University of Cambridge,99145480,5531,Training Awards - Postgraduates
BEIS,UKRI - AHRC,18/01/2022,Training Awards - Postgraduates,Collabrative Doctoral Grants - Block Payment,University of Sheffield,99145481,5281,Training Awards - Postgraduates
BEIS,UKRI - AHRC,18/01/2022,Training Awards - Postgraduates,Collabrative Doctoral Grants - Block Payment,University of Cambridge,99145482,5531,Training Awards - Postgraduates
BEIS,UKRI - AHRC,18/01/2022,Training Awards - Postgraduates,Collabrative Doctoral Grants - Block Payment,Queen Mary University of London,99145483,5781,Training Awards - Postgraduates
BEIS,UKRI - AHRC,18/01/2022,Training Awards - Postgraduates,Collabrative Doctoral Grants - Block Payment,Birkbeck College,99145484,5781,Training Awards - Postgraduates
BEIS,UKRI - AHRC,18/01/2022,Training Awards - Postgraduates,Collabrative Doctoral Grants - Block Payment,University of Reading,99145485,5531,Training Awards - Postgraduates
BEIS,UKRI - AHRC,18/01/2022,Training Awards - Postgraduates,Collabrative Doctoral Grants - Block Payment,Birkbeck College,99145486,5781,Training Awards - Postgraduates
BEIS,UKRI - AHRC,18/01/2022,Training Awards - Postgraduates,Collabrative Doctoral Grants - Block Payment,University of Bath,99145487,5281,Training Awards - Postgraduates
BEIS,UKRI - AHRC,18/01/2022,Training Awards - Postgraduates,Collabrative Doctoral Grants - Block Payment,Queen Mary University of London,99145488,5781,Training Awards - Postgraduates
BEIS,UKRI - AHRC,18/01/2022,Training Awards - Postgraduates,Collabrative Doctoral Grants - Block Payment,University of Leeds,99145489,5531,Training Awards - Postgraduates
BEIS,UKRI - AHRC,18/01/2022,Training Awards - Postgraduates,Collabrative Doctoral Grants - Block Payment,University of Durham,99145490,5531,Training Awards - Postgraduates
BEIS,UKRI - AHRC,18/01/2022,Training Awards - Postgraduates,Collabrative Doctoral Grants - Block Payment,Manchester Metropolitan University,99145491,5281,Training Awards - Postgraduates
BEIS,UKRI - AHRC,18/01/2022,Training Awards - Postgraduates,Collabrative Doctoral Grants - Block Payment,Birkbeck College,99145492,5781,Training Awards - Postgraduates
BEIS,UKRI - AHRC,18/01/2022,Training Awards - Postgraduates,Collabrative Doctoral Grants - Block Payment,University of London,99145493,5781,Training Awards - Postgraduates
BEIS,UKRI - AHRC,18/01/2022,Training Awards - Postgraduates,Collabrative Doctoral Grants - Block Payment,University of London,99145494,5781,Training Awards - Postgraduates
BEIS,UKRI - AHRC,18/01/2022,Training Awards - Postgraduates,Collabrative Doctoral Grants - Block Payment,University of Portsmouth,99145495,5531,Training Awards - Postgraduates
BEIS,UKRI - AHRC,18/01/2022,Training Awards - Postgraduates,Collabrative Doctoral Grants - Block Payment,University of Winchester,99145496,5531,Training Awards - Postgraduates
BEIS,UKRI - AHRC,18/01/2022,Training Awards - Postgraduates,Collabrative Doctoral Grants - Block Payment,Birkbeck College,99145497,5781,Training Awards - Postgraduates
BEIS,UKRI - AHRC,18/01/2022,Training Awards - Postgraduates,Collabrative Doctoral Grants - Block Payment,Cardiff University,99145498,5531,Training Awards - Postgraduates
BEIS,UKRI - AHRC,18/01/2022,Training Awards - Postgraduates,Collabrative Doctoral Grants - Block Payment,Manchester Metropolitan University,99145499,5531,Training Awards - Postgraduates
BEIS,UKRI - AHRC,18/01/2022,Training Awards - Postgraduates,Collabrative Doctoral Grants - Block Payment,University of Reading,99145500,5531,Training Awards - Postgraduates
BEIS,UKRI - AHRC,18/01/2022,Training Awards - Postgraduates,Collabrative Doctoral Grants - Block Payment,London School of Economics and Political Science,99145501,5781,Training Awards - Postgraduates
BEIS,UKRI - AHRC,18/01/2022,Training Awards - Postgraduates,Collabrative Doctoral Grants - Block Payment,University of Exeter,99145502,10035.12,Training Awards - Postgraduates
BEIS,UKRI - AHRC,18/01/2022,Training Awards - Postgraduates,Collabrative Doctoral Grants - Block Payment,University of Warwick,99145503,5281,Training Awards - Postgraduates
BEIS,UKRI - AHRC,18/01/2022,Training Awards - Postgraduates,Collabrative Doctoral Grants - Block Payment,Canterbury Christ Church University GRANT,99145504,5531,Training Awards - Postgraduates
BEIS,UKRI - AHRC,18/01/2022,Training Awards - Postgraduates,Collabrative Doctoral Grants - Block Payment,University College London,99145505,5781,Training Awards - Postgraduates
BEIS,UKRI - AHRC,18/01/2022,Training Awards - Postgraduates,Collabrative Doctoral Grants - Block Payment,University of Bristol GRANT,99145506,5281,Training Awards - Postgraduates
BEIS,UKRI - AHRC,18/01/2022,Training Awards - Postgraduates,Collabrative Doctoral Grants - Block Payment,University of Glasgow,99145507,5281,Training Awards - Postgraduates
BEIS,UKRI - AHRC,18/01/2022,Training Awards - Postgraduates,Collabrative Doctoral Grants - Block Payment,University of York,99145508,5531,Training Awards - Postgraduates
BEIS,UKRI - AHRC,18/01/2022,Training Awards - Postgraduates,Collabrative Doctoral Grants - Block Payment,University of Exeter,99145509,5531,Training Awards - Postgraduates
BEIS,UKRI - AHRC,18/01/2022,Training Awards - Postgraduates,Collabrative Doctoral Grants - Block Payment,University of Edinburgh,99145510,5281,Training Awards - Postgraduates
BEIS,UKRI - AHRC,18/01/2022,Training Awards - Postgraduates,Collabrative Doctoral Grants - Block Payment,University of Glasgow,99145511,5281,Training Awards - Postgraduates
BEIS,UKRI - AHRC,18/01/2022,Training Awards - Postgraduates,Collabrative Doctoral Grants - Block Payment,University of Edinburgh,99145512,5281,Training Awards - Postgraduates
BEIS,UKRI - AHRC,18/01/2022,Training Awards - Postgraduates,Collabrative Doctoral Grants - Block Payment,"Royal Holloway, University of London",99145513,5781,Training Awards - Postgraduates
BEIS,UKRI - AHRC,18/01/2022,Training Awards - Postgraduates,International Placement Scheme,"Royal Holloway, University of London",99145514,6070,Training Awards - Postgraduates
BEIS,UKRI - AHRC,18/01/2022,Training Awards - Postgraduates,Collabrative Doctoral Grants - Block Payment,University of Brighton,99145515,5187.25,Training Awards - Postgraduates
BEIS,UKRI - AHRC,18/01/2022,Training Awards - Postgraduates,Collabrative Doctoral Grants - Block Payment,Cardiff University,99145516,4487.55,Training Awards - Postgraduates
BEIS,UKRI - AHRC,18/01/2022,Training Awards - Postgraduates,Collabrative Doctoral Grants - Block Payment,University College London,99145517,5687.25,Training Awards - Postgraduates
BEIS,UKRI - AHRC,18/01/2022,Training Awards - Postgraduates,Collabrative Doctoral Grants - Block Payment,University of Leicester,99145518,5187.25,Training Awards - Postgraduates
BEIS,UKRI - AHRC,18/01/2022,Training Awards - Postgraduates,Collabrative Doctoral Grants - Block Payment,University of Leeds,99145519,5187.25,Training Awards - Postgraduates
BEIS,UKRI - AHRC,18/01/2022,Training Awards - Postgraduates,Collabrative Doctoral Grants - Block Payment,Birkbeck College,99145520,5687.25,Training Awards - Postgraduates
BEIS,UKRI - AHRC,18/01/2022,Training Awards - Postgraduates,Collabrative Doctoral Grants - Block Payment,University of Hertfordshire,99145521,4487.55,Training Awards - Postgraduates
BEIS,UKRI - AHRC,18/01/2022,Training Awards - Postgraduates,Collabrative Doctoral Grants - Block Payment,Goldsmiths College University of London,99145522,5687.25,Training Awards - Postgraduates
BEIS,UKRI - AHRC,18/01/2022,Training Awards - Postgraduates,Collabrative Doctoral Grants - Block Payment,University of Brighton,99145523,5187.25,Training Awards - Postgraduates
BEIS,UKRI - AHRC,18/01/2022,Training Awards - Postgraduates,Collabrative Doctoral Grants - Block Payment,The Open University,99145524,5187.25,Training Awards - Postgraduates
BEIS,UKRI - AHRC,18/01/2022,Training Awards - Postgraduates,Collabrative Doctoral Grants - Block Payment,University of Bristol GRANT,99145525,5187.38,Training Awards - Postgraduates
BEIS,UKRI - AHRC,18/01/2022,Training Awards - Postgraduates,Collabrative Doctoral Grants - Block Payment,University of Bristol GRANT,99145526,5187.25,Training Awards - Postgraduates
BEIS,UKRI - AHRC,18/01/2022,Training Awards - Postgraduates,Collabrative Doctoral Grants - Block Payment,University of Oxford,99145527,5187.25,Training Awards - Postgraduates
BEIS,UKRI - AHRC,18/01/2022,Training Awards - Postgraduates,Collabrative Doctoral Grants - Block Payment,De Montfort University,99145528,4487.52,Training Awards - Postgraduates
BEIS,UKRI - AHRC,18/01/2022,Training Awards - Postgraduates,Collabrative Doctoral Grants - Block Payment,University of Kent,99145529,5187.25,Training Awards - Postgraduates
BEIS,UKRI - AHRC,18/01/2022,Training Awards - Postgraduates,Collabrative Doctoral Grants - Block Payment,University of East Anglia,99145530,5187.25,Training Awards - Postgraduates
BEIS,UKRI - AHRC,18/01/2022,Training Awards - Postgraduates,Collabrative Doctoral Grants - Block Payment,University of East Anglia,99145531,5187.25,Training Awards - Postgraduates
BEIS,UKRI - AHRC,18/01/2022,Training Awards - Postgraduates,Collabrative Doctoral Grants - Block Payment,University of East Anglia,99145532,5187.25,Training Awards - Postgraduates
BEIS,UKRI - AHRC,18/01/2022,Training Awards - Postgraduates,Collabrative Doctoral Grants - Block Payment,University of Edinburgh,99145533,5187.25,Training Awards - Postgraduates
BEIS,UKRI - AHRC,18/01/2022,Training Awards - Postgraduates,Collabrative Doctoral Grants - Block Payment,University of Southampton GRANT,99145534,5187.25,Training Awards - Postgraduates
BEIS,UKRI - AHRC,18/01/2022,Training Awards - Postgraduates,Collabrative Doctoral Grants - Block Payment,University of London,99145535,5687.25,Training Awards - Postgraduates
BEIS,UKRI - AHRC,18/01/2022,Training Awards - Postgraduates,Collabrative Doctoral Grants - Block Payment,University of Edinburgh,99145536,5187.25,Training Awards - Postgraduates
BEIS,UKRI - AHRC,18/01/2022,Training Awards - Postgraduates,Collabrative Doctoral Grants - Block Payment,University of Nottingham,99145537,5187.25,Training Awards - Postgraduates
BEIS,UKRI - AHRC,18/01/2022,Training Awards - Postgraduates,Collabrative Doctoral Grants - Block Payment,University of Brighton,99145538,5187.25,Training Awards - Postgraduates
BEIS,UKRI - AHRC,18/01/2022,Training Awards - Postgraduates,Collabrative Doctoral Grants - Block Payment,Imperial College London,99145539,5687.25,Training Awards - Postgraduates
BEIS,UKRI - AHRC,18/01/2022,Training Awards - Postgraduates,Collabrative Doctoral Grants - Block Payment,Sheffield Hallam University,99145540,5187.25,Training Awards - Postgraduates
BEIS,UKRI - AHRC,18/01/2022,Training Awards - Postgraduates,Collabrative Doctoral Grants - Block Payment,University of Glasgow,99145541,5187.25,Training Awards - Postgraduates
BEIS,UKRI - AHRC,18/01/2022,Training Awards - Postgraduates,Collabrative Doctoral Grants - Block Payment,University College London,99145542,1494.5,Training Awards - Postgraduates
BEIS,UKRI - AHRC,18/01/2022,Training Awards - Postgraduates,Collabrative Doctoral Grants - Block Payment,University College London,99145542,5687.25,Training Awards - Postgraduates
BEIS,UKRI - AHRC,18/01/2022,Training Awards - Postgraduates,Collabrative Doctoral Grants - Block Payment,University of Leeds,99145543,5187.25,Training Awards - Postgraduates
BEIS,UKRI - AHRC,18/01/2022,Training Awards - Postgraduates,Collabrative Doctoral Grants - Block Payment,King's College London,99145544,5686.75,Training Awards - Postgraduates
BEIS,UKRI - AHRC,18/01/2022,Training Awards - Postgraduates,Collabrative Doctoral Grants - Block Payment,King's College London,99145545,5687.25,Training Awards - Postgraduates
BEIS,UKRI - AHRC,18/01/2022,Training Awards - Postgraduates,Collabrative Doctoral Grants - Block Payment,University of Edinburgh,99145546,5187.25,Training Awards - Postgraduates
BEIS,UKRI - AHRC,18/01/2022,Training Awards - Postgraduates,Collabrative Doctoral Grants - Block Payment,University of Leeds,99145547,5187.25,Training Awards - Postgraduates
BEIS,UKRI - AHRC,18/01/2022,Training Awards - Postgraduates,Collabrative Doctoral Grants - Block Payment,University of York,99145548,5187.25,Training Awards - Postgraduates
BEIS,UKRI - AHRC,18/01/2022,Training Awards - Postgraduates,Collabrative Doctoral Grants - Block Payment,University of Durham,99145549,5187.25,Training Awards - Postgraduates
BEIS,UKRI - AHRC,18/01/2022,Training Awards - Postgraduates,Collabrative Doctoral Grants - Block Payment,University College London,99145550,4987.53,Training Awards - Postgraduates
BEIS,UKRI - AHRC,18/01/2022,Training Awards - Postgraduates,Collabrative Doctoral Grants - Block Payment,University of the Arts London,99145551,5687.25,Training Awards - Postgraduates
BEIS,UKRI - AHRC,18/01/2022,Training Awards - Postgraduates,Collabrative Doctoral Grants - Block Payment,University of the Arts London,99145552,5687.25,Training Awards - Postgraduates
BEIS,UKRI - AHRC,18/01/2022,Training Awards - Postgraduates,Collabrative Doctoral Grants - Block Payment,University of Warwick,99145553,5187.25,Training Awards - Postgraduates
BEIS,UKRI - AHRC,18/01/2022,Training Awards - Postgraduates,Collabrative Doctoral Grants - Block Payment,University of Strathclyde,99145554,5187.25,Training Awards - Postgraduates
BEIS,UKRI - AHRC,18/01/2022,Training Awards - Postgraduates,Collabrative Doctoral Grants - Block Payment,Goldsmiths College University of London,99145555,5687.25,Training Awards - Postgraduates
BEIS,UKRI - AHRC,18/01/2022,Training Awards - Postgraduates,Collabrative Doctoral Grants - Block Payment,University of St Andrews,99145556,5187.25,Training Awards - Postgraduates
BEIS,UKRI - AHRC,18/01/2022,Training Awards - Postgraduates,Collabrative Doctoral Grants - Block Payment,University College London,99145557,5687.25,Training Awards - Postgraduates
BEIS,UKRI - AHRC,18/01/2022,Training Awards - Postgraduates,Collabrative Doctoral Grants - Block Payment,University College London,99145558,5687.25,Training Awards - Postgraduates
BEIS,UKRI - AHRC,18/01/2022,Training Awards - Postgraduates,Collabrative Doctoral Grants - Block Payment,University of Hull,99145559,5187.25,Training Awards - Postgraduates
BEIS,UKRI - AHRC,18/01/2022,Training Awards - Postgraduates,Collabrative Doctoral Grants - Block Payment,"City, University of London",99145560,5687.25,Training Awards - Postgraduates
BEIS,UKRI - AHRC,18/01/2022,Training Awards - Postgraduates,Collabrative Doctoral Grants - Block Payment,Glasgow Caledonian University,99145561,5187.25,Training Awards - Postgraduates
BEIS,UKRI - AHRC,18/01/2022,Training Awards - Postgraduates,Collabrative Doctoral Grants - Block Payment,University of Leicester,99145562,5187.25,Training Awards - Postgraduates
BEIS,UKRI - AHRC,18/01/2022,Training Awards - Postgraduates,Collabrative Doctoral Grants - Block Payment,University of York,99145563,6397.25,Training Awards - Postgraduates
BEIS,UKRI - AHRC,18/01/2022,Training Awards - Postgraduates,Collabrative Doctoral Grants - Block Payment,Loughborough University,99145564,5187.25,Training Awards - Postgraduates
BEIS,UKRI - AHRC,18/01/2022,Training Awards - Postgraduates,Collabrative Doctoral Grants - Block Payment,University of Edinburgh,99145565,5187.25,Training Awards - Postgraduates
BEIS,UKRI - AHRC,18/01/2022,Training Awards - Postgraduates,Industrial Strategy Challenge Fund (ISCF) - Skills,University of the West of England,99145566,19665.67,Training Awards - Postgraduates
BEIS,UKRI - AHRC,18/01/2022,Training Awards - Postgraduates,Industrial Strategy Challenge Fund (ISCF) - Skills,University of Nottingham,99145567,19671.98,Training Awards - Postgraduates
BEIS,UKRI - AHRC,18/01/2022,Training Awards - Postgraduates,Industrial Strategy Challenge Fund (ISCF) - Skills,"Royal Holloway, University of London",99145568,21577.56,Training Awards - Postgraduates
BEIS,UKRI - AHRC,18/01/2022,Training Awards - Postgraduates,Industrial Strategy Challenge Fund (ISCF) - Skills,The University of Manchester,99145569,19671.98,Training Awards - Postgraduates
BEIS,UKRI - AHRC,18/01/2022,Training Awards - Postgraduates,Industrial Strategy Challenge Fund (ISCF) - Skills,University of Glasgow,99145570,19671.98,Training Awards - Postgraduates
BEIS,UKRI - AHRC,18/01/2022,Training Awards - Postgraduates,Industrial Strategy Challenge Fund (ISCF) - Skills,University of Newcastle Upon Tyne,99145571,19671.98,Training Awards - Postgraduates
BEIS,UKRI - AHRC,18/01/2022,Training Awards - Postgraduates,Collabrative Doctoral Grants - Block Payment,The British Museum,99145572,16450,Training Awards - Postgraduates
BEIS,UKRI - AHRC,18/01/2022,Training Awards - Postgraduates,Collabrative Doctoral Grants - Block Payment,The National Archives,99145573,0.06,Training Awards - Postgraduates
BEIS,UKRI - AHRC,18/01/2022,Training Awards - Postgraduates,Collabrative Doctoral Grants - Block Payment,Sheffield Hallam University,99145574,2599.24,Training Awards - Postgraduates
BEIS,UKRI - AHRC,18/01/2022,Training Awards - Postgraduates,Collabrative Doctoral Grants - Block Payment,Queen Mary University of London,99145575,3098.86,Training Awards - Postgraduates
BEIS,UKRI - AHRC,18/01/2022,Training Awards - Postgraduates,Collabrative Doctoral Grants - Block Payment,De Montfort University,99145576,2599.24,Training Awards - Postgraduates
BEIS,UKRI - AHRC,18/01/2022,Training Awards - Postgraduates,Collabrative Doctoral Grants - Block Payment,Courtauld Institute of Art,99145577,2849.26,Training Awards - Postgraduates
BEIS,UKRI - AHRC,18/01/2022,Training Awards - Postgraduates,Collabrative Doctoral Grants - Block Payment,University of the Arts London,99145578,2849.26,Training Awards - Postgraduates
BEIS,UKRI - AHRC,18/01/2022,Training Awards - Postgraduates,Collabrative Doctoral Grants - Block Payment,University of Leeds,99145579,2599.26,Training Awards - Postgraduates
BEIS,UKRI - AHRC,18/01/2022,Training Awards - Postgraduates,Collabrative Doctoral Grants - Block Payment,University of Leeds,99145580,2599.26,Training Awards - Postgraduates
BEIS,UKRI - AHRC,18/01/2022,Training Awards - Postgraduates,Collabrative Doctoral Grants - Block Payment,University of Cambridge,99145581,2599.26,Training Awards - Postgraduates
BEIS,UKRI - AHRC,18/01/2022,Training Awards - Postgraduates,Collabrative Doctoral Grants - Block Payment,University of Cambridge,99145582,2599.26,Training Awards - Postgraduates
BEIS,UKRI - AHRC,18/01/2022,Training Awards - Postgraduates,Collabrative Doctoral Grants - Block Payment,University of Cambridge,99145583,2599.26,Training Awards - Postgraduates
BEIS,UKRI - AHRC,18/01/2022,Training Awards - Postgraduates,Collabrative Doctoral Grants - Block Payment,Keele University,99145584,2599.26,Training Awards - Postgraduates
BEIS,UKRI - AHRC,18/01/2022,Training Awards - Postgraduates,Collabrative Doctoral Grants - Block Payment,University of Strathclyde,99145585,2599.26,Training Awards - Postgraduates
BEIS,UKRI - AHRC,18/01/2022,Training Awards - Postgraduates,Collabrative Doctoral Grants - Block Payment,University of Kent,99145586,2599.26,Training Awards - Postgraduates
BEIS,UKRI - AHRC,18/01/2022,Training Awards - Postgraduates,Collabrative Doctoral Grants - Block Payment,University of Kent,99145587,2599.26,Training Awards - Postgraduates
BEIS,UKRI - AHRC,18/01/2022,Training Awards - Postgraduates,Collabrative Doctoral Grants - Block Payment,University College London,99145588,2849.24,Training Awards - Postgraduates
BEIS,UKRI - AHRC,18/01/2022,Training Awards - Postgraduates,Collabrative Doctoral Grants - Block Payment,University of Durham,99145589,1111.8,Training Awards - Postgraduates
BEIS,UKRI - AHRC,18/01/2022,Training Awards - Postgraduates,Collabrative Doctoral Grants - Block Payment,University of Durham,99145589,2599.26,Training Awards - Postgraduates
BEIS,UKRI - AHRC,18/01/2022,Training Awards - Postgraduates,Collabrative Doctoral Grants - Block Payment,University of Oxford,99145590,2599.26,Training Awards - Postgraduates
BEIS,UKRI - AHRC,18/01/2022,Training Awards - Postgraduates,Collabrative Doctoral Grants - Block Payment,University of Aberdeen,99145591,2599.26,Training Awards - Postgraduates
BEIS,UKRI - AHRC,18/01/2022,Training Awards - Postgraduates,Collabrative Doctoral Grants - Block Payment,University of Newcastle Upon Tyne,99145592,2599.26,Training Awards - Postgraduates
BEIS,UKRI - AHRC,18/01/2022,Training Awards - Postgraduates,Collabrative Doctoral Grants - Block Payment,University of York,99145593,2599.26,Training Awards - Postgraduates
BEIS,UKRI - AHRC,18/01/2022,Training Awards - Postgraduates,Collabrative Doctoral Grants - Block Payment,University of Leeds,99145594,2599.26,Training Awards - Postgraduates
BEIS,UKRI - AHRC,18/01/2022,Training Awards - Postgraduates,Collabrative Doctoral Grants - Block Payment,University of Glasgow,99145595,2599.26,Training Awards - Postgraduates
BEIS,UKRI - AHRC,18/01/2022,Training Awards - Postgraduates,Collabrative Doctoral Grants - Block Payment,De Montfort University,99145596,2599.24,Training Awards - Postgraduates
BEIS,UKRI - AHRC,18/01/2022,Training Awards - Postgraduates,Collabrative Doctoral Grants - Block Payment,Birkbeck College,99145597,2849.26,Training Awards - Postgraduates
BEIS,UKRI - AHRC,18/01/2022,Training Awards - Postgraduates,Collabrative Doctoral Grants - Block Payment,University of Southampton GRANT,99145598,2599.26,Training Awards - Postgraduates
BEIS,UKRI - AHRC,18/01/2022,Training Awards - Postgraduates,Collabrative Doctoral Grants - Block Payment,University of Stirling,99145599,2599.26,Training Awards - Postgraduates
BEIS,UKRI - AHRC,18/01/2022,Training Awards - Postgraduates,Collabrative Doctoral Grants - Block Payment,King's College London,99145600,2849.26,Training Awards - Postgraduates
BEIS,UKRI - AHRC,18/01/2022,Training Awards - Postgraduates,Collabrative Doctoral Grants - Block Payment,University of Central Lancashire,99145601,2599.26,Training Awards - Postgraduates
BEIS,UKRI - AHRC,18/01/2022,Training Awards - Postgraduates,Collabrative Doctoral Grants - Block Payment,University of Leeds,99145602,2599.24,Training Awards - Postgraduates
BEIS,UKRI - AHRC,18/01/2022,Training Awards - Postgraduates,Collabrative Doctoral Grants - Block Payment,University College London,99145603,2849.24,Training Awards - Postgraduates
BEIS,UKRI - AHRC,18/01/2022,Training Awards - Postgraduates,Collabrative Doctoral Grants - Block Payment,University College London,99145604,2849.26,Training Awards - Postgraduates
BEIS,UKRI - AHRC,18/01/2022,Training Awards - Postgraduates,Collabrative Doctoral Grants - Block Payment,"City, University of London",99145605,2849.24,Training Awards - Postgraduates
BEIS,UKRI - AHRC,18/01/2022,Training Awards - Postgraduates,Collabrative Doctoral Grants - Block Payment,University of Durham,99145606,2599.24,Training Awards - Postgraduates
BEIS,UKRI - AHRC,18/01/2022,Training Awards - Postgraduates,Collabrative Doctoral Grants - Block Payment,Goldsmiths College University of London,99145607,115.44,Training Awards - Postgraduates
BEIS,UKRI - AHRC,18/01/2022,Training Awards - Postgraduates,Collabrative Doctoral Grants - Block Payment,Goldsmiths College University of London,99145607,2849.24,Training Awards - Postgraduates
BEIS,UKRI - AHRC,18/01/2022,Training Awards - Postgraduates,Collabrative Doctoral Grants - Block Payment,Robert Gordon University,99145608,2599.26,Training Awards - Postgraduates
BEIS,UKRI - AHRC,18/01/2022,Training Awards - Postgraduates,Collabrative Doctoral Grants - Block Payment,University of Liverpool,99145609,2599.24,Training Awards - Postgraduates
BEIS,UKRI - AHRC,18/01/2022,Training Awards - Postgraduates,Collabrative Doctoral Grants - Block Payment,University of Exeter,99145610,2599.26,Training Awards - Postgraduates
BEIS,UKRI - AHRC,18/01/2022,Training Awards - Postgraduates,Collabrative Doctoral Grants - Block Payment,University of Edinburgh,99145611,2599.24,Training Awards - Postgraduates
BEIS,UKRI - AHRC,18/01/2022,Training Awards - Postgraduates,Collabrative Doctoral Grants - Block Payment,King's College London,99145612,2849.26,Training Awards - Postgraduates
BEIS,UKRI - AHRC,18/01/2022,Training Awards - Postgraduates,Collabrative Doctoral Grants - Block Payment,University of Brighton,99145613,2599.26,Training Awards - Postgraduates
BEIS,UKRI - AHRC,18/01/2022,Training Awards - Postgraduates,Collabrative Doctoral Grants - Block Payment,"SOAS, University of London",99145614,2849.24,Training Awards - Postgraduates
BEIS,UKRI - AHRC,18/01/2022,Training Awards - Postgraduates,Collabrative Doctoral Grants - Block Payment,University of Stirling,99145615,2599.26,Training Awards - Postgraduates
BEIS,UKRI - AHRC,18/01/2022,Training Awards - Postgraduates,Collabrative Doctoral Grants - Block Payment,University College London,99145616,2847.01,Training Awards - Postgraduates
BEIS,UKRI - AHRC,18/01/2022,Training Awards - Postgraduates,Collabrative Doctoral Grants - Block Payment,University of Sheffield,99145617,2599.26,Training Awards - Postgraduates
BEIS,UKRI - AHRC,18/01/2022,Training Awards - Postgraduates,Collabrative Doctoral Grants - Block Payment,University of London,99145618,2849.26,Training Awards - Postgraduates
BEIS,UKRI - AHRC,18/01/2022,Training Awards - Postgraduates,Collabrative Doctoral Grants - Block Payment,University of Sheffield,99145619,2599.24,Training Awards - Postgraduates
BEIS,UKRI - AHRC,18/01/2022,Training Awards - Postgraduates,BGP Award,University of Sussex,99145620,1541.4,Training Awards - Postgraduates
BEIS,UKRI - AHRC,18/01/2022,Training Awards - Postgraduates,BGP Award,University of Sussex,99145620,629340.85,Training Awards - Postgraduates
BEIS,UKRI - AHRC,18/01/2022,Training Awards - Postgraduates,BGP Award,The University of Manchester,99145621,487981.83,Training Awards - Postgraduates
BEIS,UKRI - AHRC,18/01/2022,Training Awards - Postgraduates,BGP Award,University of Bristol GRANT,99145622,324434.27,Training Awards - Postgraduates
BEIS,UKRI - AHRC,18/01/2022,Training Awards - Postgraduates,BGP Award,"Royal Holloway, University of London",99145623,16431,Training Awards - Postgraduates
BEIS,UKRI - AHRC,18/01/2022,Training Awards - Postgraduates,BGP Award,"Royal Holloway, University of London",99145623,665950.95,Training Awards - Postgraduates
BEIS,UKRI - AHRC,18/01/2022,Training Awards - Postgraduates,BGP Award,University of York,99145624,2329.8,Training Awards - Postgraduates
BEIS,UKRI - AHRC,18/01/2022,Training Awards - Postgraduates,BGP Award,University of York,99145624,519787.8,Training Awards - Postgraduates
BEIS,UKRI - AHRC,18/01/2022,Training Awards - Postgraduates,BGP Award,University of Nottingham,99145625,754378.9,Training Awards - Postgraduates
BEIS,UKRI - AHRC,18/01/2022,Training Awards - Postgraduates,BGP Award,University of Glasgow,99145626,618070.96,Training Awards - Postgraduates
BEIS,UKRI - AHRC,18/01/2022,Training Awards - Postgraduates,BGP Award,University of Oxford,99145627,17406.54,Training Awards - Postgraduates
BEIS,UKRI - AHRC,18/01/2022,Training Awards - Postgraduates,BGP Award,University of Oxford,99145627,828411.8,Training Awards - Postgraduates
BEIS,UKRI - AHRC,18/01/2022,Training Awards - Postgraduates,BGP Award,University College London,99145628,800852.07,Training Awards - Postgraduates
BEIS,UKRI - AHRC,18/01/2022,Training Awards - Postgraduates,BGP Award,University of Newcastle Upon Tyne,99145629,1418,Training Awards - Postgraduates
BEIS,UKRI - AHRC,18/01/2022,Training Awards - Postgraduates,BGP Award,University of Newcastle Upon Tyne,99145629,618070.96,Training Awards - Postgraduates
BEIS,UKRI - AHRC,18/01/2022,Training Awards - Postgraduates,BGP Award,"Royal Holloway, University of London",99145630,99884.54,Training Awards - Postgraduates
BEIS,UKRI - AHRC,18/01/2022,Training Awards - Postgraduates,BGP Award,University of Bristol GRANT,99145631,105708.75,Training Awards - Postgraduates
BEIS,UKRI - AHRC,18/01/2022,Training Awards - Postgraduates,BGP Award,University of Newcastle Upon Tyne,99145632,104913.12,Training Awards - Postgraduates
BEIS,UKRI - AHRC,18/01/2022,Training Awards - Postgraduates,BGP Award,University of Glasgow,99145633,105708.75,Training Awards - Postgraduates
BEIS,UKRI - AHRC,18/01/2022,Training Awards - Postgraduates,BGP Award,The University of Manchester,99145634,107263.95,Training Awards - Postgraduates
BEIS,UKRI - AHRC,18/01/2022,Training Awards - Postgraduates,BGP Award,University of Cambridge,99145635,105708.75,Training Awards - Postgraduates
BEIS,UKRI - AHRC,18/01/2022,Training Awards - Postgraduates,BGP Award,University of Oxford,99145636,105708.75,Training Awards - Postgraduates
BEIS,UKRI - AHRC,18/01/2022,Training Awards - Postgraduates,BGP Award,University College London,99145637,139450.51,Training Awards - Postgraduates
BEIS,UKRI - AHRC,18/01/2022,Training Awards - Postgraduates,BGP Award,University of Sussex,99145638,124972.31,Training Awards - Postgraduates
BEIS,UKRI - AHRC,18/01/2022,Training Awards - Postgraduates,BGP Award,University of Nottingham,99145639,110878.47,Training Awards - Postgraduates
BEIS,UKRI - AHRC,18/01/2022,Training Awards - Postgraduates,BGP Award,University of York,99145640,11200.72,Training Awards - Postgraduates
BEIS,UKRI - AHRC,18/01/2022,Training Awards - Postgraduates,BGP Award,University of York,99145640,142706.81,Training Awards - Postgraduates
BEIS,UKRI - AHRC,18/01/2022,Training Awards - Postgraduates,BGP Award,University College London,99145641,19113.29,Training Awards - Postgraduates
BEIS,UKRI - AHRC,18/01/2022,Training Awards - Postgraduates,BGP Award,University of Hull,99145642,13213.6,Training Awards - Postgraduates
BEIS,UKRI - AHRC,18/01/2022,Training Awards - Postgraduates,BGP Award,University of Glasgow,99145643,13213.6,Training Awards - Postgraduates
BEIS,UKRI - AHRC,18/01/2022,Training Awards - Postgraduates,BGP Award,University of the West of England,99145644,18499.04,Training Awards - Postgraduates
BEIS,UKRI - AHRC,18/01/2022,Training Awards - Postgraduates,BGP Award,University of Reading,99145645,16221.19,Training Awards - Postgraduates
BEIS,UKRI - AHRC,18/01/2022,Training Awards - Postgraduates,Collabrative Doctoral Grants - Block Payment,Birkbeck College,99145646,5781,Training Awards - Postgraduates
BEIS,UKRI - AHRC,18/01/2022,Training Awards - Postgraduates,International Placement Scheme,University of Sussex,99145647,-1593.02,Training Awards - Postgraduates
BEIS,UKRI - AHRC,18/01/2022,Training Awards - Postgraduates,International Placement Scheme,University of Cambridge,99145648,-610.4,Training Awards - Postgraduates
BEIS,UKRI - AHRC,18/01/2022,Training Awards - Postgraduates,Collabrative Doctoral Grants - Block Payment,De Montfort University,99145649,-5777.8,Training Awards - Postgraduates
BEIS,UKRI - AHRC,18/01/2022,Training Awards - Postgraduates,Collabrative Doctoral Grants - Block Payment,University of Leicester,99145650,-123.96,Training Awards - Postgraduates
BEIS,UKRI - AHRC,18/01/2022,Training Awards - Postgraduates,Collabrative Doctoral Grants - Block Payment,University of Reading,99145651,-12153.08,Training Awards - Postgraduates
BEIS,UKRI - AHRC,18/01/2022,Training Awards - Postgraduates,Collabrative Doctoral Grants - Block Payment,University of Oxford,99145652,-2692.63,Training Awards - Postgraduates
BEIS,UKRI - AHRC,18/01/2022,Training Awards - Postgraduates,Collabrative Doctoral Grants - Block Payment,Courtauld Institute of Art,99145653,-7282.65,Training Awards - Postgraduates
BEIS,UKRI - AHRC,18/01/2022,Training Awards - Postgraduates,Collabrative Doctoral Grants - Block Payment,University College London,99145654,-961.42,Training Awards - Postgraduates
BEIS,UKRI - AHRC,18/01/2022,Training Awards - Postgraduates,Collabrative Doctoral Grants - Block Payment,University of Sussex,99145655,-6241.04,Training Awards - Postgraduates
BEIS,UKRI - AHRC,18/01/2022,Training Awards - Postgraduates,Collabrative Doctoral Grants - Block Payment,University of Exeter,99145656,-10205.12,Training Awards - Postgraduates
BEIS,UKRI - AHRC,18/01/2022,Training Awards - Postgraduates,Collabrative Doctoral Grants - Block Payment,University of Leicester,99145657,-10290.24,Training Awards - Postgraduates
BEIS,UKRI - AHRC,18/01/2022,Training Awards - Postgraduates,Collabrative Doctoral Grants - Block Payment,University of Leeds,99145658,2580.75,Training Awards - Postgraduates
BEIS,UKRI - AHRC,18/01/2022,Training Awards - Postgraduates,Collabrative Doctoral Grants - Block Payment,University of Leeds,99145659,-8477.41,Training Awards - Postgraduates
BEIS,UKRI - AHRC,18/01/2022,Training Awards - Postgraduates,Collabrative Doctoral Grants - Block Payment,University of Sheffield,99145660,-7661.52,Training Awards - Postgraduates
BEIS,UKRI - AHRC,18/01/2022,Training Awards - Postgraduates,Collabrative Doctoral Grants - Block Payment,University of Reading,99145661,-46.25,Training Awards - Postgraduates
BEIS,UKRI - AHRC,18/01/2022,Training Awards - Postgraduates,Collabrative Doctoral Grants - Block Payment,University of Strathclyde,99145662,-5136.73,Training Awards - Postgraduates
BEIS,UKRI - AHRC,18/01/2022,Training Awards - Postgraduates,Collabrative Doctoral Grants - Block Payment,University of Southampton GRANT,99145663,2942.54,Training Awards - Postgraduates
BEIS,UKRI - AHRC,18/01/2022,Training Awards - Postgraduates,Collabrative Doctoral Grants - Block Payment,Queen Mary University of London,99145664,2027.3,Training Awards - Postgraduates
BEIS,UKRI - AHRC,18/01/2022,Training Awards - Postgraduates,Collabrative Doctoral Grants - Block Payment,University of Durham,99145665,7779.5,Training Awards - Postgraduates
BEIS,UKRI - AHRC,18/01/2022,Training Awards - Postgraduates,International Placement Scheme,Cardiff University,99145666,-6070,Training Awards - Postgraduates
BEIS,UKRI - AHRC,18/01/2022,Training Awards - Postgraduates,Collabrative Doctoral Grants - Block Payment,London South Bank University,99145667,75648,Training Awards - Postgraduates
BEIS,UKRI - AHRC,18/01/2022,Staff Training,SMT,International Centre for Parliamentary Studies Ltd T/A Government Exchange,99169263,684,Staff Training
BEIS,UKRI - AHRC,18/01/2022,Fees (Including College Members),Operations,Unspecified,99177981,340,Fees (Including College Members)
BEIS,UKRI - AHRC,19/01/2022,Unspecified,SMT,University of Oxford,99169392,6822.38,Secondments
BEIS,UKRI - AHRC,19/01/2022,Unspecified,SMT,University of Oxford,99169396,26671.42,Secondments
BEIS,UKRI - AHRC,19/01/2022,Health & Safety (inc. Medicals & Opticians),Public and Stakeholder Engagement,Unspecified,99182881,100,Health & Safety (inc. Medicals & Opticians)
BEIS,UKRI - AHRC,19/01/2022,Fees (Including College Members),Infrastructure Fund - CoSTAR,Unspecified,99183531,170,Fees (Including College Members)
BEIS,UKRI - AHRC,21/01/2022,Fees (Including College Members),Operations,Unspecified,99183321,340,Fees (Including College Members)
BEIS,UKRI - AHRC,21/01/2022,Fees (Including College Members),Operations,Unspecified,99183322,340,Fees (Including College Members)
BEIS,UKRI - AHRC,24/01/2022,Unspecified,Infrastruture Roadmap,Alexander Mann Solutions Ltd,99190684,2772.24,Legal & Professional Services
BEIS,UKRI - AHRC,24/01/2022,Fees (Including College Members),Operations,Unspecified,99190764,230,Fees (Including College Members)
BEIS,UKRI - AHRC,24/01/2022,Fees (Including College Members),Operations,Unspecified,99190765,170,Fees (Including College Members)
BEIS,UKRI - AHRC,24/01/2022,Fees (Including College Members),Operations,Unspecified,99190766,170,Fees (Including College Members)
BEIS,UKRI - AHRC,24/01/2022,Fees (Including College Members),Operations,Unspecified,99190767,170,Fees (Including College Members)
BEIS,UKRI - AHRC,24/01/2022,Fees (Including College Members),Executive Office,Unspecified,99190768,500,Fees (Including College Members)
BEIS,UKRI - AHRC,25/01/2022,Staff Training,International Development and Area Studies,Unspecified,99191125,1200,Staff Training
BEIS,UKRI - AHRC,26/01/2022,Unspecified,SMT,University of St Andrews,99191151,19224.23,Secondments
BEIS,UKRI - AHRC,26/01/2022,Corporate Events,AHRC - Creative Industries,The Edinburgh Television Festival Council,99210429,36540,Corporate Events
BEIS,UKRI - AHRC,27/01/2022,Research Consumables,AI&Design,Unspecified,99191253,2250,Research Consumables
BEIS,UKRI - AHRC,27/01/2022,Research Consumables,AI&Design,Unspecified,99191254,2250,Research Consumables
BEIS,UKRI - AHRC,31/01/2022,Fees (Including College Members),Operations,Unspecified,99207282,170,Fees (Including College Members)
BEIS,UKRI - AHRC,31/01/2022,Unspecified,Infrastruture Roadmap,Alexander Mann Solutions Ltd,99225426,2079.18,Legal & Professional Services
BEIS,UKRI - AHRC,31/01/2022,Unspecified,Infrastruture Roadmap,Alexander Mann Solutions Ltd,99225426,693.06,Legal & Professional Services
BEIS,UKRI - AHRC,31/01/2022,UK - Professional Memberships & Subscriptions,SMT,Unspecified,99230420,148,UK - Professional Memberships & Subscriptions
BEIS,UKRI - BBSRC,05/01/2022,Conferences & Seminars,Innovation and Skills Group CDSU,Westminster Forum Projects Ltd,99103670,252,Conferences & Seminars
BEIS,UKRI - BBSRC,05/01/2022,Unspecified,Innovation and Skills Group,Belmana Ltd,99107752,48520,Legal & Professional Services
BEIS,UKRI - BBSRC,06/01/2022,Research Institutes - Capital Grants: Minor Works,Rothamsted Research,Rothamsted Research Ltd,99107744,85807.06,Research Institutes - Capital Grants: Minor Works
BEIS,UKRI - BBSRC,06/01/2022,Research Institutes - Capital Grants: Minor Works,Rothamsted Research,Rothamsted Research Ltd,99108910,-1278,Research Institutes - Capital Grants: Minor Works
BEIS,UKRI - BBSRC,06/01/2022,Research Institutes - Competitive Strategic Grant,Rothamsted Research,Rothamsted Research Ltd,99120423,6463.87,Research Institutes - Competitive Strategic Grant
BEIS,UKRI - BBSRC,06/01/2022,Research Institutes - Competitive Strategic Grant,Rothamsted Research,Rothamsted Research Ltd,99120423,27171.64,Research Institutes - Competitive Strategic Grant
BEIS,UKRI - BBSRC,06/01/2022,Research Institutes - Competitive Strategic Grant,Rothamsted Research,Rothamsted Research Ltd,99120423,3757.16,Research Institutes - Competitive Strategic Grant
BEIS,UKRI - BBSRC,06/01/2022,Research Institutes - Competitive Strategic Grant,Rothamsted Research,Rothamsted Research Ltd,99120423,11445.79,Research Institutes - Competitive Strategic Grant
BEIS,UKRI - BBSRC,06/01/2022,Research Institutes - Competitive Strategic Grant,Rothamsted Research,Rothamsted Research Ltd,99120423,411.54,Research Institutes - Competitive Strategic Grant
BEIS,UKRI - BBSRC,06/01/2022,Corporate Events,CE - CPS,Calder Conference Ltd,99125426,979.5,Corporate Events
BEIS,UKRI - BBSRC,06/01/2022,Conferences & Seminars,Science Group,Calder Conference Ltd,99126423,250.3,Conferences & Seminars
BEIS,UKRI - BBSRC,06/01/2022,Health & Safety (inc. Medicals & Opticians),Innovation and Skills Group,Unspecified,99128435,35,Health & Safety (inc. Medicals & Opticians)
BEIS,UKRI - BBSRC,07/01/2022,Fees (Including College Members),Science Group - Delivery Function,Unspecified,99129492,170,Fees (Including College Members)
BEIS,UKRI - BBSRC,07/01/2022,Fees (Including College Members),Science Group - Delivery Function,Unspecified,99129493,170,Fees (Including College Members)
BEIS,UKRI - BBSRC,07/01/2022,Fees (Including College Members),Science Group - Delivery Function,Unspecified,99129494,230,Fees (Including College Members)
BEIS,UKRI - BBSRC,07/01/2022,Fees (Including College Members),Science Group - Delivery Function,Unspecified,99129495,510,Fees (Including College Members)
BEIS,UKRI - BBSRC,07/01/2022,Fees (Including College Members),Science Group - Delivery Function,Unspecified,99129496,340,Fees (Including College Members)
BEIS,UKRI - BBSRC,07/01/2022,Fees (Including College Members),Science Group - Delivery Function,Unspecified,99129497,510,Fees (Including College Members)
BEIS,UKRI - BBSRC,07/01/2022,Fees (Including College Members),Science Group - Delivery Function,Unspecified,99129498,510,Fees (Including College Members)
BEIS,UKRI - BBSRC,07/01/2022,Fees (Including College Members),Science Group - Delivery Function,Unspecified,99129499,510,Fees (Including College Members)
BEIS,UKRI - BBSRC,07/01/2022,Fees (Including College Members),Science Group - Delivery Function,Unspecified,99129500,510,Fees (Including College Members)
BEIS,UKRI - BBSRC,07/01/2022,Fees (Including College Members),Science Group - Delivery Function,Unspecified,99129501,510,Fees (Including College Members)
BEIS,UKRI - BBSRC,07/01/2022,Fees (Including College Members),Science Group - Delivery Function,Unspecified,99129502,690,Fees (Including College Members)
BEIS,UKRI - BBSRC,07/01/2022,Fees (Including College Members),Science Group - Delivery Function,Unspecified,99129503,510,Fees (Including College Members)
BEIS,UKRI - BBSRC,07/01/2022,Fees (Including College Members),Science Group - Delivery Function,Unspecified,99129504,510,Fees (Including College Members)
BEIS,UKRI - BBSRC,07/01/2022,Fees (Including College Members),Science Group - Delivery Function,Unspecified,99129505,340,Fees (Including College Members)
BEIS,UKRI - BBSRC,07/01/2022,Fees (Including College Members),Science Group - Delivery Function,Unspecified,99129506,510,Fees (Including College Members)
BEIS,UKRI - BBSRC,07/01/2022,Fees (Including College Members),Science Group - Delivery Function,Unspecified,99129507,510,Fees (Including College Members)
BEIS,UKRI - BBSRC,07/01/2022,Fees (Including College Members),Science Group - Delivery Function,Unspecified,99129508,690,Fees (Including College Members)
BEIS,UKRI - BBSRC,07/01/2022,Fees (Including College Members),Science Group - Delivery Function,Unspecified,99129509,510,Fees (Including College Members)
BEIS,UKRI - BBSRC,07/01/2022,Fees (Including College Members),Science Group - Delivery Function,Unspecified,99129510,690,Fees (Including College Members)
BEIS,UKRI - BBSRC,07/01/2022,Fees (Including College Members),Science Group - Delivery Function,Unspecified,99129511,510,Fees (Including College Members)
BEIS,UKRI - BBSRC,07/01/2022,Fees (Including College Members),Science Group - Delivery Function,Unspecified,99129512,510,Fees (Including College Members)
BEIS,UKRI - BBSRC,10/01/2022,Research Institutes - Capital Grants: Minor Works,Rothamsted Research,Rothamsted Research Ltd,99111410,23505.56,Research Institutes - Capital Grants: Minor Works
BEIS,UKRI - BBSRC,10/01/2022,Fees (Including College Members),Science Group - Delivery Function,Unspecified,99140417,170,Fees (Including College Members)
BEIS,UKRI - BBSRC,10/01/2022,Fees (Including College Members),Science Group – Admin Function,Unspecified,99140418,340,Fees (Including College Members)
BEIS,UKRI - BBSRC,10/01/2022,Fees (Including College Members),Science Group – Admin Function,Unspecified,99140419,340,Fees (Including College Members)
BEIS,UKRI - BBSRC,10/01/2022,Fees (Including College Members),Science Group – Admin Function,Unspecified,99140420,340,Fees (Including College Members)
BEIS,UKRI - BBSRC,10/01/2022,Fees (Including College Members),Science Group – Admin Function,Unspecified,99140421,340,Fees (Including College Members)
BEIS,UKRI - BBSRC,10/01/2022,Fees (Including College Members),Science Group – Admin Function,Unspecified,99140422,340,Fees (Including College Members)
BEIS,UKRI - BBSRC,10/01/2022,Fees (Including College Members),Science Group – Admin Function,Unspecified,99140423,340,Fees (Including College Members)
BEIS,UKRI - BBSRC,10/01/2022,Fees (Including College Members),Science Group – Admin Function,Unspecified,99140424,340,Fees (Including College Members)
BEIS,UKRI - BBSRC,10/01/2022,Fees (Including College Members),Science Group – Admin Function,Unspecified,99140425,340,Fees (Including College Members)
BEIS,UKRI - BBSRC,10/01/2022,Fees (Including College Members),Science Group – Admin Function,Unspecified,99140426,340,Fees (Including College Members)
BEIS,UKRI - BBSRC,10/01/2022,Fees (Including College Members),Science Group – Admin Function,Unspecified,99140427,340,Fees (Including College Members)
BEIS,UKRI - BBSRC,11/01/2022,Research Grant Expenditure,SPF W1 EMBL EBI,EMBL (European Molecular Biology Laboratory),99122200,2243.45,Research Grant Expenditure
BEIS,UKRI - BBSRC,11/01/2022,T&S UK - Public Transport,Science Group,Unspecified,99122362,14,T&S UK - Public Transport
BEIS,UKRI - BBSRC,11/01/2022,Research Grant Expenditure,Impact & Knowledge Exchange,Technology Strategy Board (Innovate UK),99150424,49668.51,Research Grant Expenditure
BEIS,UKRI - BBSRC,12/01/2022,Unspecified,Balance Sheet,HM Revenue & Customs,99110733,77442.4,PAYE Payable Salaries
BEIS,UKRI - BBSRC,12/01/2022,Unspecified,Balance Sheet,HM Revenue & Customs,99110734,7036,Student Loans
BEIS,UKRI - BBSRC,12/01/2022,Unspecified,Balance Sheet,HM Revenue & Customs,99110735,105987.02,NI Payable Salaries
BEIS,UKRI - BBSRC,12/01/2022,Unspecified,FG - Accounts & Business Planning,HM Revenue & Customs,99110736,2755,Apprenticeship Levy
BEIS,UKRI - BBSRC,12/01/2022,Unspecified,Balance Sheet,HM Revenue & Customs,99125428,2201.81,PAYE Payable Salaries
BEIS,UKRI - BBSRC,12/01/2022,Unspecified,FG - Accounts & Business Planning,HM Revenue & Customs,99125429,34,Apprenticeship Levy
BEIS,UKRI - BBSRC,12/01/2022,Conferences & Seminars,Science Group,The Collective Facilitation Ltd,99160243,3912,Conferences & Seminars
BEIS,UKRI - BBSRC,12/01/2022,Fees (Including College Members),Science Group – Admin Function,Unspecified,99160244,170,Fees (Including College Members)
BEIS,UKRI - BBSRC,12/01/2022,Fees (Including College Members),Science Group – Admin Function,Unspecified,99160245,170,Fees (Including College Members)
BEIS,UKRI - BBSRC,12/01/2022,Fees (Including College Members),Science Group – Admin Function,Unspecified,99160246,170,Fees (Including College Members)
BEIS,UKRI - BBSRC,12/01/2022,Fees (Including College Members),Science Group – Admin Function,Unspecified,99160247,170,Fees (Including College Members)
BEIS,UKRI - BBSRC,12/01/2022,Fees (Including College Members),Science Group – Admin Function,Unspecified,99160248,460,Fees (Including College Members)
BEIS,UKRI - BBSRC,12/01/2022,Fees (Including College Members),Science Group – Admin Function,Unspecified,99160249,170,Fees (Including College Members)
BEIS,UKRI - BBSRC,12/01/2022,Fees (Including College Members),Science Group – Admin Function,Unspecified,99160250,170,Fees (Including College Members)
BEIS,UKRI - BBSRC,12/01/2022,Fees (Including College Members),Science Group – Admin Function,Unspecified,99160251,170,Fees (Including College Members)
BEIS,UKRI - BBSRC,12/01/2022,Fees (Including College Members),Science Group – Admin Function,Unspecified,99160252,170,Fees (Including College Members)
BEIS,UKRI - BBSRC,12/01/2022,Fees (Including College Members),Science Group – Admin Function,Unspecified,99160253,170,Fees (Including College Members)
BEIS,UKRI - BBSRC,12/01/2022,Fees (Including College Members),Science Group – Admin Function,Unspecified,99160254,170,Fees (Including College Members)
BEIS,UKRI - BBSRC,12/01/2022,Fees (Including College Members),Science Group – Admin Function,Unspecified,99160307,340,Fees (Including College Members)
BEIS,UKRI - BBSRC,12/01/2022,Fees (Including College Members),Science Group – Admin Function,Unspecified,99160308,460,Fees (Including College Members)
BEIS,UKRI - BBSRC,12/01/2022,Fees (Including College Members),Science Group – Admin Function,Unspecified,99160309,460,Fees (Including College Members)
BEIS,UKRI - BBSRC,12/01/2022,Fees (Including College Members),CE - CPS,Unspecified,99160310,170,Fees (Including College Members)
BEIS,UKRI - BBSRC,12/01/2022,T&S Overseas - Flights,Science Group – Admin Function,Corporate Travel Management (North) Ltd,99160423,7,T&S Overseas - Flights
BEIS,UKRI - BBSRC,12/01/2022,T&S Overseas - Flights,Science Group – Admin Function,Corporate Travel Management (North) Ltd,99160423,10.3,T&S Overseas - Flights
BEIS,UKRI - BBSRC,12/01/2022,T&S UK - Accommodation,CIMG - Director,Corporate Travel Management (North) Ltd,99160423,0.8,T&S UK - Accommodation
BEIS,UKRI - BBSRC,12/01/2022,T&S UK - Accommodation,CIMG - Director,Corporate Travel Management (North) Ltd,99160423,70,T&S UK - Accommodation
BEIS,UKRI - BBSRC,12/01/2022,T&S UK - Accommodation,CIMG - Director,Corporate Travel Management (North) Ltd,99160423,0.16,T&S UK - Accommodation
BEIS,UKRI - BBSRC,12/01/2022,T&S UK - Accommodation,Science Group,Corporate Travel Management (North) Ltd,99160423,0.8,T&S UK - Accommodation
BEIS,UKRI - BBSRC,12/01/2022,T&S UK - Accommodation,Science Group,Corporate Travel Management (North) Ltd,99160423,166.5,T&S UK - Accommodation
BEIS,UKRI - BBSRC,12/01/2022,T&S UK - Accommodation,Science Group,Corporate Travel Management (North) Ltd,99160423,0.8,T&S UK - Accommodation
BEIS,UKRI - BBSRC,12/01/2022,T&S UK - Accommodation,Science Group,Corporate Travel Management (North) Ltd,99160423,125.62,T&S UK - Accommodation
BEIS,UKRI - BBSRC,12/01/2022,T&S UK - Accommodation,Science Group,Corporate Travel Management (North) Ltd,99160423,0.32,T&S UK - Accommodation
BEIS,UKRI - BBSRC,12/01/2022,T&S UK - Public Transport,CE - Chief Executive,Corporate Travel Management (North) Ltd,99160423,5,T&S UK - Public Transport
BEIS,UKRI - BBSRC,12/01/2022,T&S UK - Public Transport,CE - Chief Executive,Corporate Travel Management (North) Ltd,99160423,-40.4,T&S UK - Public Transport
BEIS,UKRI - BBSRC,12/01/2022,T&S UK - Public Transport,Science Group,Corporate Travel Management (North) Ltd,99160423,0.25,T&S UK - Public Transport
BEIS,UKRI - BBSRC,12/01/2022,T&S UK - Public Transport,Science Group,Corporate Travel Management (North) Ltd,99160423,187.8,T&S UK - Public Transport
BEIS,UKRI - BBSRC,12/01/2022,T&S UK - Public Transport,Science Group,Corporate Travel Management (North) Ltd,99160423,0.25,T&S UK - Public Transport
BEIS,UKRI - BBSRC,12/01/2022,T&S UK - Public Transport,Science Group,Corporate Travel Management (North) Ltd,99160423,243.4,T&S UK - Public Transport
BEIS,UKRI - BBSRC,12/01/2022,T&S UK - Public Transport,Science Group,Corporate Travel Management (North) Ltd,99160423,5,T&S UK - Public Transport
BEIS,UKRI - BBSRC,12/01/2022,T&S UK - Public Transport,Science Group,Corporate Travel Management (North) Ltd,99160423,-112.65,T&S UK - Public Transport
BEIS,UKRI - BBSRC,12/01/2022,T&S UK - Public Transport,Science Group,Corporate Travel Management (North) Ltd,99160423,0.25,T&S UK - Public Transport
BEIS,UKRI - BBSRC,12/01/2022,T&S UK - Public Transport,Science Group,Corporate Travel Management (North) Ltd,99160423,97.5,T&S UK - Public Transport
BEIS,UKRI - BBSRC,12/01/2022,T&S UK - Public Transport,Science Group,Corporate Travel Management (North) Ltd,99160423,5,T&S UK - Public Transport
BEIS,UKRI - BBSRC,12/01/2022,T&S UK - Public Transport,Science Group,Corporate Travel Management (North) Ltd,99160423,-160.2,T&S UK - Public Transport
BEIS,UKRI - BBSRC,12/01/2022,T&S UK - Public Transport,Science Group,Corporate Travel Management (North) Ltd,99160423,0.25,T&S UK - Public Transport
BEIS,UKRI - BBSRC,12/01/2022,T&S UK - Public Transport,Science Group,Corporate Travel Management (North) Ltd,99160423,290.1,T&S UK - Public Transport
BEIS,UKRI - BBSRC,12/01/2022,T&S UK - Public Transport,Science Group,Corporate Travel Management (North) Ltd,99160423,5,T&S UK - Public Transport
BEIS,UKRI - BBSRC,12/01/2022,T&S UK - Public Transport,Science Group,Corporate Travel Management (North) Ltd,99160423,-61.5,T&S UK - Public Transport
BEIS,UKRI - BBSRC,13/01/2022,International Awards - Non Capital,GCRF Awards,University of Reading,99107728,4663.94,International Awards - Non Capital
BEIS,UKRI - BBSRC,13/01/2022,International Awards - Non Capital,GCRF Awards,University of Reading,99107728,64888.01,International Awards - Non Capital
BEIS,UKRI - BBSRC,13/01/2022,Union Deductions,Balance Sheet,PCS Union,99110737,45.21,Union Deductions
BEIS,UKRI - BBSRC,13/01/2022,Voluntary Deductions,Balance Sheet,Swindon Office Sports and Social Club,99110738,44,Voluntary Deductions
BEIS,UKRI - BBSRC,13/01/2022,Unspecified,Balance Sheet,Unspecified,99110739,20804.05,Ees Pension Deductions - JSS
BEIS,UKRI - BBSRC,13/01/2022,Unspecified,Balance Sheet,Unspecified,99110740,84224.65,Ers Pension Deductions - JSS
BEIS,UKRI - BBSRC,13/01/2022,Unspecified,Balance Sheet,Scottish Widows Life Assurance,99110741,10,Other Pension Deductions
BEIS,UKRI - BBSRC,13/01/2022,Unspecified,Balance Sheet,Cabinet Office RM Shared Services,99110742,10.71,Ers Pension Deductions - JSS
BEIS,UKRI - BBSRC,13/01/2022,Unspecified,Balance Sheet,Cabinet Office RM Shared Services,99110743,12857.75,Ees Pension Deductions - MyCSP
BEIS,UKRI - BBSRC,13/01/2022,Unspecified,Balance Sheet,Cabinet Office RM Shared Services,99110744,66963.66,Ers Pension Deductions - MyCSP
BEIS,UKRI - BBSRC,13/01/2022,Nursery Deductions,Balance Sheet,UKRI - Engineering & Physical Sciences Research Council,99110745,1240,Nursery Deductions
BEIS,UKRI - BBSRC,13/01/2022,Unspecified,Balance Sheet,Unspecified,99110746,388.26,Ees Pension Deductions - MRC
BEIS,UKRI - BBSRC,13/01/2022,Unspecified,Balance Sheet,Unspecified,99110747,955.72,Ers Pension Deductions - MRC
BEIS,UKRI - BBSRC,13/01/2022,Research Institutes - Capital Grants: Minor Works,Pirbright,The Pirbright Institute,99168666,53229.6,Research Institutes - Capital Grants: Minor Works
BEIS,UKRI - BBSRC,13/01/2022,Research Institutes - Capital Grants: Minor Works,Pirbright,The Pirbright Institute,99168671,16427.29,Research Institutes - Capital Grants: Minor Works
BEIS,UKRI - BBSRC,13/01/2022,Research Institutes - Capital Grants: Minor Works,Pirbright,The Pirbright Institute,99168672,1062.5,Research Institutes - Capital Grants: Minor Works
BEIS,UKRI - BBSRC,13/01/2022,Research Institutes - Capital Grants: Minor Works,Pirbright,The Pirbright Institute,99168673,3425,Research Institutes - Capital Grants: Minor Works
BEIS,UKRI - BBSRC,13/01/2022,Research Institutes - Capital Grants: Minor Works,Pirbright,The Pirbright Institute,99168676,61586.28,Research Institutes - Capital Grants: Minor Works
BEIS,UKRI - BBSRC,13/01/2022,Research Institutes - Capital Grants: Minor Works,Pirbright,The Pirbright Institute,99168678,11313.11,Research Institutes - Capital Grants: Minor Works
BEIS,UKRI - BBSRC,14/01/2022,Fees (Including College Members),Science Group - Delivery Function,Unspecified,99168783,170,Fees (Including College Members)
BEIS,UKRI - BBSRC,14/01/2022,Fees (Including College Members),CE - CPS,Unspecified,99168784,170,Fees (Including College Members)
BEIS,UKRI - BBSRC,14/01/2022,Fees (Including College Members),Science Group – Admin Function,Unspecified,99168785,510,Fees (Including College Members)
BEIS,UKRI - BBSRC,14/01/2022,Fees (Including College Members),Science Group – Admin Function,Unspecified,99168786,510,Fees (Including College Members)
BEIS,UKRI - BBSRC,14/01/2022,Fees (Including College Members),Science Group - Delivery Function,Unspecified,99168787,340,Fees (Including College Members)
BEIS,UKRI - BBSRC,14/01/2022,Conferences & Seminars,Science Group,BSI Trading Ltd,99168901,3600,Conferences & Seminars
BEIS,UKRI - BBSRC,17/01/2022,Training Awards - Postgraduates,FG - Accounts & Business Planning,National Institute For Agricultural Botany (NIAB),99137426,6495.59,Training Awards - Postgraduates
BEIS,UKRI - BBSRC,17/01/2022,Training Awards - Postgraduates,FG - Accounts & Business Planning,National Institute For Agricultural Botany (NIAB),99137426,6495.56,Training Awards - Postgraduates
BEIS,UKRI - BBSRC,17/01/2022,Training Awards - Postgraduates,FG - Accounts & Business Planning,National Institute For Agricultural Botany (NIAB),99137427,6495.59,Training Awards - Postgraduates
BEIS,UKRI - BBSRC,17/01/2022,Training Awards - Postgraduates,FG - Accounts & Business Planning,National Institute For Agricultural Botany (NIAB),99137427,6495.56,Training Awards - Postgraduates
BEIS,UKRI - BBSRC,17/01/2022,Training Awards - Postgraduates,FG - Accounts & Business Planning,The University of Manchester,99137428,6495.56,Training Awards - Postgraduates
BEIS,UKRI - BBSRC,17/01/2022,Training Awards - Postgraduates,FG - Accounts & Business Planning,National Institute For Agricultural Botany (NIAB),99137429,6495.59,Training Awards - Postgraduates
BEIS,UKRI - BBSRC,17/01/2022,Training Awards - Postgraduates,FG - Accounts & Business Planning,National Institute For Agricultural Botany (NIAB),99137429,6495.56,Training Awards - Postgraduates
BEIS,UKRI - BBSRC,17/01/2022,Training Awards - Postgraduates,FG - Accounts & Business Planning,National Institute For Agricultural Botany (NIAB),99137430,6495.59,Training Awards - Postgraduates
BEIS,UKRI - BBSRC,17/01/2022,Training Awards - Postgraduates,FG - Accounts & Business Planning,National Institute For Agricultural Botany (NIAB),99137430,6495.56,Training Awards - Postgraduates
BEIS,UKRI - BBSRC,17/01/2022,Training Awards - Postgraduates,FG - Accounts & Business Planning,National Institute For Agricultural Botany (NIAB),99137431,6495.59,Training Awards - Postgraduates
BEIS,UKRI - BBSRC,17/01/2022,Training Awards - Postgraduates,FG - Accounts & Business Planning,National Institute For Agricultural Botany (NIAB),99137431,6495.56,Training Awards - Postgraduates
BEIS,UKRI - BBSRC,17/01/2022,Training Awards - Postgraduates,FG - Accounts & Business Planning,National Institute For Agricultural Botany (NIAB),99137432,6495.59,Training Awards - Postgraduates
BEIS,UKRI - BBSRC,17/01/2022,Training Awards - Postgraduates,FG - Accounts & Business Planning,National Institute For Agricultural Botany (NIAB),99137432,6495.56,Training Awards - Postgraduates
BEIS,UKRI - BBSRC,17/01/2022,Training Awards - Postgraduates,FG - Accounts & Business Planning,National Institute For Agricultural Botany (NIAB),99137433,6495.59,Training Awards - Postgraduates
BEIS,UKRI - BBSRC,17/01/2022,Training Awards - Postgraduates,FG - Accounts & Business Planning,National Institute For Agricultural Botany (NIAB),99137433,6495.56,Training Awards - Postgraduates
BEIS,UKRI - BBSRC,17/01/2022,Training Awards - Postgraduates,FG - Accounts & Business Planning,National Institute For Agricultural Botany (NIAB),99137434,6495.59,Training Awards - Postgraduates
BEIS,UKRI - BBSRC,17/01/2022,Training Awards - Postgraduates,FG - Accounts & Business Planning,National Institute For Agricultural Botany (NIAB),99137434,6495.56,Training Awards - Postgraduates
BEIS,UKRI - BBSRC,17/01/2022,Training Awards - Postgraduates,FG - Accounts & Business Planning,National Institute For Agricultural Botany (NIAB),99137435,6495.59,Training Awards - Postgraduates
BEIS,UKRI - BBSRC,17/01/2022,Training Awards - Postgraduates,FG - Accounts & Business Planning,National Institute For Agricultural Botany (NIAB),99137435,6495.56,Training Awards - Postgraduates
BEIS,UKRI - BBSRC,17/01/2022,Training Awards - Postgraduates,FG - Accounts & Business Planning,Queen Mary University of London,99137436,6876.55,Training Awards - Postgraduates
BEIS,UKRI - BBSRC,17/01/2022,Training Awards - Postgraduates,FG - Accounts & Business Planning,Queen Mary University of London,99137436,6876.63,Training Awards - Postgraduates
BEIS,UKRI - BBSRC,17/01/2022,Training Awards - Postgraduates,FG - Accounts & Business Planning,The University of Manchester,99137437,6495.56,Training Awards - Postgraduates
BEIS,UKRI - BBSRC,17/01/2022,Training Awards - Postgraduates,FG - Accounts & Business Planning,University of York,99137438,6495.59,Training Awards - Postgraduates
BEIS,UKRI - BBSRC,17/01/2022,Training Awards - Postgraduates,FG - Accounts & Business Planning,University of York,99137438,6495.56,Training Awards - Postgraduates
BEIS,UKRI - BBSRC,17/01/2022,Training Awards - Postgraduates,FG - Accounts & Business Planning,University of Warwick,99137439,6495.59,Training Awards - Postgraduates
BEIS,UKRI - BBSRC,17/01/2022,Training Awards - Postgraduates,FG - Accounts & Business Planning,University of Warwick,99137439,6495.56,Training Awards - Postgraduates
BEIS,UKRI - BBSRC,17/01/2022,Training Awards - Postgraduates,FG - Accounts & Business Planning,University of Nottingham,99137440,6495.59,Training Awards - Postgraduates
BEIS,UKRI - BBSRC,17/01/2022,Training Awards - Postgraduates,FG - Accounts & Business Planning,University of Nottingham,99137440,6495.56,Training Awards - Postgraduates
BEIS,UKRI - BBSRC,17/01/2022,Training Awards - Postgraduates,FG - Accounts & Business Planning,University of Liverpool,99137441,6495.59,Training Awards - Postgraduates
BEIS,UKRI - BBSRC,17/01/2022,Training Awards - Postgraduates,FG - Accounts & Business Planning,University of Liverpool,99137441,6495.56,Training Awards - Postgraduates
BEIS,UKRI - BBSRC,17/01/2022,Training Awards - Postgraduates,FG - Accounts & Business Planning,University of Liverpool,99137442,6495.56,Training Awards - Postgraduates
BEIS,UKRI - BBSRC,17/01/2022,Training Awards - Postgraduates,FG - Accounts & Business Planning,Queen Mary University of London,99137443,6995.58,Training Awards - Postgraduates
BEIS,UKRI - BBSRC,17/01/2022,Training Awards - Postgraduates,FG - Accounts & Business Planning,Queen Mary University of London,99137443,6995.56,Training Awards - Postgraduates
BEIS,UKRI - BBSRC,17/01/2022,Training Awards - Postgraduates,FG - Accounts & Business Planning,University of Cambridge,99137444,6495.59,Training Awards - Postgraduates
BEIS,UKRI - BBSRC,17/01/2022,Training Awards - Postgraduates,FG - Accounts & Business Planning,University of Cambridge,99137444,6495.56,Training Awards - Postgraduates
BEIS,UKRI - BBSRC,17/01/2022,Training Awards - Postgraduates,FG - Accounts & Business Planning,University of York,99137445,6495.59,Training Awards - Postgraduates
BEIS,UKRI - BBSRC,17/01/2022,Training Awards - Postgraduates,FG - Accounts & Business Planning,University of York,99137445,6495.56,Training Awards - Postgraduates
BEIS,UKRI - BBSRC,17/01/2022,Training Awards - Postgraduates,FG - Accounts & Business Planning,Robert Gordon University,99137446,6495.59,Training Awards - Postgraduates
BEIS,UKRI - BBSRC,17/01/2022,Training Awards - Postgraduates,FG - Accounts & Business Planning,Robert Gordon University,99137446,6495.56,Training Awards - Postgraduates
BEIS,UKRI - BBSRC,17/01/2022,Training Awards - Postgraduates,FG - Accounts & Business Planning,Robert Gordon University,99137447,6495.59,Training Awards - Postgraduates
BEIS,UKRI - BBSRC,17/01/2022,Training Awards - Postgraduates,FG - Accounts & Business Planning,Robert Gordon University,99137447,6495.56,Training Awards - Postgraduates
BEIS,UKRI - BBSRC,17/01/2022,Training Awards - Postgraduates,FG - Accounts & Business Planning,The University of Manchester,99137448,6495.59,Training Awards - Postgraduates
BEIS,UKRI - BBSRC,17/01/2022,Training Awards - Postgraduates,FG - Accounts & Business Planning,The University of Manchester,99137448,6495.56,Training Awards - Postgraduates
BEIS,UKRI - BBSRC,17/01/2022,Training Awards - Postgraduates,FG - Accounts & Business Planning,University of Edinburgh,99137449,6495.59,Training Awards - Postgraduates
BEIS,UKRI - BBSRC,17/01/2022,Training Awards - Postgraduates,FG - Accounts & Business Planning,University of Edinburgh,99137449,6495.56,Training Awards - Postgraduates
BEIS,UKRI - BBSRC,17/01/2022,Training Awards - Postgraduates,FG - Accounts & Business Planning,University of Edinburgh,99137450,6495.59,Training Awards - Postgraduates
BEIS,UKRI - BBSRC,17/01/2022,Training Awards - Postgraduates,FG - Accounts & Business Planning,University of Edinburgh,99137450,6495.56,Training Awards - Postgraduates
BEIS,UKRI - BBSRC,17/01/2022,Training Awards - Postgraduates,FG - Accounts & Business Planning,University of Edinburgh,99137451,6495.59,Training Awards - Postgraduates
BEIS,UKRI - BBSRC,17/01/2022,Training Awards - Postgraduates,FG - Accounts & Business Planning,University of Edinburgh,99137451,6495.56,Training Awards - Postgraduates
BEIS,UKRI - BBSRC,17/01/2022,Training Awards - Postgraduates,FG - Accounts & Business Planning,Heriot Watt University,99137452,6495.59,Training Awards - Postgraduates
BEIS,UKRI - BBSRC,17/01/2022,Training Awards - Postgraduates,FG - Accounts & Business Planning,Heriot Watt University,99137452,6495.56,Training Awards - Postgraduates
BEIS,UKRI - BBSRC,17/01/2022,Training Awards - Postgraduates,FG - Accounts & Business Planning,Kingston University,99137453,6995.58,Training Awards - Postgraduates
BEIS,UKRI - BBSRC,17/01/2022,Training Awards - Postgraduates,FG - Accounts & Business Planning,Kingston University,99137453,6995.56,Training Awards - Postgraduates
BEIS,UKRI - BBSRC,17/01/2022,Training Awards - Postgraduates,FG - Accounts & Business Planning,King's College London,99137454,6995.58,Training Awards - Postgraduates
BEIS,UKRI - BBSRC,17/01/2022,Training Awards - Postgraduates,FG - Accounts & Business Planning,King's College London,99137454,6995.56,Training Awards - Postgraduates
BEIS,UKRI - BBSRC,17/01/2022,Training Awards - Postgraduates,FG - Accounts & Business Planning,Imperial College London,99137455,6995.58,Training Awards - Postgraduates
BEIS,UKRI - BBSRC,17/01/2022,Training Awards - Postgraduates,FG - Accounts & Business Planning,Imperial College London,99137455,6995.56,Training Awards - Postgraduates
BEIS,UKRI - BBSRC,17/01/2022,Training Awards - Postgraduates,FG - Accounts & Business Planning,University of Nottingham,99137456,6495.59,Training Awards - Postgraduates
BEIS,UKRI - BBSRC,17/01/2022,Training Awards - Postgraduates,FG - Accounts & Business Planning,University of Nottingham,99137456,6495.56,Training Awards - Postgraduates
BEIS,UKRI - BBSRC,17/01/2022,Training Awards - Postgraduates,FG - Accounts & Business Planning,University of Liverpool,99137457,6495.59,Training Awards - Postgraduates
BEIS,UKRI - BBSRC,17/01/2022,Training Awards - Postgraduates,FG - Accounts & Business Planning,University of Liverpool,99137457,6495.56,Training Awards - Postgraduates
BEIS,UKRI - BBSRC,17/01/2022,Training Awards - Postgraduates,FG - Accounts & Business Planning,University of Leeds,99137458,6495.59,Training Awards - Postgraduates
BEIS,UKRI - BBSRC,17/01/2022,Training Awards - Postgraduates,FG - Accounts & Business Planning,University of Leeds,99137458,6495.56,Training Awards - Postgraduates
BEIS,UKRI - BBSRC,17/01/2022,Training Awards - Postgraduates,FG - Accounts & Business Planning,University of Glasgow,99137459,6495.59,Training Awards - Postgraduates
BEIS,UKRI - BBSRC,17/01/2022,Training Awards - Postgraduates,FG - Accounts & Business Planning,University of Glasgow,99137459,6495.56,Training Awards - Postgraduates
BEIS,UKRI - BBSRC,17/01/2022,Training Awards - Postgraduates,FG - Accounts & Business Planning,Babraham Institute,99137460,6495.59,Training Awards - Postgraduates
BEIS,UKRI - BBSRC,17/01/2022,Training Awards - Postgraduates,FG - Accounts & Business Planning,Babraham Institute,99137460,6495.56,Training Awards - Postgraduates
BEIS,UKRI - BBSRC,17/01/2022,Training Awards - Postgraduates,FG - Accounts & Business Planning,University of Sheffield,99137461,6495.56,Training Awards - Postgraduates
BEIS,UKRI - BBSRC,17/01/2022,Training Awards - Postgraduates,FG - Accounts & Business Planning,University of Nottingham,99137462,6495.59,Training Awards - Postgraduates
BEIS,UKRI - BBSRC,17/01/2022,Training Awards - Postgraduates,FG - Accounts & Business Planning,University of Nottingham,99137462,6495.56,Training Awards - Postgraduates
BEIS,UKRI - BBSRC,17/01/2022,Training Awards - Postgraduates,FG - Accounts & Business Planning,University of Birmingham GRANT,99137463,6495.59,Training Awards - Postgraduates
BEIS,UKRI - BBSRC,17/01/2022,Training Awards - Postgraduates,FG - Accounts & Business Planning,University of Birmingham GRANT,99137463,6495.56,Training Awards - Postgraduates
BEIS,UKRI - BBSRC,17/01/2022,Training Awards - Postgraduates,FG - Accounts & Business Planning,University College London,99137464,6995.58,Training Awards - Postgraduates
BEIS,UKRI - BBSRC,17/01/2022,Training Awards - Postgraduates,FG - Accounts & Business Planning,University College London,99137464,6995.56,Training Awards - Postgraduates
BEIS,UKRI - BBSRC,17/01/2022,Training Awards - Postgraduates,FG - Accounts & Business Planning,University College London,99137465,6995.58,Training Awards - Postgraduates
BEIS,UKRI - BBSRC,17/01/2022,Training Awards - Postgraduates,FG - Accounts & Business Planning,University College London,99137465,6995.56,Training Awards - Postgraduates
BEIS,UKRI - BBSRC,17/01/2022,Training Awards - Postgraduates,FG - Accounts & Business Planning,University College London,99137466,6995.58,Training Awards - Postgraduates
BEIS,UKRI - BBSRC,17/01/2022,Training Awards - Postgraduates,FG - Accounts & Business Planning,University College London,99137466,6995.56,Training Awards - Postgraduates
BEIS,UKRI - BBSRC,17/01/2022,Training Awards - Postgraduates,FG - Accounts & Business Planning,Institute of Cancer Research,99137467,6995.58,Training Awards - Postgraduates
BEIS,UKRI - BBSRC,17/01/2022,Training Awards - Postgraduates,FG - Accounts & Business Planning,Institute of Cancer Research,99137467,6995.56,Training Awards - Postgraduates
BEIS,UKRI - BBSRC,17/01/2022,Training Awards - Postgraduates,FG - Accounts & Business Planning,Brunel University London,99137468,6995.58,Training Awards - Postgraduates
BEIS,UKRI - BBSRC,17/01/2022,Training Awards - Postgraduates,FG - Accounts & Business Planning,Brunel University London,99137468,6995.56,Training Awards - Postgraduates
BEIS,UKRI - BBSRC,17/01/2022,Training Awards - Postgraduates,FG - Accounts & Business Planning,Queen Mary University of London,99137469,6995.58,Training Awards - Postgraduates
BEIS,UKRI - BBSRC,17/01/2022,Training Awards - Postgraduates,FG - Accounts & Business Planning,Queen Mary University of London,99137469,6995.56,Training Awards - Postgraduates
BEIS,UKRI - BBSRC,17/01/2022,Training Awards - Postgraduates,FG - Accounts & Business Planning,Imperial College London,99137470,6995.58,Training Awards - Postgraduates
BEIS,UKRI - BBSRC,17/01/2022,Training Awards - Postgraduates,FG - Accounts & Business Planning,Imperial College London,99137470,6995.56,Training Awards - Postgraduates
BEIS,UKRI - BBSRC,17/01/2022,Training Awards - Postgraduates,FG - Accounts & Business Planning,Imperial College London,99137471,6995.58,Training Awards - Postgraduates
BEIS,UKRI - BBSRC,17/01/2022,Training Awards - Postgraduates,FG - Accounts & Business Planning,Imperial College London,99137471,6995.56,Training Awards - Postgraduates
BEIS,UKRI - BBSRC,17/01/2022,Training Awards - Postgraduates,FG - Accounts & Business Planning,University of Sheffield,99137472,6495.56,Training Awards - Postgraduates
BEIS,UKRI - BBSRC,17/01/2022,Training Awards - Postgraduates,FG - Accounts & Business Planning,The University of Manchester,99137473,6495.56,Training Awards - Postgraduates
BEIS,UKRI - BBSRC,17/01/2022,Training Awards - Postgraduates,FG - Accounts & Business Planning,Babraham Institute,99137474,6495.59,Training Awards - Postgraduates
BEIS,UKRI - BBSRC,17/01/2022,Training Awards - Postgraduates,FG - Accounts & Business Planning,Babraham Institute,99137474,6495.56,Training Awards - Postgraduates
BEIS,UKRI - BBSRC,17/01/2022,Training Awards - Postgraduates,FG - Accounts & Business Planning,University of Newcastle Upon Tyne,99137475,6376.56,Training Awards - Postgraduates
BEIS,UKRI - BBSRC,17/01/2022,Training Awards - Postgraduates,FG - Accounts & Business Planning,University of Newcastle Upon Tyne,99137475,6376.63,Training Awards - Postgraduates
BEIS,UKRI - BBSRC,17/01/2022,Training Awards - Postgraduates,FG - Accounts & Business Planning,University of Aberdeen,99137476,6376.63,Training Awards - Postgraduates
BEIS,UKRI - BBSRC,17/01/2022,Training Awards - Postgraduates,FG - Accounts & Business Planning,University of Cambridge,99137477,6376.62,Training Awards - Postgraduates
BEIS,UKRI - BBSRC,17/01/2022,Training Awards - Postgraduates,FG - Accounts & Business Planning,The University of Manchester,99137478,6376.62,Training Awards - Postgraduates
BEIS,UKRI - BBSRC,17/01/2022,Training Awards - Postgraduates,FG - Accounts & Business Planning,Queen Mary University of London,99137479,6876.62,Training Awards - Postgraduates
BEIS,UKRI - BBSRC,17/01/2022,Training Awards - Postgraduates,FG - Accounts & Business Planning,King's College London,99137480,6876.62,Training Awards - Postgraduates
BEIS,UKRI - BBSRC,17/01/2022,Training Awards - Postgraduates,FG - Accounts & Business Planning,University of Southampton GRANT,99137481,6376.62,Training Awards - Postgraduates
BEIS,UKRI - BBSRC,17/01/2022,Training Awards - Postgraduates,FG - Accounts & Business Planning,University of Southampton GRANT,99137482,6376.62,Training Awards - Postgraduates
BEIS,UKRI - BBSRC,17/01/2022,Training Awards - Postgraduates,FG - Accounts & Business Planning,University of Southampton GRANT,99137482,6376.62,Training Awards - Postgraduates
BEIS,UKRI - BBSRC,17/01/2022,Training Awards - Postgraduates,FG - Accounts & Business Planning,National Institute For Agricultural Botany (NIAB),99137483,6376.62,Training Awards - Postgraduates
BEIS,UKRI - BBSRC,17/01/2022,Training Awards - Postgraduates,FG - Accounts & Business Planning,National Institute For Agricultural Botany (NIAB),99137484,6376.62,Training Awards - Postgraduates
BEIS,UKRI - BBSRC,17/01/2022,Training Awards - Postgraduates,FG - Accounts & Business Planning,National Institute For Agricultural Botany (NIAB),99137485,6376.62,Training Awards - Postgraduates
BEIS,UKRI - BBSRC,17/01/2022,Training Awards - Postgraduates,FG - Accounts & Business Planning,National Institute For Agricultural Botany (NIAB),99137486,6376.62,Training Awards - Postgraduates
BEIS,UKRI - BBSRC,17/01/2022,Training Awards - Postgraduates,FG - Accounts & Business Planning,National Institute For Agricultural Botany (NIAB),99137487,6376.62,Training Awards - Postgraduates
BEIS,UKRI - BBSRC,17/01/2022,Training Awards - Postgraduates,FG - Accounts & Business Planning,National Institute For Agricultural Botany (NIAB),99137488,6376.62,Training Awards - Postgraduates
BEIS,UKRI - BBSRC,17/01/2022,Training Awards - Postgraduates,FG - Accounts & Business Planning,University of Reading,99137489,11790.62,Training Awards - Postgraduates
BEIS,UKRI - BBSRC,17/01/2022,Training Awards - Postgraduates,FG - Accounts & Business Planning,University of Reading,99137490,6376.62,Training Awards - Postgraduates
BEIS,UKRI - BBSRC,17/01/2022,Training Awards - Postgraduates,FG - Accounts & Business Planning,University of Reading,99137491,6376.62,Training Awards - Postgraduates
BEIS,UKRI - BBSRC,17/01/2022,Training Awards - Postgraduates,FG - Accounts & Business Planning,Lancaster University,99137492,16430.62,Training Awards - Postgraduates
BEIS,UKRI - BBSRC,17/01/2022,Training Awards - Postgraduates,FG - Accounts & Business Planning,Lancaster University,99137493,6376.62,Training Awards - Postgraduates
BEIS,UKRI - BBSRC,17/01/2022,Training Awards - Postgraduates,FG - Accounts & Business Planning,Lancaster University,99137494,16430.62,Training Awards - Postgraduates
BEIS,UKRI - BBSRC,17/01/2022,Training Awards - Postgraduates,FG - Accounts & Business Planning,University of Oxford,99137495,6376.62,Training Awards - Postgraduates
BEIS,UKRI - BBSRC,17/01/2022,Training Awards - Postgraduates,FG - Accounts & Business Planning,University of Warwick,99137496,6376.62,Training Awards - Postgraduates
BEIS,UKRI - BBSRC,17/01/2022,Training Awards - Postgraduates,FG - Accounts & Business Planning,Queen Mary University of London,99137497,6876.62,Training Awards - Postgraduates
BEIS,UKRI - BBSRC,17/01/2022,Training Awards - Postgraduates,FG - Accounts & Business Planning,King's College London,99137498,6876.62,Training Awards - Postgraduates
BEIS,UKRI - BBSRC,17/01/2022,Training Awards - Postgraduates,FG - Accounts & Business Planning,King's College London,99137499,6876.62,Training Awards - Postgraduates
BEIS,UKRI - BBSRC,17/01/2022,Training Awards - Postgraduates,FG - Accounts & Business Planning,King's College London,99137500,6876.62,Training Awards - Postgraduates
BEIS,UKRI - BBSRC,17/01/2022,Training Awards - Postgraduates,FG - Accounts & Business Planning,Imperial College London,99137501,6876.62,Training Awards - Postgraduates
BEIS,UKRI - BBSRC,17/01/2022,Training Awards - Postgraduates,FG - Accounts & Business Planning,Imperial College London,99137502,6876.62,Training Awards - Postgraduates
BEIS,UKRI - BBSRC,17/01/2022,Training Awards - Postgraduates,FG - Accounts & Business Planning,University College London,99137503,6876.62,Training Awards - Postgraduates
BEIS,UKRI - BBSRC,17/01/2022,Training Awards - Postgraduates,FG - Accounts & Business Planning,University College London,99137504,6876.62,Training Awards - Postgraduates
BEIS,UKRI - BBSRC,17/01/2022,Training Awards - Postgraduates,FG - Accounts & Business Planning,Imperial College London,99137505,6876.62,Training Awards - Postgraduates
BEIS,UKRI - BBSRC,17/01/2022,Training Awards - Postgraduates,FG - Accounts & Business Planning,Imperial College London,99137505,6876.62,Training Awards - Postgraduates
BEIS,UKRI - BBSRC,17/01/2022,Training Awards - Postgraduates,FG - Accounts & Business Planning,Imperial College London,99137505,6876.62,Training Awards - Postgraduates
BEIS,UKRI - BBSRC,17/01/2022,Training Awards - Postgraduates,FG - Accounts & Business Planning,Imperial College London,99137505,6876.62,Training Awards - Postgraduates
BEIS,UKRI - BBSRC,17/01/2022,Training Awards - Postgraduates,FG - Accounts & Business Planning,Imperial College London,99137505,6876.62,Training Awards - Postgraduates
BEIS,UKRI - BBSRC,17/01/2022,Training Awards - Postgraduates,FG - Accounts & Business Planning,Imperial College London,99137505,6876.62,Training Awards - Postgraduates
BEIS,UKRI - BBSRC,17/01/2022,Training Awards - Postgraduates,FG - Accounts & Business Planning,University of Reading,99137506,2584,Training Awards - Postgraduates
BEIS,UKRI - BBSRC,17/01/2022,Training Awards - Postgraduates,FG - Accounts & Business Planning,University of Sheffield,99137507,6376.62,Training Awards - Postgraduates
BEIS,UKRI - BBSRC,17/01/2022,Training Awards - Postgraduates,FG - Accounts & Business Planning,University of Nottingham,99137508,6376.62,Training Awards - Postgraduates
BEIS,UKRI - BBSRC,17/01/2022,Training Awards - Postgraduates,FG - Accounts & Business Planning,University of Glasgow,99137509,6376.62,Training Awards - Postgraduates
BEIS,UKRI - BBSRC,17/01/2022,Training Awards - Postgraduates,FG - Accounts & Business Planning,University of Leeds,99137510,6376.62,Training Awards - Postgraduates
BEIS,UKRI - BBSRC,17/01/2022,Training Awards - Postgraduates,FG - Accounts & Business Planning,University of Cambridge,99137511,6376.62,Training Awards - Postgraduates
BEIS,UKRI - BBSRC,17/01/2022,Training Awards - Postgraduates,FG - Accounts & Business Planning,University of Cambridge,99137512,6376.62,Training Awards - Postgraduates
BEIS,UKRI - BBSRC,17/01/2022,Training Awards - Postgraduates,FG - Accounts & Business Planning,University of Cambridge,99137513,6376.62,Training Awards - Postgraduates
BEIS,UKRI - BBSRC,17/01/2022,Training Awards - Postgraduates,FG - Accounts & Business Planning,University of Cambridge,99137514,6376.62,Training Awards - Postgraduates
BEIS,UKRI - BBSRC,17/01/2022,Training Awards - Postgraduates,FG - Accounts & Business Planning,University of St Andrews,99137515,6376.62,Training Awards - Postgraduates
BEIS,UKRI - BBSRC,17/01/2022,Training Awards - Postgraduates,FG - Accounts & Business Planning,University of St Andrews,99137515,6376.62,Training Awards - Postgraduates
BEIS,UKRI - BBSRC,17/01/2022,Training Awards - Postgraduates,FG - Accounts & Business Planning,The University of Manchester,99137516,6376.62,Training Awards - Postgraduates
BEIS,UKRI - BBSRC,17/01/2022,Training Awards - Postgraduates,FG - Accounts & Business Planning,University of Exeter,99137517,6376.62,Training Awards - Postgraduates
BEIS,UKRI - BBSRC,17/01/2022,Training Awards - Postgraduates,FG - Accounts & Business Planning,University of Exeter,99137518,6376.62,Training Awards - Postgraduates
BEIS,UKRI - BBSRC,17/01/2022,Training Awards - Postgraduates,FG - Accounts & Business Planning,University of Exeter,99137518,6376.62,Training Awards - Postgraduates
BEIS,UKRI - BBSRC,17/01/2022,Training Awards - Postgraduates,FG - Accounts & Business Planning,Keele University,99137519,6376.62,Training Awards - Postgraduates
BEIS,UKRI - BBSRC,17/01/2022,Training Awards - Postgraduates,FG - Accounts & Business Planning,University of Edinburgh,99137520,6376.62,Training Awards - Postgraduates
BEIS,UKRI - BBSRC,17/01/2022,Training Awards - Postgraduates,FG - Accounts & Business Planning,Wellcome Trust Sanger Institute,99137521,6376.62,Training Awards - Postgraduates
BEIS,UKRI - BBSRC,17/01/2022,Training Awards - Postgraduates,FG - Accounts & Business Planning,University of Glasgow,99137522,6376.62,Training Awards - Postgraduates
BEIS,UKRI - BBSRC,17/01/2022,Training Awards - Postgraduates,FG - Accounts & Business Planning,University of Sheffield,99137523,6376.62,Training Awards - Postgraduates
BEIS,UKRI - BBSRC,17/01/2022,Training Awards - Postgraduates,FG - Accounts & Business Planning,University of Oxford,99137524,6376.62,Training Awards - Postgraduates
BEIS,UKRI - BBSRC,17/01/2022,Training Awards - Postgraduates,FG - Accounts & Business Planning,University of Oxford,99137524,6376.62,Training Awards - Postgraduates
BEIS,UKRI - BBSRC,17/01/2022,Training Awards - Postgraduates,FG - Accounts & Business Planning,University of Oxford,99137524,6376.62,Training Awards - Postgraduates
BEIS,UKRI - BBSRC,17/01/2022,Training Awards - Postgraduates,FG - Accounts & Business Planning,University of Oxford,99137524,6376.62,Training Awards - Postgraduates
BEIS,UKRI - BBSRC,17/01/2022,Training Awards - Postgraduates,FG - Accounts & Business Planning,University of Oxford,99137524,6376.62,Training Awards - Postgraduates
BEIS,UKRI - BBSRC,17/01/2022,Training Awards - Postgraduates,FG - Accounts & Business Planning,University of Oxford,99137524,6376.62,Training Awards - Postgraduates
BEIS,UKRI - BBSRC,17/01/2022,Training Awards - Postgraduates,FG - Accounts & Business Planning,University of Birmingham GRANT,99137525,4257,Training Awards - Postgraduates
BEIS,UKRI - BBSRC,17/01/2022,Training Awards - Postgraduates,FG - Accounts & Business Planning,University of Birmingham GRANT,99137525,6376.62,Training Awards - Postgraduates
BEIS,UKRI - BBSRC,17/01/2022,Training Awards - Postgraduates,FG - Accounts & Business Planning,The University of Manchester,99137526,6376.62,Training Awards - Postgraduates
BEIS,UKRI - BBSRC,17/01/2022,Training Awards - Postgraduates,FG - Accounts & Business Planning,University of Exeter,99137527,6376.62,Training Awards - Postgraduates
BEIS,UKRI - BBSRC,17/01/2022,Training Awards - Postgraduates,FG - Accounts & Business Planning,University of Exeter,99137528,6376.62,Training Awards - Postgraduates
BEIS,UKRI - BBSRC,17/01/2022,Training Awards - Postgraduates,FG - Accounts & Business Planning,University of Cambridge,99137529,6376.62,Training Awards - Postgraduates
BEIS,UKRI - BBSRC,17/01/2022,Training Awards - Postgraduates,FG - Accounts & Business Planning,University of Cambridge,99137530,6376.62,Training Awards - Postgraduates
BEIS,UKRI - BBSRC,17/01/2022,Training Awards - Postgraduates,FG - Accounts & Business Planning,Babraham Institute,99137531,6376.62,Training Awards - Postgraduates
BEIS,UKRI - BBSRC,17/01/2022,Training Awards - Postgraduates,FG - Accounts & Business Planning,University of Nottingham,99137532,6376.62,Training Awards - Postgraduates
BEIS,UKRI - BBSRC,17/01/2022,Training Awards - Postgraduates,FG - Accounts & Business Planning,University of Huddersfield,99137533,6376.62,Training Awards - Postgraduates
BEIS,UKRI - BBSRC,17/01/2022,Training Awards - Postgraduates,FG - Accounts & Business Planning,University of Leeds,99137534,6376.62,Training Awards - Postgraduates
BEIS,UKRI - BBSRC,17/01/2022,Training Awards - Postgraduates,FG - Accounts & Business Planning,University of Glasgow,99137535,6376.62,Training Awards - Postgraduates
BEIS,UKRI - BBSRC,17/01/2022,Training Awards - Postgraduates,FG - Accounts & Business Planning,University of Edinburgh,99137536,6376.62,Training Awards - Postgraduates
BEIS,UKRI - BBSRC,17/01/2022,Training Awards - Postgraduates,FG - Accounts & Business Planning,University of Edinburgh,99137536,6376.62,Training Awards - Postgraduates
BEIS,UKRI - BBSRC,17/01/2022,Training Awards - Postgraduates,FG - Accounts & Business Planning,University of Strathclyde,99137537,3370.15,Training Awards - Postgraduates
BEIS,UKRI - BBSRC,17/01/2022,Training Awards - Postgraduates,FG - Accounts & Business Planning,University of Strathclyde,99137537,6376.62,Training Awards - Postgraduates
BEIS,UKRI - BBSRC,17/01/2022,Training Awards - Postgraduates,FG - Accounts & Business Planning,University of Sheffield,99137538,6001.53,Training Awards - Postgraduates
BEIS,UKRI - BBSRC,17/01/2022,Training Awards - Postgraduates,FG - Accounts & Business Planning,University of Strathclyde,99137539,6376.62,Training Awards - Postgraduates
BEIS,UKRI - BBSRC,17/01/2022,Training Awards - Postgraduates,FG - Accounts & Business Planning,University of Strathclyde,99137539,6376.62,Training Awards - Postgraduates
BEIS,UKRI - BBSRC,17/01/2022,Training Awards - Postgraduates,FG - Accounts & Business Planning,University of Strathclyde,99137539,6376.62,Training Awards - Postgraduates
BEIS,UKRI - BBSRC,17/01/2022,Training Awards - Postgraduates,FG - Accounts & Business Planning,University of Strathclyde,99137539,6376.62,Training Awards - Postgraduates
BEIS,UKRI - BBSRC,17/01/2022,Training Awards - Postgraduates,FG - Accounts & Business Planning,University of Strathclyde,99137539,6376.62,Training Awards - Postgraduates
BEIS,UKRI - BBSRC,17/01/2022,Training Awards - Postgraduates,FG - Accounts & Business Planning,University of Strathclyde,99137539,6376.62,Training Awards - Postgraduates
BEIS,UKRI - BBSRC,17/01/2022,Training Awards - Postgraduates,FG - Accounts & Business Planning,University of Edinburgh,99137540,6376.62,Training Awards - Postgraduates
BEIS,UKRI - BBSRC,17/01/2022,Training Awards - Postgraduates,FG - Accounts & Business Planning,University of Edinburgh,99137540,6376.62,Training Awards - Postgraduates
BEIS,UKRI - BBSRC,17/01/2022,Training Awards - Postgraduates,FG - Accounts & Business Planning,University of Edinburgh,99137540,6376.62,Training Awards - Postgraduates
BEIS,UKRI - BBSRC,17/01/2022,Training Awards - Postgraduates,FG - Accounts & Business Planning,University of Edinburgh,99137540,6376.62,Training Awards - Postgraduates
BEIS,UKRI - BBSRC,17/01/2022,Training Awards - Postgraduates,FG - Accounts & Business Planning,University of Edinburgh,99137540,6376.62,Training Awards - Postgraduates
BEIS,UKRI - BBSRC,17/01/2022,Training Awards - Postgraduates,FG - Accounts & Business Planning,University of Edinburgh,99137540,6376.62,Training Awards - Postgraduates
BEIS,UKRI - BBSRC,17/01/2022,Training Awards - Postgraduates,FG - Accounts & Business Planning,University of Aberdeen,99137541,6376.62,Training Awards - Postgraduates
BEIS,UKRI - BBSRC,17/01/2022,Training Awards - Postgraduates,FG - Accounts & Business Planning,University of Aberdeen,99137541,6376.62,Training Awards - Postgraduates
BEIS,UKRI - BBSRC,17/01/2022,Training Awards - Postgraduates,FG - Accounts & Business Planning,University of Aberdeen,99137541,6376.62,Training Awards - Postgraduates
BEIS,UKRI - BBSRC,17/01/2022,Training Awards - Postgraduates,FG - Accounts & Business Planning,University of Aberdeen,99137541,6376.62,Training Awards - Postgraduates
BEIS,UKRI - BBSRC,17/01/2022,Training Awards - Postgraduates,FG - Accounts & Business Planning,University of Aberdeen,99137541,6376.62,Training Awards - Postgraduates
BEIS,UKRI - BBSRC,17/01/2022,Training Awards - Postgraduates,FG - Accounts & Business Planning,University of Aberdeen,99137541,6376.62,Training Awards - Postgraduates
BEIS,UKRI - BBSRC,17/01/2022,Training Awards - Postgraduates,FG - Accounts & Business Planning,University of York,99137542,6376.62,Training Awards - Postgraduates
BEIS,UKRI - BBSRC,17/01/2022,Training Awards - Postgraduates,FG - Accounts & Business Planning,University of Edinburgh,99137543,6376.62,Training Awards - Postgraduates
BEIS,UKRI - BBSRC,17/01/2022,Training Awards - Postgraduates,FG - Accounts & Business Planning,University of Edinburgh,99137543,6376.62,Training Awards - Postgraduates
BEIS,UKRI - BBSRC,17/01/2022,Training Awards - Postgraduates,FG - Accounts & Business Planning,University of Edinburgh,99137543,6376.62,Training Awards - Postgraduates
BEIS,UKRI - BBSRC,17/01/2022,Training Awards - Postgraduates,FG - Accounts & Business Planning,University of Edinburgh,99137543,6376.62,Training Awards - Postgraduates
BEIS,UKRI - BBSRC,17/01/2022,Training Awards - Postgraduates,FG - Accounts & Business Planning,University of Edinburgh,99137543,6376.62,Training Awards - Postgraduates
BEIS,UKRI - BBSRC,17/01/2022,Training Awards - Postgraduates,FG - Accounts & Business Planning,University of Edinburgh,99137543,6376.62,Training Awards - Postgraduates
BEIS,UKRI - BBSRC,17/01/2022,Training Awards - Postgraduates,FG - Accounts & Business Planning,Heriot Watt University,99137544,6376.62,Training Awards - Postgraduates
BEIS,UKRI - BBSRC,17/01/2022,Training Awards - Postgraduates,FG - Accounts & Business Planning,Heriot Watt University,99137544,6376.62,Training Awards - Postgraduates
BEIS,UKRI - BBSRC,17/01/2022,Training Awards - Postgraduates,FG - Accounts & Business Planning,Heriot Watt University,99137544,6376.62,Training Awards - Postgraduates
BEIS,UKRI - BBSRC,17/01/2022,Training Awards - Postgraduates,FG - Accounts & Business Planning,Heriot Watt University,99137544,6376.62,Training Awards - Postgraduates
BEIS,UKRI - BBSRC,17/01/2022,Training Awards - Postgraduates,FG - Accounts & Business Planning,Heriot Watt University,99137544,6376.62,Training Awards - Postgraduates
BEIS,UKRI - BBSRC,17/01/2022,Training Awards - Postgraduates,FG - Accounts & Business Planning,Heriot Watt University,99137544,6376.62,Training Awards - Postgraduates
BEIS,UKRI - BBSRC,17/01/2022,Training Awards - Postgraduates,FG - Accounts & Business Planning,University of Edinburgh,99137545,6376.62,Training Awards - Postgraduates
BEIS,UKRI - BBSRC,17/01/2022,Training Awards - Postgraduates,FG - Accounts & Business Planning,University of Edinburgh,99137545,6376.62,Training Awards - Postgraduates
BEIS,UKRI - BBSRC,17/01/2022,Training Awards - Postgraduates,FG - Accounts & Business Planning,University of Edinburgh,99137545,6376.62,Training Awards - Postgraduates
BEIS,UKRI - BBSRC,17/01/2022,Training Awards - Postgraduates,FG - Accounts & Business Planning,University of Edinburgh,99137545,6376.62,Training Awards - Postgraduates
BEIS,UKRI - BBSRC,17/01/2022,Training Awards - Postgraduates,FG - Accounts & Business Planning,University of Edinburgh,99137545,6376.62,Training Awards - Postgraduates
BEIS,UKRI - BBSRC,17/01/2022,Training Awards - Postgraduates,FG - Accounts & Business Planning,University of Edinburgh,99137545,6376.62,Training Awards - Postgraduates
BEIS,UKRI - BBSRC,17/01/2022,Training Awards - Postgraduates,FG - Accounts & Business Planning,University of Greenwich,99137546,89664.25,Training Awards - Postgraduates
BEIS,UKRI - BBSRC,17/01/2022,Training Awards - Postgraduates,FG - Accounts & Business Planning,University of Greenwich,99137546,189664.25,Training Awards - Postgraduates
BEIS,UKRI - BBSRC,17/01/2022,Training Awards - Postgraduates,FG - Accounts & Business Planning,The University of Manchester,99137547,6267.44,Training Awards - Postgraduates
BEIS,UKRI - BBSRC,17/01/2022,Training Awards - Postgraduates,FG - Accounts & Business Planning,The University of Manchester,99137548,6267.44,Training Awards - Postgraduates
BEIS,UKRI - BBSRC,17/01/2022,Training Awards - Postgraduates,FG - Accounts & Business Planning,The University of Manchester,99137549,6267.44,Training Awards - Postgraduates
BEIS,UKRI - BBSRC,17/01/2022,Training Awards - Postgraduates,FG - Accounts & Business Planning,University of Nottingham,99137550,16321.44,Training Awards - Postgraduates
BEIS,UKRI - BBSRC,17/01/2022,Training Awards - Postgraduates,FG - Accounts & Business Planning,University of Warwick,99137551,6267.44,Training Awards - Postgraduates
BEIS,UKRI - BBSRC,17/01/2022,Training Awards - Postgraduates,FG - Accounts & Business Planning,University of Nottingham,99137552,6267.44,Training Awards - Postgraduates
BEIS,UKRI - BBSRC,17/01/2022,Training Awards - Postgraduates,FG - Accounts & Business Planning,University of Durham,99137553,6267.44,Training Awards - Postgraduates
BEIS,UKRI - BBSRC,17/01/2022,Training Awards - Postgraduates,FG - Accounts & Business Planning,University of Cambridge,99137554,6267.44,Training Awards - Postgraduates
BEIS,UKRI - BBSRC,17/01/2022,Training Awards - Postgraduates,FG - Accounts & Business Planning,National Institute For Agricultural Botany (NIAB),99137555,6267.44,Training Awards - Postgraduates
BEIS,UKRI - BBSRC,17/01/2022,Training Awards - Postgraduates,FG - Accounts & Business Planning,National Institute For Agricultural Botany (NIAB),99137556,6267.44,Training Awards - Postgraduates
BEIS,UKRI - BBSRC,17/01/2022,Training Awards - Postgraduates,FG - Accounts & Business Planning,University of Exeter,99137557,5013.95,Training Awards - Postgraduates
BEIS,UKRI - BBSRC,17/01/2022,Training Awards - Postgraduates,FG - Accounts & Business Planning,University of Reading,99137558,6267.44,Training Awards - Postgraduates
BEIS,UKRI - BBSRC,17/01/2022,Training Awards - Postgraduates,FG - Accounts & Business Planning,National Institute For Agricultural Botany (NIAB),99137559,6267.44,Training Awards - Postgraduates
BEIS,UKRI - BBSRC,17/01/2022,Training Awards - Postgraduates,FG - Accounts & Business Planning,National Institute For Agricultural Botany (NIAB),99137560,6267.44,Training Awards - Postgraduates
BEIS,UKRI - BBSRC,17/01/2022,Training Awards - Postgraduates,FG - Accounts & Business Planning,National Institute For Agricultural Botany (NIAB),99137561,6267.44,Training Awards - Postgraduates
BEIS,UKRI - BBSRC,17/01/2022,Training Awards - Postgraduates,FG - Accounts & Business Planning,Quadram Institute Bioscience,99137562,6267.44,Training Awards - Postgraduates
BEIS,UKRI - BBSRC,17/01/2022,Training Awards - Postgraduates,FG - Accounts & Business Planning,University College London,99137563,6344.49,Training Awards - Postgraduates
BEIS,UKRI - BBSRC,17/01/2022,Training Awards - Postgraduates,FG - Accounts & Business Planning,Lancaster University,99137564,12871.44,Training Awards - Postgraduates
BEIS,UKRI - BBSRC,17/01/2022,Training Awards - Postgraduates,FG - Accounts & Business Planning,University of Nottingham,99137565,14794.66,Training Awards - Postgraduates
BEIS,UKRI - BBSRC,17/01/2022,Training Awards - Postgraduates,FG - Accounts & Business Planning,University of Liverpool,99137566,9869.44,Training Awards - Postgraduates
BEIS,UKRI - BBSRC,17/01/2022,Training Awards - Postgraduates,FG - Accounts & Business Planning,University of Strathclyde,99137567,6267.44,Training Awards - Postgraduates
BEIS,UKRI - BBSRC,17/01/2022,Training Awards - Postgraduates,FG - Accounts & Business Planning,"Royal Holloway, University of London",99137568,12730.44,Training Awards - Postgraduates
BEIS,UKRI - BBSRC,17/01/2022,Training Awards - Postgraduates,FG - Accounts & Business Planning,Lancaster University,99137569,14071.44,Training Awards - Postgraduates
BEIS,UKRI - BBSRC,17/01/2022,Training Awards - Postgraduates,FG - Accounts & Business Planning,University of Reading,99137570,10907.44,Training Awards - Postgraduates
BEIS,UKRI - BBSRC,17/01/2022,Training Awards - Postgraduates,FG - Accounts & Business Planning,Lancaster University,99137571,11670.44,Training Awards - Postgraduates
BEIS,UKRI - BBSRC,17/01/2022,Training Awards - Postgraduates,FG - Accounts & Business Planning,Lancaster University,99137572,6267.44,Training Awards - Postgraduates
BEIS,UKRI - BBSRC,17/01/2022,Training Awards - Postgraduates,FG - Accounts & Business Planning,Lancaster University,99137573,6267.44,Training Awards - Postgraduates
BEIS,UKRI - BBSRC,17/01/2022,Training Awards - Postgraduates,FG - Accounts & Business Planning,University of Liverpool,99137574,6267.44,Training Awards - Postgraduates
BEIS,UKRI - BBSRC,17/01/2022,Training Awards - Postgraduates,FG - Accounts & Business Planning,Queen Mary University of London,99137575,6767.44,Training Awards - Postgraduates
BEIS,UKRI - BBSRC,17/01/2022,Training Awards - Postgraduates,FG - Accounts & Business Planning,King's College London,99137576,6767.44,Training Awards - Postgraduates
BEIS,UKRI - BBSRC,17/01/2022,Training Awards - Postgraduates,FG - Accounts & Business Planning,University of Birmingham GRANT,99137577,6267.44,Training Awards - Postgraduates
BEIS,UKRI - BBSRC,17/01/2022,Training Awards - Postgraduates,FG - Accounts & Business Planning,University of Strathclyde,99137578,6267.44,Training Awards - Postgraduates
BEIS,UKRI - BBSRC,17/01/2022,Training Awards - Postgraduates,FG - Accounts & Business Planning,University of Strathclyde,99137579,6267.44,Training Awards - Postgraduates
BEIS,UKRI - BBSRC,17/01/2022,Training Awards - Postgraduates,FG - Accounts & Business Planning,University of York,99137580,1687,Training Awards - Postgraduates
BEIS,UKRI - BBSRC,17/01/2022,Training Awards - Postgraduates,FG - Accounts & Business Planning,University of York,99137580,9869.44,Training Awards - Postgraduates
BEIS,UKRI - BBSRC,17/01/2022,Training Awards - Postgraduates,FG - Accounts & Business Planning,University of Newcastle Upon Tyne,99137581,15548.44,Training Awards - Postgraduates
BEIS,UKRI - BBSRC,17/01/2022,Training Awards - Postgraduates,FG - Accounts & Business Planning,University of Edinburgh,99137582,6267.44,Training Awards - Postgraduates
BEIS,UKRI - BBSRC,17/01/2022,Training Awards - Postgraduates,FG - Accounts & Business Planning,Lancaster University,99137583,14001.44,Training Awards - Postgraduates
BEIS,UKRI - BBSRC,17/01/2022,Training Awards - Postgraduates,FG - Accounts & Business Planning,University of Newcastle Upon Tyne,99137584,6267.44,Training Awards - Postgraduates
BEIS,UKRI - BBSRC,17/01/2022,Training Awards - Postgraduates,FG - Accounts & Business Planning,The University of Manchester,99137585,6267.44,Training Awards - Postgraduates
BEIS,UKRI - BBSRC,17/01/2022,Training Awards - Postgraduates,FG - Accounts & Business Planning,The Scottish Association for Marine Science (SAMS Group),99137586,6267.44,Training Awards - Postgraduates
BEIS,UKRI - BBSRC,17/01/2022,Training Awards - Postgraduates,FG - Accounts & Business Planning,University of Edinburgh,99137587,6267.44,Training Awards - Postgraduates
BEIS,UKRI - BBSRC,17/01/2022,Training Awards - Postgraduates,FG - Accounts & Business Planning,University of Edinburgh,99137588,6267.44,Training Awards - Postgraduates
BEIS,UKRI - BBSRC,17/01/2022,Training Awards - Postgraduates,FG - Accounts & Business Planning,The University of Manchester,99137589,6267.44,Training Awards - Postgraduates
BEIS,UKRI - BBSRC,17/01/2022,Training Awards - Postgraduates,FG - Accounts & Business Planning,University of Sheffield,99137590,10907.44,Training Awards - Postgraduates
BEIS,UKRI - BBSRC,17/01/2022,Training Awards - Postgraduates,FG - Accounts & Business Planning,University of Sheffield,99137591,6267.44,Training Awards - Postgraduates
BEIS,UKRI - BBSRC,17/01/2022,Training Awards - Postgraduates,FG - Accounts & Business Planning,University of Cambridge,99137592,6267.44,Training Awards - Postgraduates
BEIS,UKRI - BBSRC,17/01/2022,Training Awards - Postgraduates,FG - Accounts & Business Planning,King's College London,99137593,11940.44,Training Awards - Postgraduates
BEIS,UKRI - BBSRC,17/01/2022,Training Awards - Postgraduates,FG - Accounts & Business Planning,Sheffield Hallam University,99137594,6267.44,Training Awards - Postgraduates
BEIS,UKRI - BBSRC,17/01/2022,Training Awards - Postgraduates,FG - Accounts & Business Planning,University of Leeds,99137595,6267.44,Training Awards - Postgraduates
BEIS,UKRI - BBSRC,17/01/2022,Training Awards - Postgraduates,FG - Accounts & Business Planning,Babraham Institute,99137596,6267.44,Training Awards - Postgraduates
BEIS,UKRI - BBSRC,17/01/2022,Training Awards - Postgraduates,FG - Accounts & Business Planning,The University of Manchester,99137597,4821.11,Training Awards - Postgraduates
BEIS,UKRI - BBSRC,17/01/2022,Training Awards - Postgraduates,FG - Accounts & Business Planning,The University of Manchester,99137597,4821.11,Training Awards - Postgraduates
BEIS,UKRI - BBSRC,17/01/2022,Training Awards - Postgraduates,FG - Accounts & Business Planning,The University of Manchester,99137597,4821.11,Training Awards - Postgraduates
BEIS,UKRI - BBSRC,17/01/2022,Training Awards - Postgraduates,FG - Accounts & Business Planning,The University of Manchester,99137597,6267.44,Training Awards - Postgraduates
BEIS,UKRI - BBSRC,17/01/2022,Training Awards - Postgraduates,FG - Accounts & Business Planning,The University of Manchester,99137597,4821.11,Training Awards - Postgraduates
BEIS,UKRI - BBSRC,17/01/2022,Training Awards - Postgraduates,FG - Accounts & Business Planning,The University of Manchester,99137598,10211.05,Training Awards - Postgraduates
BEIS,UKRI - BBSRC,17/01/2022,Training Awards - Postgraduates,FG - Accounts & Business Planning,The University of Manchester,99137599,6267.44,Training Awards - Postgraduates
BEIS,UKRI - BBSRC,17/01/2022,Training Awards - Postgraduates,FG - Accounts & Business Planning,University of Nottingham,99137600,6267.44,Training Awards - Postgraduates
BEIS,UKRI - BBSRC,17/01/2022,Training Awards - Postgraduates,FG - Accounts & Business Planning,University of Nottingham,99137601,20188.44,Training Awards - Postgraduates
BEIS,UKRI - BBSRC,17/01/2022,Training Awards - Postgraduates,FG - Accounts & Business Planning,University of Nottingham,99137602,6267.44,Training Awards - Postgraduates
BEIS,UKRI - BBSRC,17/01/2022,Training Awards - Postgraduates,FG - Accounts & Business Planning,Cardiff University,99137603,6267.44,Training Awards - Postgraduates
BEIS,UKRI - BBSRC,17/01/2022,Training Awards - Postgraduates,FG - Accounts & Business Planning,Queen's University Belfast GRANT,99137604,6267.44,Training Awards - Postgraduates
BEIS,UKRI - BBSRC,17/01/2022,Training Awards - Postgraduates,FG - Accounts & Business Planning,University of Cambridge,99137605,6267.44,Training Awards - Postgraduates
BEIS,UKRI - BBSRC,17/01/2022,Training Awards - Postgraduates,FG - Accounts & Business Planning,University of Glasgow,99137606,6267.44,Training Awards - Postgraduates
BEIS,UKRI - BBSRC,17/01/2022,Training Awards - Postgraduates,FG - Accounts & Business Planning,University of Glasgow,99137607,9729.44,Training Awards - Postgraduates
BEIS,UKRI - BBSRC,17/01/2022,Training Awards - Postgraduates,FG - Accounts & Business Planning,University of Glasgow,99137608,6267.44,Training Awards - Postgraduates
BEIS,UKRI - BBSRC,17/01/2022,Training Awards - Postgraduates,FG - Accounts & Business Planning,University College London,99137609,6767.44,Training Awards - Postgraduates
BEIS,UKRI - BBSRC,17/01/2022,Training Awards - Postgraduates,FG - Accounts & Business Planning,University College London,99137610,17822.44,Training Awards - Postgraduates
BEIS,UKRI - BBSRC,17/01/2022,Training Awards - Postgraduates,FG - Accounts & Business Planning,European Bioinformatics Institute,99137611,6267.44,Training Awards - Postgraduates
BEIS,UKRI - BBSRC,17/01/2022,Training Awards - Postgraduates,FG - Accounts & Business Planning,Rothamsted Research Ltd,99137612,6267.44,Training Awards - Postgraduates
BEIS,UKRI - BBSRC,17/01/2022,Training Awards - Postgraduates,FG - Accounts & Business Planning,Rothamsted Research Ltd,99137612,6267.44,Training Awards - Postgraduates
BEIS,UKRI - BBSRC,17/01/2022,Training Awards - Postgraduates,FG - Accounts & Business Planning,University of Newcastle Upon Tyne,99137613,6267.44,Training Awards - Postgraduates
BEIS,UKRI - BBSRC,17/01/2022,Training Awards - Postgraduates,FG - Accounts & Business Planning,University of Newcastle Upon Tyne,99137614,6267.44,Training Awards - Postgraduates
BEIS,UKRI - BBSRC,17/01/2022,Training Awards - Postgraduates,FG - Accounts & Business Planning,University of Newcastle Upon Tyne,99137615,10907.44,Training Awards - Postgraduates
BEIS,UKRI - BBSRC,17/01/2022,Training Awards - Postgraduates,FG - Accounts & Business Planning,University of Bristol GRANT,99137616,9869.44,Training Awards - Postgraduates
BEIS,UKRI - BBSRC,17/01/2022,Training Awards - Postgraduates,FG - Accounts & Business Planning,University of Exeter,99137617,7816.44,Training Awards - Postgraduates
BEIS,UKRI - BBSRC,17/01/2022,Training Awards - Postgraduates,FG - Accounts & Business Planning,University of Birmingham GRANT,99137618,6267.44,Training Awards - Postgraduates
BEIS,UKRI - BBSRC,17/01/2022,Training Awards - Postgraduates,FG - Accounts & Business Planning,University of Birmingham GRANT,99137619,6267.44,Training Awards - Postgraduates
BEIS,UKRI - BBSRC,17/01/2022,Training Awards - Postgraduates,FG - Accounts & Business Planning,University of York,99137620,6267.44,Training Awards - Postgraduates
BEIS,UKRI - BBSRC,17/01/2022,Training Awards - Postgraduates,FG - Accounts & Business Planning,University of York,99137621,6267.44,Training Awards - Postgraduates
BEIS,UKRI - BBSRC,17/01/2022,Training Awards - Postgraduates,FG - Accounts & Business Planning,Queen Mary University of London,99137622,6767.44,Training Awards - Postgraduates
BEIS,UKRI - BBSRC,17/01/2022,Training Awards - Postgraduates,FG - Accounts & Business Planning,University of Edinburgh,99137623,11271.44,Training Awards - Postgraduates
BEIS,UKRI - BBSRC,17/01/2022,Training Awards - Postgraduates,FG - Accounts & Business Planning,University of Reading,99137624,6267.44,Training Awards - Postgraduates
BEIS,UKRI - BBSRC,17/01/2022,Training Awards - Postgraduates,FG - Accounts & Business Planning,University of Leeds,99137625,6267.44,Training Awards - Postgraduates
BEIS,UKRI - BBSRC,17/01/2022,Training Awards - Postgraduates,FG - Accounts & Business Planning,University of Durham,99137626,16321.44,Training Awards - Postgraduates
BEIS,UKRI - BBSRC,17/01/2022,Training Awards - Postgraduates,FG - Accounts & Business Planning,Keele University,99137627,12739.44,Training Awards - Postgraduates
BEIS,UKRI - BBSRC,17/01/2022,Training Awards - Postgraduates,FG - Accounts & Business Planning,King's College London,99137628,6767.44,Training Awards - Postgraduates
BEIS,UKRI - BBSRC,17/01/2022,Training Awards - Postgraduates,FG - Accounts & Business Planning,King's College London,99137629,6767.44,Training Awards - Postgraduates
BEIS,UKRI - BBSRC,17/01/2022,Training Awards - Postgraduates,FG - Accounts & Business Planning,Imperial College London,99137630,14956.95,Training Awards - Postgraduates
BEIS,UKRI - BBSRC,17/01/2022,Training Awards - Postgraduates,FG - Accounts & Business Planning,Imperial College London,99137631,6767.44,Training Awards - Postgraduates
BEIS,UKRI - BBSRC,17/01/2022,Training Awards - Postgraduates,FG - Accounts & Business Planning,Imperial College London,99137632,17822.44,Training Awards - Postgraduates
BEIS,UKRI - BBSRC,17/01/2022,Training Awards - Postgraduates,FG - Accounts & Business Planning,University of Liverpool,99137633,6267.44,Training Awards - Postgraduates
BEIS,UKRI - BBSRC,17/01/2022,Training Awards - Postgraduates,FG - Accounts & Business Planning,University of Cambridge,99137634,6267.44,Training Awards - Postgraduates
BEIS,UKRI - BBSRC,17/01/2022,Training Awards - Postgraduates,FG - Accounts & Business Planning,University of Sheffield,99137635,5571.05,Training Awards - Postgraduates
BEIS,UKRI - BBSRC,17/01/2022,Training Awards - Postgraduates,FG - Accounts & Business Planning,University of Southampton GRANT,99137636,11294.44,Training Awards - Postgraduates
BEIS,UKRI - BBSRC,17/01/2022,Training Awards - Postgraduates,FG - Accounts & Business Planning,University of Southampton GRANT,99137637,11294.44,Training Awards - Postgraduates
BEIS,UKRI - BBSRC,17/01/2022,Training Awards - Postgraduates,FG - Accounts & Business Planning,University of Hertfordshire,99137638,6267.44,Training Awards - Postgraduates
BEIS,UKRI - BBSRC,17/01/2022,Training Awards - Postgraduates,FG - Accounts & Business Planning,University of Dundee,99137639,6267.44,Training Awards - Postgraduates
BEIS,UKRI - BBSRC,17/01/2022,Training Awards - Postgraduates,FG - Accounts & Business Planning,University of Edinburgh,99137640,10057.5,Training Awards - Postgraduates
BEIS,UKRI - BBSRC,17/01/2022,Training Awards - Postgraduates,FG - Accounts & Business Planning,University of Oxford,99137641,6279.3,Training Awards - Postgraduates
BEIS,UKRI - BBSRC,17/01/2022,Training Awards - Postgraduates,FG - Accounts & Business Planning,University of Oxford,99137641,441082.9,Training Awards - Postgraduates
BEIS,UKRI - BBSRC,17/01/2022,Training Awards - Postgraduates,FG - Accounts & Business Planning,University of Reading,99137642,3057.69,Training Awards - Postgraduates
BEIS,UKRI - BBSRC,17/01/2022,Training Awards - Postgraduates,FG - Accounts & Business Planning,University of Reading,99137642,354513.66,Training Awards - Postgraduates
BEIS,UKRI - BBSRC,17/01/2022,Training Awards - Postgraduates,FG - Accounts & Business Planning,University of Southampton GRANT,99137643,325318.67,Training Awards - Postgraduates
BEIS,UKRI - BBSRC,17/01/2022,Training Awards - Postgraduates,FG - Accounts & Business Planning,University of Edinburgh,99137644,119147.87,Training Awards - Postgraduates
BEIS,UKRI - BBSRC,17/01/2022,Training Awards - Postgraduates,FG - Accounts & Business Planning,University of Bristol GRANT,99137645,3111.9,Training Awards - Postgraduates
BEIS,UKRI - BBSRC,17/01/2022,Training Awards - Postgraduates,FG - Accounts & Business Planning,University of Bristol GRANT,99137645,409988.4,Training Awards - Postgraduates
BEIS,UKRI - BBSRC,17/01/2022,Training Awards - Postgraduates,FG - Accounts & Business Planning,The University of Manchester,99137646,368991,Training Awards - Postgraduates
BEIS,UKRI - BBSRC,17/01/2022,Training Awards - Postgraduates,FG - Accounts & Business Planning,John Innes Centre,99137647,2651.12,Training Awards - Postgraduates
BEIS,UKRI - BBSRC,17/01/2022,Training Awards - Postgraduates,FG - Accounts & Business Planning,John Innes Centre,99137647,429652.4,Training Awards - Postgraduates
BEIS,UKRI - BBSRC,17/01/2022,Training Awards - Postgraduates,FG - Accounts & Business Planning,University College London,99137648,697802.34,Training Awards - Postgraduates
BEIS,UKRI - BBSRC,17/01/2022,Training Awards - Postgraduates,FG - Accounts & Business Planning,University of Liverpool,99137649,249770.94,Training Awards - Postgraduates
BEIS,UKRI - BBSRC,17/01/2022,Training Awards - Postgraduates,FG - Accounts & Business Planning,University of Nottingham,99137650,6916.25,Training Awards - Postgraduates
BEIS,UKRI - BBSRC,17/01/2022,Training Awards - Postgraduates,FG - Accounts & Business Planning,University of Nottingham,99137650,468751.88,Training Awards - Postgraduates
BEIS,UKRI - BBSRC,17/01/2022,Training Awards - Postgraduates,FG - Accounts & Business Planning,University of Warwick,99137651,650,Training Awards - Postgraduates
BEIS,UKRI - BBSRC,17/01/2022,Training Awards - Postgraduates,FG - Accounts & Business Planning,University of Warwick,99137651,562888.86,Training Awards - Postgraduates
BEIS,UKRI - BBSRC,17/01/2022,Training Awards - Postgraduates,FG - Accounts & Business Planning,University of Leeds,99137652,316727.67,Training Awards - Postgraduates
BEIS,UKRI - BBSRC,17/01/2022,Training Awards - Postgraduates,FG - Accounts & Business Planning,University of Edinburgh,99137653,8252.85,Training Awards - Postgraduates
BEIS,UKRI - BBSRC,17/01/2022,Training Awards - Postgraduates,FG - Accounts & Business Planning,University of Cambridge,99137654,6189.63,Training Awards - Postgraduates
BEIS,UKRI - BBSRC,17/01/2022,Training Awards - Postgraduates,FG - Accounts & Business Planning,University of Oxford,99137655,6189.63,Training Awards - Postgraduates
BEIS,UKRI - BBSRC,17/01/2022,Training Awards - Postgraduates,FG - Accounts & Business Planning,University of Oxford,99137656,6189.63,Training Awards - Postgraduates
BEIS,UKRI - BBSRC,17/01/2022,Training Awards - Postgraduates,FG - Accounts & Business Planning,University of Oxford,99137657,6189.63,Training Awards - Postgraduates
BEIS,UKRI - BBSRC,17/01/2022,Training Awards - Postgraduates,FG - Accounts & Business Planning,University of Oxford,99137658,6189.63,Training Awards - Postgraduates
BEIS,UKRI - BBSRC,17/01/2022,Training Awards - Postgraduates,FG - Accounts & Business Planning,University of Cambridge,99137659,6189.63,Training Awards - Postgraduates
BEIS,UKRI - BBSRC,17/01/2022,Training Awards - Postgraduates,FG - Accounts & Business Planning,University of Cambridge,99137660,11292.63,Training Awards - Postgraduates
BEIS,UKRI - BBSRC,17/01/2022,Training Awards - Postgraduates,FG - Accounts & Business Planning,King's College London,99137661,8919.51,Training Awards - Postgraduates
BEIS,UKRI - BBSRC,17/01/2022,Training Awards - Postgraduates,FG - Accounts & Business Planning,Queen Mary University of London,99137662,6243.66,Training Awards - Postgraduates
BEIS,UKRI - BBSRC,17/01/2022,Training Awards - Postgraduates,FG - Accounts & Business Planning,London School of Hygiene & Tropical Medicine,99137663,6689.63,Training Awards - Postgraduates
BEIS,UKRI - BBSRC,17/01/2022,Training Awards - Postgraduates,FG - Accounts & Business Planning,University College London,99137664,6689.63,Training Awards - Postgraduates
BEIS,UKRI - BBSRC,17/01/2022,Training Awards - Postgraduates,FG - Accounts & Business Planning,University College London,99137665,6689.63,Training Awards - Postgraduates
BEIS,UKRI - BBSRC,17/01/2022,Training Awards - Postgraduates,FG - Accounts & Business Planning,King's College London,99137666,14030.63,Training Awards - Postgraduates
BEIS,UKRI - BBSRC,17/01/2022,Training Awards - Postgraduates,FG - Accounts & Business Planning,University of Leeds,99137667,6189.63,Training Awards - Postgraduates
BEIS,UKRI - BBSRC,17/01/2022,Training Awards - Postgraduates,FG - Accounts & Business Planning,University of Bath,99137668,6189.63,Training Awards - Postgraduates
BEIS,UKRI - BBSRC,17/01/2022,Training Awards - Postgraduates,FG - Accounts & Business Planning,University of Exeter,99137669,6189.63,Training Awards - Postgraduates
BEIS,UKRI - BBSRC,17/01/2022,Training Awards - Postgraduates,FG - Accounts & Business Planning,National Institute For Agricultural Botany (NIAB),99137670,6189.63,Training Awards - Postgraduates
BEIS,UKRI - BBSRC,17/01/2022,Training Awards - Postgraduates,FG - Accounts & Business Planning,Earlham Institute,99137671,6189.63,Training Awards - Postgraduates
BEIS,UKRI - BBSRC,17/01/2022,Training Awards - Postgraduates,FG - Accounts & Business Planning,Earlham Institute,99137672,6189.63,Training Awards - Postgraduates
BEIS,UKRI - BBSRC,17/01/2022,Training Awards - Postgraduates,FG - Accounts & Business Planning,John Innes Centre,99137673,6189.63,Training Awards - Postgraduates
BEIS,UKRI - BBSRC,17/01/2022,Training Awards - Postgraduates,FG - Accounts & Business Planning,University of York,99137674,6189.63,Training Awards - Postgraduates
BEIS,UKRI - BBSRC,17/01/2022,Training Awards - Postgraduates,FG - Accounts & Business Planning,University of East Anglia,99137675,6189.63,Training Awards - Postgraduates
BEIS,UKRI - BBSRC,17/01/2022,Training Awards - Postgraduates,FG - Accounts & Business Planning,University of Edinburgh,99137676,6189.63,Training Awards - Postgraduates
BEIS,UKRI - BBSRC,17/01/2022,Training Awards - Postgraduates,FG - Accounts & Business Planning,University of Edinburgh,99137677,6189.63,Training Awards - Postgraduates
BEIS,UKRI - BBSRC,17/01/2022,Training Awards - Postgraduates,FG - Accounts & Business Planning,University of Edinburgh,99137678,6189.63,Training Awards - Postgraduates
BEIS,UKRI - BBSRC,17/01/2022,Training Awards - Postgraduates,FG - Accounts & Business Planning,University of Nottingham,99137679,6189.63,Training Awards - Postgraduates
BEIS,UKRI - BBSRC,17/01/2022,Training Awards - Postgraduates,FG - Accounts & Business Planning,University of Aberdeen,99137680,9282.63,Training Awards - Postgraduates
BEIS,UKRI - BBSRC,17/01/2022,Training Awards - Postgraduates,FG - Accounts & Business Planning,University of Aberdeen,99137681,6189.63,Training Awards - Postgraduates
BEIS,UKRI - BBSRC,17/01/2022,Training Awards - Postgraduates,FG - Accounts & Business Planning,University of Warwick,99137682,8590.63,Training Awards - Postgraduates
BEIS,UKRI - BBSRC,17/01/2022,Training Awards - Postgraduates,FG - Accounts & Business Planning,University of Reading,99137683,10829.63,Training Awards - Postgraduates
BEIS,UKRI - BBSRC,17/01/2022,Training Awards - Postgraduates,FG - Accounts & Business Planning,University of Sheffield,99137684,6189.63,Training Awards - Postgraduates
BEIS,UKRI - BBSRC,17/01/2022,Training Awards - Postgraduates,FG - Accounts & Business Planning,Imperial College London,99137685,6689.63,Training Awards - Postgraduates
BEIS,UKRI - BBSRC,17/01/2022,Training Awards - Postgraduates,FG - Accounts & Business Planning,University of Bristol GRANT,99137686,6189.63,Training Awards - Postgraduates
BEIS,UKRI - BBSRC,17/01/2022,Training Awards - Postgraduates,FG - Accounts & Business Planning,University of Birmingham GRANT,99137687,10829.63,Training Awards - Postgraduates
BEIS,UKRI - BBSRC,17/01/2022,Training Awards - Postgraduates,FG - Accounts & Business Planning,University of Warwick,99137688,16243.63,Training Awards - Postgraduates
BEIS,UKRI - BBSRC,17/01/2022,Training Awards - Postgraduates,FG - Accounts & Business Planning,University of Glasgow,99137689,6189.63,Training Awards - Postgraduates
BEIS,UKRI - BBSRC,17/01/2022,Training Awards - Postgraduates,FG - Accounts & Business Planning,University of Nottingham,99137690,6189.63,Training Awards - Postgraduates
BEIS,UKRI - BBSRC,17/01/2022,Training Awards - Postgraduates,FG - Accounts & Business Planning,University of Cambridge,99137691,15490.89,Training Awards - Postgraduates
BEIS,UKRI - BBSRC,17/01/2022,Training Awards - Postgraduates,FG - Accounts & Business Planning,University of Leeds,99137692,6189.63,Training Awards - Postgraduates
BEIS,UKRI - BBSRC,17/01/2022,Training Awards - Postgraduates,FG - Accounts & Business Planning,The University of Manchester,99137693,3808.99,Training Awards - Postgraduates
BEIS,UKRI - BBSRC,17/01/2022,Training Awards - Postgraduates,FG - Accounts & Business Planning,Lancaster University,99137694,6189.63,Training Awards - Postgraduates
BEIS,UKRI - BBSRC,17/01/2022,Training Awards - Postgraduates,FG - Accounts & Business Planning,University of Reading,99137695,9282.63,Training Awards - Postgraduates
BEIS,UKRI - BBSRC,17/01/2022,Training Awards - Postgraduates,FG - Accounts & Business Planning,National Institute For Agricultural Botany (NIAB),99137696,6189.63,Training Awards - Postgraduates
BEIS,UKRI - BBSRC,17/01/2022,Training Awards - Postgraduates,FG - Accounts & Business Planning,National Institute For Agricultural Botany (NIAB),99137697,6189.63,Training Awards - Postgraduates
BEIS,UKRI - BBSRC,17/01/2022,Training Awards - Postgraduates,FG - Accounts & Business Planning,Sheffield Hallam University,99137698,16243.63,Training Awards - Postgraduates
BEIS,UKRI - BBSRC,17/01/2022,Training Awards - Postgraduates,FG - Accounts & Business Planning,National Institute For Agricultural Botany (NIAB),99137699,6189.63,Training Awards - Postgraduates
BEIS,UKRI - BBSRC,17/01/2022,Training Awards - Postgraduates,FG - Accounts & Business Planning,University of St Andrews,99137700,6189.63,Training Awards - Postgraduates
BEIS,UKRI - BBSRC,17/01/2022,Training Awards - Postgraduates,FG - Accounts & Business Planning,Robert Gordon University,99137701,10091.63,Training Awards - Postgraduates
BEIS,UKRI - BBSRC,17/01/2022,Training Awards - Postgraduates,FG - Accounts & Business Planning,Heriot Watt University,99137702,6189.63,Training Awards - Postgraduates
BEIS,UKRI - BBSRC,17/01/2022,Training Awards - Postgraduates,FG - Accounts & Business Planning,University of Sheffield,99137703,6189.63,Training Awards - Postgraduates
BEIS,UKRI - BBSRC,17/01/2022,Training Awards - Postgraduates,FG - Accounts & Business Planning,University of Strathclyde,99137704,6189.63,Training Awards - Postgraduates
BEIS,UKRI - BBSRC,17/01/2022,Training Awards - Postgraduates,FG - Accounts & Business Planning,University of Strathclyde,99137705,6189.63,Training Awards - Postgraduates
BEIS,UKRI - BBSRC,17/01/2022,Training Awards - Postgraduates,FG - Accounts & Business Planning,University of Surrey,99137706,6189.63,Training Awards - Postgraduates
BEIS,UKRI - BBSRC,17/01/2022,Training Awards - Postgraduates,FG - Accounts & Business Planning,University of York,99137707,6189.63,Training Awards - Postgraduates
BEIS,UKRI - BBSRC,17/01/2022,Training Awards - Postgraduates,FG - Accounts & Business Planning,University of Exeter,99137708,6189.63,Training Awards - Postgraduates
BEIS,UKRI - BBSRC,17/01/2022,Training Awards - Postgraduates,FG - Accounts & Business Planning,University of Birmingham GRANT,99137709,16244.63,Training Awards - Postgraduates
BEIS,UKRI - BBSRC,17/01/2022,Training Awards - Postgraduates,FG - Accounts & Business Planning,University of Leicester,99137710,6189.63,Training Awards - Postgraduates
BEIS,UKRI - BBSRC,17/01/2022,Training Awards - Postgraduates,FG - Accounts & Business Planning,The University of Manchester,99137711,6189.63,Training Awards - Postgraduates
BEIS,UKRI - BBSRC,17/01/2022,Training Awards - Postgraduates,FG - Accounts & Business Planning,University of Newcastle Upon Tyne,99137712,10091.63,Training Awards - Postgraduates
BEIS,UKRI - BBSRC,17/01/2022,Training Awards - Postgraduates,FG - Accounts & Business Planning,University of Nottingham,99137713,6189.63,Training Awards - Postgraduates
BEIS,UKRI - BBSRC,17/01/2022,Training Awards - Postgraduates,FG - Accounts & Business Planning,University of Oxford,99137714,6189.63,Training Awards - Postgraduates
BEIS,UKRI - BBSRC,17/01/2022,Training Awards - Postgraduates,FG - Accounts & Business Planning,University of Oxford,99137715,6189.63,Training Awards - Postgraduates
BEIS,UKRI - BBSRC,17/01/2022,Training Awards - Postgraduates,FG - Accounts & Business Planning,Cardiff University,99137716,6189.63,Training Awards - Postgraduates
BEIS,UKRI - BBSRC,17/01/2022,Training Awards - Postgraduates,FG - Accounts & Business Planning,Cardiff University,99137717,11216.63,Training Awards - Postgraduates
BEIS,UKRI - BBSRC,17/01/2022,Training Awards - Postgraduates,FG - Accounts & Business Planning,University of Kent,99137718,6189.63,Training Awards - Postgraduates
BEIS,UKRI - BBSRC,17/01/2022,Training Awards - Postgraduates,FG - Accounts & Business Planning,Imperial College London,99137719,11091.63,Training Awards - Postgraduates
BEIS,UKRI - BBSRC,17/01/2022,Training Awards - Postgraduates,FG - Accounts & Business Planning,University of Edinburgh,99137720,6189.63,Training Awards - Postgraduates
BEIS,UKRI - BBSRC,17/01/2022,Training Awards - Postgraduates,FG - Accounts & Business Planning,University of Edinburgh,99137721,6189.63,Training Awards - Postgraduates
BEIS,UKRI - BBSRC,17/01/2022,Training Awards - Postgraduates,FG - Accounts & Business Planning,University of Glasgow,99137722,6189.63,Training Awards - Postgraduates
BEIS,UKRI - BBSRC,17/01/2022,Training Awards - Postgraduates,FG - Accounts & Business Planning,University of Nottingham,99137723,13767.77,Training Awards - Postgraduates
BEIS,UKRI - BBSRC,17/01/2022,Training Awards - Postgraduates,FG - Accounts & Business Planning,University of Aberdeen,99137724,4126.41,Training Awards - Postgraduates
BEIS,UKRI - BBSRC,17/01/2022,Training Awards - Postgraduates,FG - Accounts & Business Planning,University of Liverpool,99137725,8189.63,Training Awards - Postgraduates
BEIS,UKRI - BBSRC,17/01/2022,Training Awards - Postgraduates,FG - Accounts & Business Planning,King's College London,99137726,12008.63,Training Awards - Postgraduates
BEIS,UKRI - BBSRC,17/01/2022,Training Awards - Postgraduates,FG - Accounts & Business Planning,University College London,99137727,12222.63,Training Awards - Postgraduates
BEIS,UKRI - BBSRC,17/01/2022,Training Awards - Postgraduates,FG - Accounts & Business Planning,Imperial College London,99137728,6689.63,Training Awards - Postgraduates
BEIS,UKRI - BBSRC,17/01/2022,Training Awards - Postgraduates,FG - Accounts & Business Planning,University of Southampton GRANT,99137729,6189.63,Training Awards - Postgraduates
BEIS,UKRI - BBSRC,17/01/2022,Training Awards - Postgraduates,FG - Accounts & Business Planning,University of Bristol GRANT,99137730,6189.63,Training Awards - Postgraduates
BEIS,UKRI - BBSRC,17/01/2022,Training Awards - Postgraduates,FG - Accounts & Business Planning,University of Sheffield,99137731,4733.24,Training Awards - Postgraduates
BEIS,UKRI - BBSRC,17/01/2022,Training Awards - Postgraduates,FG - Accounts & Business Planning,University of Leeds,99137732,6189.63,Training Awards - Postgraduates
BEIS,UKRI - BBSRC,17/01/2022,Training Awards - Postgraduates,FG - Accounts & Business Planning,University of Leeds,99137733,6189.63,Training Awards - Postgraduates
BEIS,UKRI - BBSRC,17/01/2022,Training Awards - Postgraduates,FG - Accounts & Business Planning,The University of Manchester,99137734,1315.35,Training Awards - Postgraduates
BEIS,UKRI - BBSRC,17/01/2022,Training Awards - Postgraduates,FG - Accounts & Business Planning,University of Edinburgh,99137735,3069.1,Training Awards - Postgraduates
BEIS,UKRI - BBSRC,17/01/2022,Training Awards - Postgraduates,FG - Accounts & Business Planning,National Institute For Agricultural Botany (NIAB),99137736,4988.17,Training Awards - Postgraduates
BEIS,UKRI - BBSRC,17/01/2022,Training Awards - Postgraduates,FG - Accounts & Business Planning,University of Edinburgh,99137737,3902,Training Awards - Postgraduates
BEIS,UKRI - BBSRC,17/01/2022,Training Awards - Postgraduates,FG - Accounts & Business Planning,University of Leeds,99137738,9833.92,Training Awards - Postgraduates
BEIS,UKRI - BBSRC,17/01/2022,Training Awards - Postgraduates,FG - Accounts & Business Planning,University of Southampton GRANT,99137739,6138.25,Training Awards - Postgraduates
BEIS,UKRI - BBSRC,17/01/2022,Training Awards - Postgraduates,FG - Accounts & Business Planning,Liverpool John Moores University,99137740,3682.95,Training Awards - Postgraduates
BEIS,UKRI - BBSRC,17/01/2022,Training Awards - Postgraduates,FG - Accounts & Business Planning,Lancaster University,99137741,6236.85,Training Awards - Postgraduates
BEIS,UKRI - BBSRC,17/01/2022,Training Awards - Postgraduates,FG - Accounts & Business Planning,King's College London,99137742,6669.5,Training Awards - Postgraduates
BEIS,UKRI - BBSRC,17/01/2022,Training Awards - Postgraduates,FG - Accounts & Business Planning,University of Exeter,99137743,3453.42,Training Awards - Postgraduates
BEIS,UKRI - BBSRC,17/01/2022,Training Awards - Postgraduates,FG - Accounts & Business Planning,Royal Veterinary College,99137744,3904.16,Training Awards - Postgraduates
BEIS,UKRI - BBSRC,17/01/2022,Training Awards - Postgraduates,FG - Accounts & Business Planning,University of Oxford,99137745,2344.98,Training Awards - Postgraduates
BEIS,UKRI - BBSRC,17/01/2022,Training Awards - Postgraduates,FG - Accounts & Business Planning,University of Oxford,99137745,515177.26,Training Awards - Postgraduates
BEIS,UKRI - BBSRC,17/01/2022,Training Awards - Postgraduates,FG - Accounts & Business Planning,John Innes Centre,99137746,5484.06,Training Awards - Postgraduates
BEIS,UKRI - BBSRC,17/01/2022,Training Awards - Postgraduates,FG - Accounts & Business Planning,John Innes Centre,99137746,506782.25,Training Awards - Postgraduates
BEIS,UKRI - BBSRC,17/01/2022,Training Awards - Postgraduates,FG - Accounts & Business Planning,The University of Manchester,99137747,310704.5,Training Awards - Postgraduates
BEIS,UKRI - BBSRC,17/01/2022,Training Awards - Postgraduates,FG - Accounts & Business Planning,University of Cambridge,99137748,703706.26,Training Awards - Postgraduates
BEIS,UKRI - BBSRC,17/01/2022,Training Awards - Postgraduates,FG - Accounts & Business Planning,University of Newcastle Upon Tyne,99137749,2621.79,Training Awards - Postgraduates
BEIS,UKRI - BBSRC,17/01/2022,Training Awards - Postgraduates,FG - Accounts & Business Planning,University of Newcastle Upon Tyne,99137749,188147.75,Training Awards - Postgraduates
BEIS,UKRI - BBSRC,17/01/2022,Training Awards - Postgraduates,FG - Accounts & Business Planning,Imperial College London,99137750,344113,Training Awards - Postgraduates
BEIS,UKRI - BBSRC,17/01/2022,Training Awards - Postgraduates,FG - Accounts & Business Planning,University of Warwick,99137751,1221.6,Training Awards - Postgraduates
BEIS,UKRI - BBSRC,17/01/2022,Training Awards - Postgraduates,FG - Accounts & Business Planning,University of Warwick,99137751,522937.26,Training Awards - Postgraduates
BEIS,UKRI - BBSRC,17/01/2022,Training Awards - Postgraduates,FG - Accounts & Business Planning,University of Leeds,99137752,478465.25,Training Awards - Postgraduates
BEIS,UKRI - BBSRC,17/01/2022,Training Awards - Postgraduates,FG - Accounts & Business Planning,University of Edinburgh,99137753,306957.99,Training Awards - Postgraduates
BEIS,UKRI - BBSRC,17/01/2022,Training Awards - Postgraduates,FG - Accounts & Business Planning,University College London,99137754,1260.3,Training Awards - Postgraduates
BEIS,UKRI - BBSRC,17/01/2022,Training Awards - Postgraduates,FG - Accounts & Business Planning,University College London,99137754,672879.51,Training Awards - Postgraduates
BEIS,UKRI - BBSRC,17/01/2022,Training Awards - Postgraduates,FG - Accounts & Business Planning,University of Bristol GRANT,99137755,318076,Training Awards - Postgraduates
BEIS,UKRI - BBSRC,17/01/2022,Training Awards - Postgraduates,FG - Accounts & Business Planning,University of Nottingham,99137756,2628,Training Awards - Postgraduates
BEIS,UKRI - BBSRC,17/01/2022,Training Awards - Postgraduates,FG - Accounts & Business Planning,University of Nottingham,99137756,510140.26,Training Awards - Postgraduates
BEIS,UKRI - BBSRC,17/01/2022,Training Awards - Postgraduates,FG - Accounts & Business Planning,National Institute For Agricultural Botany (NIAB),99137757,6189.63,Training Awards - Postgraduates
BEIS,UKRI - BBSRC,17/01/2022,Training Awards - Postgraduates,FG - Accounts & Business Planning,University of Newcastle Upon Tyne,99137758,7366.63,Training Awards - Postgraduates
BEIS,UKRI - BBSRC,17/01/2022,Training Awards - Postgraduates,FG - Accounts & Business Planning,University of Edinburgh,99137828,-4192.36,Training Awards - Postgraduates
BEIS,UKRI - BBSRC,17/01/2022,Training Awards - Postgraduates,FG - Accounts & Business Planning,Royal Veterinary College,99137829,24951.04,Training Awards - Postgraduates
BEIS,UKRI - BBSRC,17/01/2022,Training Awards - Postgraduates,FG - Accounts & Business Planning,University of Nottingham,99137830,6138.25,Training Awards - Postgraduates
BEIS,UKRI - BBSRC,17/01/2022,Training Awards - Postgraduates,FG - Accounts & Business Planning,The Pirbright Institute,99137831,6138.25,Training Awards - Postgraduates
BEIS,UKRI - BBSRC,17/01/2022,Training Awards - Postgraduates,FG - Accounts & Business Planning,University of Durham,99137832,4739.25,Training Awards - Postgraduates
BEIS,UKRI - BBSRC,17/01/2022,Training Awards - Postgraduates,FG - Accounts & Business Planning,University of Durham,99137833,-12181.08,Training Awards - Postgraduates
BEIS,UKRI - BBSRC,17/01/2022,Training Awards - Postgraduates,FG - Accounts & Business Planning,University of Leeds,99137834,5659.25,Training Awards - Postgraduates
BEIS,UKRI - BBSRC,17/01/2022,Training Awards - Postgraduates,FG - Accounts & Business Planning,University of Bristol GRANT,99137835,-13267.33,Training Awards - Postgraduates
BEIS,UKRI - BBSRC,17/01/2022,Training Awards - Postgraduates,FG - Accounts & Business Planning,University of Edinburgh,99137836,1412.29,Training Awards - Postgraduates
BEIS,UKRI - BBSRC,17/01/2022,Training Awards - Postgraduates,FG - Accounts & Business Planning,University College London,99137837,6638.25,Training Awards - Postgraduates
BEIS,UKRI - BBSRC,17/01/2022,Training Awards - Postgraduates,FG - Accounts & Business Planning,The Pirbright Institute,99137838,6138.25,Training Awards - Postgraduates
BEIS,UKRI - BBSRC,17/01/2022,Training Awards - Postgraduates,FG - Accounts & Business Planning,The University of Manchester,99137839,4738.43,Training Awards - Postgraduates
BEIS,UKRI - BBSRC,17/01/2022,Training Awards - Postgraduates,FG - Accounts & Business Planning,The University of Manchester,99137840,1713.5,Training Awards - Postgraduates
BEIS,UKRI - BBSRC,17/01/2022,Training Awards - Postgraduates,FG - Accounts & Business Planning,The University of Manchester,99137841,4155.97,Training Awards - Postgraduates
BEIS,UKRI - BBSRC,17/01/2022,Training Awards - Postgraduates,FG - Accounts & Business Planning,The University of Manchester,99137842,3197.51,Training Awards - Postgraduates
BEIS,UKRI - BBSRC,17/01/2022,Training Awards - Postgraduates,FG - Accounts & Business Planning,The University of Manchester,99137843,-2018.11,Training Awards - Postgraduates
BEIS,UKRI - BBSRC,17/01/2022,Training Awards - Postgraduates,FG - Accounts & Business Planning,University of Warwick,99137844,6137.51,Training Awards - Postgraduates
BEIS,UKRI - BBSRC,17/01/2022,Training Awards - Postgraduates,FG - Accounts & Business Planning,University of Sheffield,99137845,5594.14,Training Awards - Postgraduates
BEIS,UKRI - BBSRC,17/01/2022,Training Awards - Postgraduates,FG - Accounts & Business Planning,University of Sheffield,99137846,-13924.91,Training Awards - Postgraduates
BEIS,UKRI - BBSRC,17/01/2022,Training Awards - Postgraduates,FG - Accounts & Business Planning,University of Sheffield,99137847,6138.25,Training Awards - Postgraduates
BEIS,UKRI - BBSRC,17/01/2022,Training Awards - Postgraduates,FG - Accounts & Business Planning,Imperial College London,99137848,6603.77,Training Awards - Postgraduates
BEIS,UKRI - BBSRC,17/01/2022,Training Awards - Postgraduates,FG - Accounts & Business Planning,The University of Manchester,99137849,3859.99,Training Awards - Postgraduates
BEIS,UKRI - BBSRC,17/01/2022,Training Awards - Postgraduates,FG - Accounts & Business Planning,Imperial College London,99137850,4392.81,Training Awards - Postgraduates
BEIS,UKRI - BBSRC,17/01/2022,Training Awards - Postgraduates,FG - Accounts & Business Planning,University of Bristol GRANT,99137851,-6824.74,Training Awards - Postgraduates
BEIS,UKRI - BBSRC,17/01/2022,Training Awards - Postgraduates,FG - Accounts & Business Planning,University of Newcastle Upon Tyne,99137852,-15267.35,Training Awards - Postgraduates
BEIS,UKRI - BBSRC,17/01/2022,Training Awards - Postgraduates,FG - Accounts & Business Planning,University of Cambridge,99137853,6138.25,Training Awards - Postgraduates
BEIS,UKRI - BBSRC,17/01/2022,Training Awards - Postgraduates,FG - Accounts & Business Planning,University of Sheffield,99137854,5765.98,Training Awards - Postgraduates
BEIS,UKRI - BBSRC,17/01/2022,Training Awards - Postgraduates,FG - Accounts & Business Planning,University of Cambridge,99137855,5760.2,Training Awards - Postgraduates
BEIS,UKRI - BBSRC,17/01/2022,Training Awards - Postgraduates,FG - Accounts & Business Planning,University of Glasgow,99137856,5659.26,Training Awards - Postgraduates
BEIS,UKRI - BBSRC,17/01/2022,Training Awards - Postgraduates,FG - Accounts & Business Planning,University of Cambridge,99137857,-5063.28,Training Awards - Postgraduates
BEIS,UKRI - BBSRC,17/01/2022,Training Awards - Postgraduates,FG - Accounts & Business Planning,University of Southampton GRANT,99137858,6043.5,Training Awards - Postgraduates
BEIS,UKRI - BBSRC,17/01/2022,Training Awards - Postgraduates,FG - Accounts & Business Planning,Imperial College London,99137859,6181.81,Training Awards - Postgraduates
BEIS,UKRI - BBSRC,17/01/2022,Training Awards - Postgraduates,FG - Accounts & Business Planning,National Institute For Agricultural Botany (NIAB),99137860,6138.25,Training Awards - Postgraduates
BEIS,UKRI - BBSRC,17/01/2022,Training Awards - Postgraduates,FG - Accounts & Business Planning,The University of Manchester,99137861,2708.29,Training Awards - Postgraduates
BEIS,UKRI - BBSRC,17/01/2022,Training Awards - Postgraduates,FG - Accounts & Business Planning,The University of Manchester,99137862,1820.64,Training Awards - Postgraduates
BEIS,UKRI - BBSRC,17/01/2022,Training Awards - Postgraduates,FG - Accounts & Business Planning,Cardiff University,99137863,-715.37,Training Awards - Postgraduates
BEIS,UKRI - BBSRC,17/01/2022,Training Awards - Postgraduates,FG - Accounts & Business Planning,University of Leeds,99137864,6043.5,Training Awards - Postgraduates
BEIS,UKRI - BBSRC,17/01/2022,Training Awards - Postgraduates,FG - Accounts & Business Planning,Brunel University London,99137865,6065.97,Training Awards - Postgraduates
BEIS,UKRI - BBSRC,17/01/2022,Training Awards - Postgraduates,FG - Accounts & Business Planning,University of Reading,99137866,5287.55,Training Awards - Postgraduates
BEIS,UKRI - BBSRC,17/01/2022,Training Awards - Postgraduates,FG - Accounts & Business Planning,University of Sheffield,99137867,-12134.71,Training Awards - Postgraduates
BEIS,UKRI - BBSRC,17/01/2022,Training Awards - Postgraduates,FG - Accounts & Business Planning,University of Cambridge,99137868,6043.03,Training Awards - Postgraduates
BEIS,UKRI - BBSRC,17/01/2022,Training Awards - Postgraduates,FG - Accounts & Business Planning,University of Bristol GRANT,99137869,15350.47,Training Awards - Postgraduates
BEIS,UKRI - BBSRC,17/01/2022,Training Awards - Postgraduates,FG - Accounts & Business Planning,University of Exeter,99137870,12587.91,Training Awards - Postgraduates
BEIS,UKRI - BBSRC,17/01/2022,Training Awards - Postgraduates,FG - Accounts & Business Planning,University of Newcastle Upon Tyne,99137871,6043.5,Training Awards - Postgraduates
BEIS,UKRI - BBSRC,17/01/2022,Training Awards - Postgraduates,FG - Accounts & Business Planning,University of Bath,99137872,-3270.12,Training Awards - Postgraduates
BEIS,UKRI - BBSRC,17/01/2022,Training Awards - Postgraduates,FG - Accounts & Business Planning,University of Leicester,99137873,6041.51,Training Awards - Postgraduates
BEIS,UKRI - BBSRC,17/01/2022,Training Awards - Postgraduates,FG - Accounts & Business Planning,University of Southampton GRANT,99137874,636.29,Training Awards - Postgraduates
BEIS,UKRI - BBSRC,17/01/2022,Training Awards - Postgraduates,FG - Accounts & Business Planning,University of Edinburgh,99137875,-19255.5,Training Awards - Postgraduates
BEIS,UKRI - BBSRC,17/01/2022,Training Awards - Postgraduates,FG - Accounts & Business Planning,University of Cambridge,99137876,2012.18,Training Awards - Postgraduates
BEIS,UKRI - BBSRC,17/01/2022,Training Awards - Postgraduates,FG - Accounts & Business Planning,University of Leicester,99137877,6043.5,Training Awards - Postgraduates
BEIS,UKRI - BBSRC,17/01/2022,Training Awards - Postgraduates,FG - Accounts & Business Planning,University of Surrey,99137878,-1720.33,Training Awards - Postgraduates
BEIS,UKRI - BBSRC,17/01/2022,Training Awards - Postgraduates,FG - Accounts & Business Planning,University of Surrey,99137879,5180.1,Training Awards - Postgraduates
BEIS,UKRI - BBSRC,17/01/2022,Training Awards - Postgraduates,FG - Accounts & Business Planning,University of Oxford,99137880,5113.76,Training Awards - Postgraduates
BEIS,UKRI - BBSRC,17/01/2022,Training Awards - Postgraduates,FG - Accounts & Business Planning,The University of Manchester,99137881,4813.48,Training Awards - Postgraduates
BEIS,UKRI - BBSRC,17/01/2022,Training Awards - Postgraduates,FG - Accounts & Business Planning,University College London,99137882,5532.23,Training Awards - Postgraduates
BEIS,UKRI - BBSRC,17/01/2022,Training Awards - Postgraduates,FG - Accounts & Business Planning,University of Nottingham,99137883,13749.7,Training Awards - Postgraduates
BEIS,UKRI - BBSRC,17/01/2022,Training Awards - Postgraduates,FG - Accounts & Business Planning,University of Glasgow,99137884,1084.85,Training Awards - Postgraduates
BEIS,UKRI - BBSRC,17/01/2022,Training Awards - Postgraduates,FG - Accounts & Business Planning,University of Bath,99137885,-1228.81,Training Awards - Postgraduates
BEIS,UKRI - BBSRC,17/01/2022,Training Awards - Postgraduates,FG - Accounts & Business Planning,King's College London,99137886,983.42,Training Awards - Postgraduates
BEIS,UKRI - BBSRC,17/01/2022,Research Institutes - Capital Grants: Minor Works,JIC,John Innes Centre,99168875,10062,Research Institutes - Capital Grants: Minor Works
BEIS,UKRI - BBSRC,17/01/2022,Research Institutes - Capital Grants: Minor Works,JIC,John Innes Centre,99168876,60000,Research Institutes - Capital Grants: Minor Works
BEIS,UKRI - BBSRC,17/01/2022,Research Institutes - Capital Grants: Minor Works,JIC,John Innes Centre,99168877,28188,Research Institutes - Capital Grants: Minor Works
BEIS,UKRI - BBSRC,17/01/2022,Research Institutes - Capital Grants: Minor Works,JIC,John Innes Centre,99177473,23894.4,Research Institutes - Capital Grants: Minor Works
BEIS,UKRI - BBSRC,17/01/2022,Research Institutes - Capital Grants: Minor Works,JIC,John Innes Centre,99177478,30608.64,Research Institutes - Capital Grants: Minor Works
BEIS,UKRI - BBSRC,18/01/2022,Conferences & Seminars,Innovation and Skills Group CDSU,Calder Conference Ltd,99125430,1177.2,Conferences & Seminars
BEIS,UKRI - BBSRC,18/01/2022,Doctoral Training Accounts,FG - Accounts & Business Planning,UKRI - Engineering & Physical Sciences Research Council,99169509,25537.48,Doctoral Training Accounts
BEIS,UKRI - BBSRC,19/01/2022,International Subscriptions,CE - IRU,International Human Frontier Science Programme Organisation (HFSPO),99108997,421487,International Subscriptions
BEIS,UKRI - BBSRC,19/01/2022,Other Programme Costs,FG - Accounts & Business Planning,Rothamsted Research Ltd,99111413,50000,Other Programme Costs
BEIS,UKRI - BBSRC,19/01/2022,Research Grant Expenditure,Research: Strategic,Babraham Institute,99113459,154600,Research Grant Expenditure
BEIS,UKRI - BBSRC,19/01/2022,Research Institutes - Competitive Strategic Grant,Babraham Institute,Babraham Institute,99114431,352459.91,Research Institutes - Competitive Strategic Grant
BEIS,UKRI - BBSRC,19/01/2022,Research Institutes - Competitive Strategic Grant,Babraham Institute,Babraham Institute,99114431,48750.01,Research Institutes - Competitive Strategic Grant
BEIS,UKRI - BBSRC,19/01/2022,Research Institutes - Competitive Strategic Grant,Babraham Institute,Babraham Institute,99114431,395666.75,Research Institutes - Competitive Strategic Grant
BEIS,UKRI - BBSRC,19/01/2022,Research Institutes - Competitive Strategic Grant,Babraham Institute,Babraham Institute,99114431,5833.33,Research Institutes - Competitive Strategic Grant
BEIS,UKRI - BBSRC,19/01/2022,Research Grant Expenditure,Research: Strategic,Earlham Institute,99116434,193250,Research Grant Expenditure
BEIS,UKRI - BBSRC,19/01/2022,Research Grant Expenditure,Research: Strategic,John Innes Centre,99117425,193250,Research Grant Expenditure
BEIS,UKRI - BBSRC,19/01/2022,Research Institutes - Competitive Strategic Grant,IFR,Quadram Institute Bioscience,99118419,23624.41,Research Institutes - Competitive Strategic Grant
BEIS,UKRI - BBSRC,19/01/2022,Research Institutes - Competitive Strategic Grant,IFR,Quadram Institute Bioscience,99118419,347920.37,Research Institutes - Competitive Strategic Grant
BEIS,UKRI - BBSRC,19/01/2022,Research Institutes - Competitive Strategic Grant,IFR,Quadram Institute Bioscience,99118419,46083.32,Research Institutes - Competitive Strategic Grant
BEIS,UKRI - BBSRC,19/01/2022,Research Institutes - Competitive Strategic Grant,IFR,Quadram Institute Bioscience,99118419,261521.57,Research Institutes - Competitive Strategic Grant
BEIS,UKRI - BBSRC,19/01/2022,Research Institutes - Competitive Strategic Grant,IFR,Quadram Institute Bioscience,99118419,5833.33,Research Institutes - Competitive Strategic Grant
BEIS,UKRI - BBSRC,19/01/2022,Research Grant Expenditure,Research: Strategic,Quadram Institute Bioscience,99118420,193250,Research Grant Expenditure
BEIS,UKRI - BBSRC,19/01/2022,Research Institutes - Competitive Strategic Grant,JIC,John Innes Centre,99118427,21999.99,Research Institutes - Competitive Strategic Grant
BEIS,UKRI - BBSRC,19/01/2022,Research Institutes - Competitive Strategic Grant,JIC,John Innes Centre,99118427,511416.52,Research Institutes - Competitive Strategic Grant
BEIS,UKRI - BBSRC,19/01/2022,Research Institutes - Competitive Strategic Grant,JIC,John Innes Centre,99118427,65333.31,Research Institutes - Competitive Strategic Grant
BEIS,UKRI - BBSRC,19/01/2022,Research Institutes - Competitive Strategic Grant,JIC,John Innes Centre,99118427,501249.85,Research Institutes - Competitive Strategic Grant
BEIS,UKRI - BBSRC,19/01/2022,Research Institutes - Competitive Strategic Grant,JIC,John Innes Centre,99118427,7083.33,Research Institutes - Competitive Strategic Grant
BEIS,UKRI - BBSRC,19/01/2022,Research Institutes - Competitive Strategic Grant,TGAC,Earlham Institute,99118428,163172.03,Research Institutes - Competitive Strategic Grant
BEIS,UKRI - BBSRC,19/01/2022,Research Institutes - Competitive Strategic Grant,TGAC,Earlham Institute,99118428,81239.48,Research Institutes - Competitive Strategic Grant
BEIS,UKRI - BBSRC,19/01/2022,Research Institutes - Competitive Strategic Grant,TGAC,Earlham Institute,99118428,42166.7,Research Institutes - Competitive Strategic Grant
BEIS,UKRI - BBSRC,19/01/2022,Research Institutes - Competitive Strategic Grant,TGAC,Earlham Institute,99118428,33333.36,Research Institutes - Competitive Strategic Grant
BEIS,UKRI - BBSRC,19/01/2022,Research Institutes - Competitive Strategic Grant,TGAC,Earlham Institute,99118428,121088.76,Research Institutes - Competitive Strategic Grant
BEIS,UKRI - BBSRC,19/01/2022,Research Institutes - Competitive Strategic Grant,TGAC,Earlham Institute,99118428,2916.67,Research Institutes - Competitive Strategic Grant
BEIS,UKRI - BBSRC,19/01/2022,Research Grant Expenditure,Research: Strategic,Rothamsted Research Ltd,99121416,40200,Research Grant Expenditure
BEIS,UKRI - BBSRC,19/01/2022,Research Institutes - Competitive Strategic Grant,EBRC (Roslin),University of Edinburgh,99122159,277179.92,Research Institutes - Competitive Strategic Grant
BEIS,UKRI - BBSRC,19/01/2022,Research Institutes - Competitive Strategic Grant,EBRC (Roslin),University of Edinburgh,99122159,206087.5,Research Institutes - Competitive Strategic Grant
BEIS,UKRI - BBSRC,19/01/2022,Research Institutes - Competitive Strategic Grant,EBRC (Roslin),University of Edinburgh,99122159,5833.33,Research Institutes - Competitive Strategic Grant
BEIS,UKRI - BBSRC,19/01/2022,Research Grant Expenditure,Research: Strategic,University of Edinburgh,99122161,40684.21,Research Grant Expenditure
BEIS,UKRI - BBSRC,19/01/2022,Research Institutes - Competitive Strategic Grant,Rothamsted Research,Rothamsted Research Ltd,99122421,104789.47,Research Institutes - Competitive Strategic Grant
BEIS,UKRI - BBSRC,19/01/2022,Research Institutes - Competitive Strategic Grant,Rothamsted Research,Rothamsted Research Ltd,99122421,440495.03,Research Institutes - Competitive Strategic Grant
BEIS,UKRI - BBSRC,19/01/2022,Research Institutes - Competitive Strategic Grant,Rothamsted Research,Rothamsted Research Ltd,99122421,60909.5,Research Institutes - Competitive Strategic Grant
BEIS,UKRI - BBSRC,19/01/2022,Research Institutes - Competitive Strategic Grant,Rothamsted Research,Rothamsted Research Ltd,99122421,185554.21,Research Institutes - Competitive Strategic Grant
BEIS,UKRI - BBSRC,19/01/2022,Research Institutes - Competitive Strategic Grant,Rothamsted Research,Rothamsted Research Ltd,99122421,6671.79,Research Institutes - Competitive Strategic Grant
BEIS,UKRI - BBSRC,19/01/2022,Research Institutes - Competitive Strategic Grant,IBERS,Aberystwyth University,99165432,86360.99,Research Institutes - Competitive Strategic Grant
BEIS,UKRI - BBSRC,19/01/2022,Research Institutes - Competitive Strategic Grant,IBERS,Aberystwyth University,99165432,46980.67,Research Institutes - Competitive Strategic Grant
BEIS,UKRI - BBSRC,19/01/2022,Research Institutes - Competitive Strategic Grant,IBERS,Aberystwyth University,99165432,2916.67,Research Institutes - Competitive Strategic Grant
BEIS,UKRI - BBSRC,19/01/2022,Research Grant Expenditure,Research: Strategic,Aberystwyth University,99165434,193250,Research Grant Expenditure
BEIS,UKRI - BBSRC,19/01/2022,Research Grant Expenditure,Research: Strategic,The Pirbright Institute,99168669,193250,Research Grant Expenditure
BEIS,UKRI - BBSRC,19/01/2022,Research Institutes - Competitive Strategic Grant,Pirbright,The Pirbright Institute,99168712,817500.04,Research Institutes - Competitive Strategic Grant
BEIS,UKRI - BBSRC,19/01/2022,Research Institutes - Competitive Strategic Grant,Pirbright,The Pirbright Institute,99168712,231500.01,Research Institutes - Competitive Strategic Grant
BEIS,UKRI - BBSRC,19/01/2022,Research Institutes - Competitive Strategic Grant,Pirbright,The Pirbright Institute,99168712,33333.34,Research Institutes - Competitive Strategic Grant
BEIS,UKRI - BBSRC,19/01/2022,Research Institutes - Competitive Strategic Grant,Pirbright,The Pirbright Institute,99168712,201083.35,Research Institutes - Competitive Strategic Grant
BEIS,UKRI - BBSRC,19/01/2022,Research Institutes - Competitive Strategic Grant,Pirbright,The Pirbright Institute,99168712,4166.67,Research Institutes - Competitive Strategic Grant
BEIS,UKRI - BBSRC,19/01/2022,Research Institutes - Capital Grants: Minor Works,TGAC,Earlham Institute,99169340,77016,Research Institutes - Capital Grants: Minor Works
BEIS,UKRI - BBSRC,19/01/2022,Research Institutes - Capital Grants: Minor Works,Rothamsted Research,Rothamsted Research Ltd,99178001,34452.1,Research Institutes - Capital Grants: Minor Works
BEIS,UKRI - BBSRC,19/01/2022,Capital Grants & Equipment to HEIs,Funding Advanced Research Equipment - WCL 2020 Uplift,University of Edinburgh,99183480,33902.38,Capital Grants & Equipment to HEIs
BEIS,UKRI - BBSRC,21/01/2022,Research Institutes - Capital Grants: Minor Works,Babraham Institute,Babraham Institute,99182825,63920,Research Institutes - Capital Grants: Minor Works
BEIS,UKRI - BBSRC,21/01/2022,Conferences & Seminars,Innovation and Skills Group CDSU,Westminster Health Forum,99183011,252,Conferences & Seminars
BEIS,UKRI - BBSRC,21/01/2022,Research Institutes - Capital Grants: Minor Works,Rothamsted Research,Rothamsted Research Ltd,99183160,7170,Research Institutes - Capital Grants: Minor Works
BEIS,UKRI - BBSRC,21/01/2022,Other services,Science Group,King's College London,99183207,106000,Other services
BEIS,UKRI - BBSRC,21/01/2022,Research Grant Expenditure,SPF W1 EMBL EBI,EMBL (European Molecular Biology Laboratory),99183236,154345.5,Research Grant Expenditure
BEIS,UKRI - BBSRC,21/01/2022,Research Institutes - Capital Grants: Minor Works,Babraham Institute,Babraham Institute,99183590,150000,Research Institutes - Capital Grants: Minor Works
BEIS,UKRI - BBSRC,21/01/2022,Research Institutes - Capital Grants: Minor Works,Babraham Institute,Babraham Institute,99183605,82184.64,Research Institutes - Capital Grants: Minor Works
BEIS,UKRI - BBSRC,21/01/2022,Research Institutes - Capital Grants: Minor Works,JIC,John Innes Centre,99187435,45357.6,Research Institutes - Capital Grants: Minor Works
BEIS,UKRI - BBSRC,21/01/2022,Research Institutes - Capital Grants: Minor Works,JIC,John Innes Centre,99187450,67200,Research Institutes - Capital Grants: Minor Works
BEIS,UKRI - BBSRC,21/01/2022,Research Grant Expenditure,SPF W1 EMBL EBI,EMBL (European Molecular Biology Laboratory),99188685,2234.4,Research Grant Expenditure
BEIS,UKRI - BBSRC,21/01/2022,Research Grant Expenditure,Innovation and Skills Group,The Royal Society of Edinburgh,99188691,18051.66,Research Grant Expenditure
BEIS,UKRI - BBSRC,21/01/2022,Fees (Including College Members),Science Group - Delivery Function,Unspecified,99188696,161.16,Fees (Including College Members)
BEIS,UKRI - BBSRC,21/01/2022,Health & Safety (inc. Medicals & Opticians),Innovation and Skills Group CDSU,Unspecified,99190418,22,Health & Safety (inc. Medicals & Opticians)
BEIS,UKRI - BBSRC,21/01/2022,T&S UK - Other Charges,Science Group,Unspecified,99190419,2.19,T&S UK - Other Charges
BEIS,UKRI - BBSRC,21/01/2022,T&S UK - Public Transport,Science Group,Unspecified,99190420,10,T&S UK - Public Transport
BEIS,UKRI - BBSRC,21/01/2022,T&S UK - Subsistence,Science Group,Unspecified,99190420,40.7,T&S UK - Subsistence
BEIS,UKRI - BBSRC,21/01/2022,T&S UK - Subsistence,Science Group,Unspecified,99190420,13.85,T&S UK - Subsistence
BEIS,UKRI - BBSRC,21/01/2022,T&S UK - Subsistence,Science Group,Unspecified,99190420,15,T&S UK - Subsistence
BEIS,UKRI - BBSRC,24/01/2022,Research Institutes - Capital Grants: Minor Works,JIC,John Innes Centre,99136438,506755,Research Institutes - Capital Grants: Minor Works
BEIS,UKRI - BBSRC,24/01/2022,Research Institutes - Capital Grants: Minor Works,JIC,John Innes Centre,99153430,-506755,Research Institutes - Capital Grants: Minor Works
BEIS,UKRI - BBSRC,24/01/2022,Research Institutes - Capital Grants: Major Works,Pirbright,The Pirbright Institute,99183249,30348.06,Research Institutes - Capital Grants: Major Works
BEIS,UKRI - BBSRC,24/01/2022,Research Institutes - Capital Grants: Minor Works,Pirbright,The Pirbright Institute,99188692,160569.44,Research Institutes - Capital Grants: Minor Works
BEIS,UKRI - BBSRC,24/01/2022,Other Programme Costs,Innovation and Skills Group CDSU,NNFCC Ltd,99191472,5184,Other Programme Costs
BEIS,UKRI - BBSRC,24/01/2022,Research Grant Expenditure,SPF W1 EMBL EBI,EMBL (European Molecular Biology Laboratory),99193504,11804.24,Research Grant Expenditure
BEIS,UKRI - BBSRC,25/01/2022,Research Grant Expenditure,Research: Strategic,Babraham Institute,99106191,950000,Research Grant Expenditure
BEIS,UKRI - BBSRC,25/01/2022,Research Institutes - Capital Grants: Minor Works,JIC,John Innes Centre,99122186,506755,Research Institutes - Capital Grants: Minor Works
BEIS,UKRI - BBSRC,25/01/2022,Research Institutes - Competitive Strategic Grant,Rothamsted Research,Rothamsted Research Ltd,99158435,1870000,Research Institutes - Competitive Strategic Grant
BEIS,UKRI - BBSRC,25/01/2022,Research Institutes - Capital Grants: Minor Works,Pirbright,The Pirbright Institute,99168715,299624.02,Research Institutes - Capital Grants: Minor Works
BEIS,UKRI - BBSRC,25/01/2022,Research Institutes - Capital Grants: Minor Works,JIC,John Innes Centre,99168898,74435.68,Research Institutes - Capital Grants: Minor Works
BEIS,UKRI - BBSRC,25/01/2022,Research Institutes - Capital Grants: Minor Works,Babraham Institute,Babraham Institute,99168913,103970.6,Research Institutes - Capital Grants: Minor Works
BEIS,UKRI - BBSRC,25/01/2022,Research Institutes - Capital Grants: Minor Works,Babraham Institute,Babraham Institute,99169034,1341619,Research Institutes - Capital Grants: Minor Works
BEIS,UKRI - BBSRC,25/01/2022,Research Institutes - Capital Grants: Minor Works,JIC,John Innes Centre,99177493,101719,Research Institutes - Capital Grants: Minor Works
BEIS,UKRI - BBSRC,25/01/2022,Research Institutes - Capital Grants: Minor Works,IFR,Quadram Institute Bioscience,99177496,216610.16,Research Institutes - Capital Grants: Minor Works
BEIS,UKRI - BBSRC,25/01/2022,Research Institutes - Capital Grants: Minor Works,Rothamsted Research,Rothamsted Research Ltd,99178003,52019.16,Research Institutes - Capital Grants: Minor Works
BEIS,UKRI - BBSRC,25/01/2022,Research Institutes - Capital Grants: Minor Works,TGAC,Earlham Institute,99180415,151607.4,Research Institutes - Capital Grants: Minor Works
BEIS,UKRI - BBSRC,25/01/2022,Research Institutes - Capital Grants: Minor Works,Rothamsted Research,Rothamsted Research Ltd,99182692,454554,Research Institutes - Capital Grants: Minor Works
BEIS,UKRI - BBSRC,25/01/2022,Research Institutes - Capital Grants: Minor Works,Rothamsted Research,Rothamsted Research Ltd,99182696,387694.12,Research Institutes - Capital Grants: Minor Works
BEIS,UKRI - BBSRC,25/01/2022,Research Institutes - Capital Grants: Minor Works,Babraham Institute,Babraham Institute,99190522,609150.61,Research Institutes - Capital Grants: Minor Works
BEIS,UKRI - BBSRC,25/01/2022,Research Institutes - Capital Grants: Minor Works,Pirbright,The Pirbright Institute,99190527,306576.75,Research Institutes - Capital Grants: Minor Works
BEIS,UKRI - BBSRC,25/01/2022,Research Institutes - Capital Grants: Minor Works,Pirbright,The Pirbright Institute,99190528,214593.6,Research Institutes - Capital Grants: Minor Works
BEIS,UKRI - BBSRC,25/01/2022,Research Institutes - Capital Grants: Minor Works,Pirbright,The Pirbright Institute,99190529,1770921.19,Research Institutes - Capital Grants: Minor Works
BEIS,UKRI - BBSRC,27/01/2022,Research Institutes - Capital Grants: Minor Works,Rothamsted Research,Rothamsted Research Ltd,99206746,77743.5,Research Institutes - Capital Grants: Minor Works
BEIS,UKRI - BBSRC,31/01/2022,T&S UK - Other Charges,Innovation and Skills Group,Unspecified,99226567,284.98,T&S UK - Other Charges
BEIS,UKRI - UKRI,04/01/2022,Rates,UKRI - UKRO,Immobiliere SEM S.A.,99106163,13701.87,Rates
BEIS,UKRI - UKRI,04/01/2022,Printing & Stationery,UKRI - JBOS,Banner Group Ltd,99107012,4.68,Printing & Stationery
BEIS,UKRI - UKRI,04/01/2022,Unspecified,UKRI - JRS,Alexander Mann Solutions Ltd,99109656,1369.25,Contract Staff
BEIS,UKRI - UKRI,04/01/2022,Unspecified,UKRI People and Organisation Development,Alexander Mann Solutions Ltd,99109696,1008.1,Contract Staff
BEIS,UKRI - UKRI,04/01/2022,Unspecified,UKRI People and Organisation Development,Alexander Mann Solutions Ltd,99109698,1575.12,Contract Staff
BEIS,UKRI - UKRI,04/01/2022,Unspecified,UKRI - Digital Data and Technology Project Costs,Alexander Mann Solutions Ltd,99109700,4003.56,Contract Staff
BEIS,UKRI - UKRI,04/01/2022,Unspecified,UKRI - Information Governance,Alexander Mann Solutions Ltd,99109703,3024.29,Agency Staff
BEIS,UKRI - UKRI,04/01/2022,Unspecified,UKRI-CPO,Alexander Mann Solutions Ltd,99109705,661.55,Contract Staff
BEIS,UKRI - UKRI,04/01/2022,Unspecified,UKRI - Communications Web and Intranet Service,Alexander Mann Solutions Ltd,99109707,1908.86,Contract Staff
BEIS,UKRI - UKRI,04/01/2022,Unspecified,UKRI - Strategic Finance Business Partners,Alexander Mann Solutions Ltd,99109717,504.05,Agency Staff
BEIS,UKRI - UKRI,04/01/2022,T&S UK - Public Transport,UKRI - Public Engagement,Unspecified,99110566,2.65,T&S UK - Public Transport
BEIS,UKRI - UKRI,04/01/2022,T&S UK - Public Transport,UKRI - Public Engagement,Unspecified,99110566,22.96,T&S UK - Public Transport
BEIS,UKRI - UKRI,04/01/2022,T&S UK - Subsistence,UKRI - Public Engagement,Unspecified,99110566,6.75,T&S UK - Subsistence
BEIS,UKRI - UKRI,04/01/2022,T&S UK - Subsistence,UKRI - Public Engagement,Unspecified,99110566,50.37,T&S UK - Subsistence
BEIS,UKRI - UKRI,04/01/2022,T&S UK - Subsistence,UKRI - Public Engagement,Unspecified,99110566,16.05,T&S UK - Subsistence
BEIS,UKRI - UKRI,04/01/2022,UK - Professional Memberships & Subscriptions,UKRI - Strategic Finance Business Partners,Unspecified,99110579,311,UK - Professional Memberships & Subscriptions
BEIS,UKRI - UKRI,05/01/2022,Unspecified,UKRI - Digital Data and Technology Project Costs,LA International Computer Consultants Ltd,99069261,7185.6,Contract Staff
BEIS,UKRI - UKRI,05/01/2022,Library Services,UKRI - Digital Data and Technology Library Services,Jisc Services Ltd,99095449,22330.8,Library Services
BEIS,UKRI - UKRI,05/01/2022,Computer Hardware,UKRI Strategic HR Business Partners,Dell Corporation Ltd,99103775,1857.24,Computer Hardware
BEIS,UKRI - UKRI,05/01/2022,Computer Hardware,UKRI Strategic HR Business Partners,Dell Corporation Ltd,99104089,168.84,Computer Hardware
BEIS,UKRI - UKRI,05/01/2022,Mechanical & Electrical Maintenance,UKRI - JBOS,Enerveo Ltd,99107142,13093.44,Mechanical & Electrical Maintenance
BEIS,UKRI - UKRI,05/01/2022,Health & Safety (inc. Medicals & Opticians),UKRI - Health and Safety,AM Health & Safety Ltd,99107582,465,Health & Safety (inc. Medicals & Opticians)
BEIS,UKRI - Research England,05/01/2022,Unspecified,RE - Knowledge Exchange,Technopolis Ltd,99107842,13410,Legal & Professional Services
BEIS,UKRI - Research England,05/01/2022,Unspecified,RE - Operations and Private Office,LA International Computer Consultants Ltd,99108000,2993.4,Agency Staff
BEIS,UKRI - UKRI,05/01/2022,Unspecified,UKRI - Governance,Alexander Mann Solutions Ltd,99108040,2617.68,Agency Staff
BEIS,UKRI - UKRI,05/01/2022,Advertising & Promotion,UKRI - Communications Themes and Partnerships,CG Shortcuts Pty Ltd,99108497,800,Advertising & Promotion
BEIS,UKRI - UKRI,05/01/2022,Recruitment Costs,UKRI People and Organisation Development,Onefix Recruitment Ltd,99109704,654,Recruitment Costs
BEIS,UKRI - UKRI,05/01/2022,Unspecified,UKRI - Governance,Alexander Mann Solutions Ltd,99109711,2617.68,Agency Staff
BEIS,UKRI - UKRI,05/01/2022,Recruitment Costs,UKRI People and Organisation Development,Onefix Recruitment Ltd,99109724,750,Recruitment Costs
BEIS,UKRI - UKRI,05/01/2022,Recruitment Costs,UKRI People and Organisation Development,Onefix Recruitment Ltd,99109725,1254,Recruitment Costs
BEIS,UKRI - UKRI,05/01/2022,Recruitment Costs,UKRI People and Organisation Development,Onefix Recruitment Ltd,99109727,60,Recruitment Costs
BEIS,UKRI - UKRI,05/01/2022,Recruitment Costs,UKRI People and Organisation Development,Onefix Recruitment Ltd,99109728,60,Recruitment Costs
BEIS,UKRI - UKRI,05/01/2022,Recruitment Costs,UKRI People and Organisation Development,Onefix Recruitment Ltd,99109729,1254,Recruitment Costs
BEIS,UKRI - UKRI,05/01/2022,Recruitment Costs,UKRI People and Organisation Development,Onefix Recruitment Ltd,99109730,60,Recruitment Costs
BEIS,UKRI - UKRI,05/01/2022,Recruitment Costs,UKRI People and Organisation Development,Onefix Recruitment Ltd,99109732,60,Recruitment Costs
BEIS,UKRI - UKRI,05/01/2022,Recruitment Costs,UKRI People and Organisation Development,Onefix Recruitment Ltd,99109733,1734,Recruitment Costs
BEIS,UKRI - UKRI,05/01/2022,Recruitment Costs,UKRI People and Organisation Development,Onefix Recruitment Ltd,99109734,1554,Recruitment Costs
BEIS,UKRI - UKRI,05/01/2022,Recruitment Costs,UKRI People and Organisation Development,Onefix Recruitment Ltd,99109735,420,Recruitment Costs
BEIS,UKRI - UKRI,05/01/2022,Recruitment Costs,UKRI People and Organisation Development,Onefix Recruitment Ltd,99109737,420,Recruitment Costs
BEIS,UKRI - Research England,05/01/2022,Unspecified,RE - Operations and Private Office,LA International Computer Consultants Ltd,99110420,2993.4,Agency Staff
BEIS,UKRI - UKRI,05/01/2022,Staff Training,UKRI - Culture Leadership and Learning,Geoff Holmes T/A Geoff Holmes Counselling & Consultancy,99110464,90,Staff Training
BEIS,UKRI - UKRI,05/01/2022,Recruitment Costs,UKRI People and Organisation Development,Onefix Recruitment Ltd,99110548,450,Recruitment Costs
BEIS,UKRI - UKRI,05/01/2022,Unspecified,UKRI - Estates,Powis Hughes Ltd,99111735,1200,Legal & Professional Services
BEIS,UKRI - UKRI,05/01/2022,Rates,UKRI - Estates,Stamford Street Tenant Ltd T/A Weework,99111834,57754.8,Rates
BEIS,UKRI - UKRI,05/01/2022,Staff Training,UKRI - Procurement and Commercial,Oxford Procurement Training,99113416,610,Staff Training
BEIS,UKRI - UKRI,05/01/2022,Health & Safety (inc. Medicals & Opticians),UKRI - Culture Leadership and Learning,Swindon Occupational Medical Services Ltd,99114415,1050,Health & Safety (inc. Medicals & Opticians)
BEIS,UKRI - UKRI,05/01/2022,UK - Professional Memberships & Subscriptions,UKRI - Financial Accounting,Unspecified,99117455,400,UK - Professional Memberships & Subscriptions
BEIS,UKRI - UKRI,05/01/2022,T&S UK - Parking Tolls Congestion Charges,UKRI - Digital Data and Technology BAU Costs,Unspecified,99117459,15,T&S UK - Parking Tolls Congestion Charges
BEIS,UKRI - UKRI,05/01/2022,Health & Safety (inc. Medicals & Opticians),UKRI - Overseas Office USA,Unspecified,99117462,192.28,Health & Safety (inc. Medicals & Opticians)
BEIS,UKRI - UKRI,05/01/2022,T&S UK - Public Transport,UKRI - Overseas Office USA,Unspecified,99117462,100.47,T&S UK - Public Transport
BEIS,UKRI - UKRI,05/01/2022,T&S UK - Other Charges,UKRI - Corporate Services,Unspecified,99117463,143.14,T&S UK - Other Charges
BEIS,UKRI - EPSRC,05/01/2022,T&S UK - Other Charges,Programme Delivery Quantum Technology,Unspecified,99117466,100,T&S UK - Other Charges
BEIS,UKRI - UKRI,05/01/2022,T&S UK - Mileage,UKRI - Project Management Office,Unspecified,99117467,192.15,T&S UK - Mileage
BEIS,UKRI - UKRI,05/01/2022,T&S UK - Subsistence,UKRI - Strategy,Unspecified,99117468,19.5,T&S UK - Subsistence
BEIS,UKRI - UKRI,05/01/2022,T&S UK - Other Charges,UKRI - Funding Assurance,Unspecified,99117470,277.97,T&S UK - Other Charges
BEIS,UKRI - UKRI,06/01/2022,Unspecified,"UKRI People, Policies and Management",Alexander Mann Solutions Ltd,99075814,928.87,Agency Staff
BEIS,UKRI - UKRI,06/01/2022,Unspecified,UKRI - Digital Data and Technology Project Costs,LA International Computer Consultants Ltd,99078340,1832.7,Contract Staff
BEIS,UKRI - UKRI,06/01/2022,Unspecified,"UKRI People, Policies and Management",Alexander Mann Solutions Ltd,99080310,2322.18,Agency Staff
BEIS,UKRI - UKRI,06/01/2022,Unspecified,UKRI - Digital Data and Technology Project Costs,LA International Computer Consultants Ltd,99083376,1832.7,Contract Staff
BEIS,UKRI - UKRI,06/01/2022,Unspecified,"UKRI People, Policies and Management",Alexander Mann Solutions Ltd,99085172,2322.18,Agency Staff
BEIS,UKRI - UKRI,06/01/2022,Marketing & PR,UKRI - Digital Data and Technology Project Costs,Derek Holmes T/A Derek Holmes Media,99088644,1375,Marketing & PR
BEIS,UKRI - UKRI,06/01/2022,Marketing & PR,UKRI - Digital Data and Technology Project Costs,Derek Holmes T/A Derek Holmes Media,99088644,2512.5,Marketing & PR
BEIS,UKRI - UKRI,06/01/2022,Unspecified,UKRI - Digital Data and Technology Project Costs,LA International Computer Consultants Ltd,99089695,1832.7,Contract Staff
BEIS,UKRI - UKRI,06/01/2022,Unspecified,"UKRI People, Policies and Management",Alexander Mann Solutions Ltd,99092315,2322.18,Agency Staff
BEIS,UKRI - UKRI,06/01/2022,Unspecified,UKRI - Digital Data and Technology Project Costs,LA International Computer Consultants Ltd,99096084,2993.4,Contract Staff
BEIS,UKRI - UKRI,06/01/2022,Unspecified,UKRI - Digital Data and Technology Project Costs,LA International Computer Consultants Ltd,99098412,2993.4,Contract Staff
BEIS,UKRI - UKRI,06/01/2022,Unspecified,UKRI - Digital Data and Technology Project Costs,LA International Computer Consultants Ltd,99098415,2993.4,Contract Staff
BEIS,UKRI - UKRI,06/01/2022,Unspecified,UKRI - Digital Data and Technology Project Costs,LA International Computer Consultants Ltd,99098420,2993.4,Contract Staff
BEIS,UKRI - UKRI,06/01/2022,Unspecified,UKRI - Digital Data and Technology Project Costs,LA International Computer Consultants Ltd,99098426,2993.4,Contract Staff
BEIS,UKRI - UKRI,06/01/2022,Unspecified,"UKRI People, Policies and Management",Alexander Mann Solutions Ltd,99101647,2322.18,Agency Staff
BEIS,UKRI - UKRI,06/01/2022,Unspecified,UKRI - Digital Data and Technology Project Costs,LA International Computer Consultants Ltd,99102942,2993.4,Contract Staff
BEIS,UKRI - UKRI,06/01/2022,Unspecified,UKRI - Digital Data and Technology Project Costs,LA International Computer Consultants Ltd,99103314,3293.4,Contract Staff
BEIS,UKRI - UKRI,06/01/2022,Unspecified,UKRI - Digital Data and Technology Project Costs,LA International Computer Consultants Ltd,99103319,3293.4,Contract Staff
BEIS,UKRI - UKRI,06/01/2022,Unspecified,UKRI - Digital Data and Technology Project Costs,LA International Computer Consultants Ltd,99103358,1466.16,Contract Staff
BEIS,UKRI - UKRI,06/01/2022,Consumables,UKRI - JRS,Rapid Electronics Ltd,99104111,53.28,Consumables
BEIS,UKRI - UKRI,06/01/2022,Computer Software Licences,UKRI - Digital Data and Technology BAU Costs,Phoenix Software Ltd,99104268,1506.96,Computer Software Licences
BEIS,UKRI - UKRI,06/01/2022,Computer Software Licences,UKRI - Digital Data and Technology BAU Costs,Consent Kit Ltd,99104362,4320,Computer Software Licences
BEIS,UKRI - UKRI,06/01/2022,Advertising & Promotion,UKRI - Communications Content,Unspecified,99105767,610,Advertising & Promotion
BEIS,UKRI - UKRI,06/01/2022,Unspecified,"UKRI People, Policies and Management",Alexander Mann Solutions Ltd,99106622,2322.18,Agency Staff
BEIS,UKRI - UKRI,06/01/2022,Staff Training,UKRI - Culture Leadership and Learning,ASK Europe PLC,99106797,1267.2,Staff Training
BEIS,UKRI - UKRI,06/01/2022,Cleaning & Sterilisation,UKRI - Estates,Paperstone Ltd,99107220,80.7,Cleaning & Sterilisation
BEIS,UKRI - UKRI,06/01/2022,Computer Software Licences,UKRI - Digital Data and Technology Recharges,Minitab Ltd,99107380,3000,Computer Software Licences
BEIS,UKRI - Research England,06/01/2022,Unspecified,RE - Operations and Private Office,LA International Computer Consultants Ltd,99107977,3293.4,Agency Staff
BEIS,UKRI - UKRI,06/01/2022,Unspecified,UKRI - Digital Data and Technology Project Costs,LA International Computer Consultants Ltd,99107998,2993.4,Contract Staff
BEIS,UKRI - UKRI,06/01/2022,Unspecified,UKRI - Digital Data and Technology Project Costs,Alexander Mann Solutions Ltd,99108065,15839.14,Contract Staff
BEIS,UKRI - UKRI,06/01/2022,Unspecified,UKRI-SHARP,Alexander Mann Solutions Ltd,99108672,3449.18,Contract Staff
BEIS,UKRI - UKRI,06/01/2022,Unspecified,UKRI-SHARP,Alexander Mann Solutions Ltd,99108752,3079.62,Contract Staff
BEIS,UKRI - UKRI,06/01/2022,Consumables,UKRI - JRS,Antalis Ltd t/a Antalis Document Supplies,99109320,46.37,Consumables
BEIS,UKRI - UKRI,06/01/2022,Unspecified,UKRI - Procurement and Commercial,Alexander Mann Solutions Ltd,99109695,1002.24,Contract Staff
BEIS,UKRI - UKRI,06/01/2022,Unspecified,"UKRI People, Policies and Management",Alexander Mann Solutions Ltd,99109702,2322.18,Agency Staff
BEIS,UKRI - Research England,06/01/2022,Unspecified,RE - Operations and Private Office,LA International Computer Consultants Ltd,99110421,3293.4,Agency Staff
BEIS,UKRI - UKRI,06/01/2022,Unspecified,UKRI - Digital Data and Technology Project Costs,LA International Computer Consultants Ltd,99110422,3293.4,Contract Staff
BEIS,UKRI - UKRI,06/01/2022,Unspecified,UKRI - Digital Data and Technology Project Costs,LA International Computer Consultants Ltd,99110423,2993.4,Contract Staff
BEIS,UKRI - UKRI,06/01/2022,Staff Training,UKRI - Executive Group,Corinium Human Resource Management Ltd,99110620,810,Staff Training
BEIS,UKRI - Research England,06/01/2022,Unspecified,RE - Research Excellence Framework (REF),University of Sheffield,99110773,17160,Council & Committee Honoraria
BEIS,UKRI - UKRI,06/01/2022,Staff Training,UKRI - Communications Business Partners,ADSUM Consulting Ltd,99111406,1908.25,Staff Training
BEIS,UKRI - UKRI,06/01/2022,Computer Software Licences,UKRI - Digital Data and Technology BAU Costs,Phoenix Software Ltd,99111732,4902.85,Computer Software Licences
BEIS,UKRI - UKRI,06/01/2022,Computer Software Licences,UKRI - Digital Data and Technology BAU Costs,Phoenix Software Ltd,99111807,37.14,Computer Software Licences
BEIS,UKRI - UKRI,06/01/2022,Computer Software Licences,UKRI - Digital Data and Technology BAU Costs,Phoenix Software Ltd,99111816,7.08,Computer Software Licences
BEIS,UKRI - UKRI,06/01/2022,Computer Software Licences,UKRI - Digital Data and Technology BAU Costs,Phoenix Software Ltd,99112415,305.28,Computer Software Licences
BEIS,UKRI - UKRI,06/01/2022,Computer Software Licences,UKRI - Digital Data and Technology BAU Costs,Phoenix Software Ltd,99112418,571.68,Computer Software Licences
BEIS,UKRI - UKRI,06/01/2022,UK - Professional Memberships & Subscriptions,UKRI - BEIS ODA,Unspecified,99117457,306,UK - Professional Memberships & Subscriptions
BEIS,UKRI - UKRI,06/01/2022,UK - Professional Memberships & Subscriptions,UKRI - Assurance,Unspecified,99117460,22.2,UK - Professional Memberships & Subscriptions
BEIS,UKRI - UKRI,06/01/2022,UK - Professional Memberships & Subscriptions,UKRI - Strategic Finance Business Partners,Unspecified,99117464,306,UK - Professional Memberships & Subscriptions
BEIS,UKRI - UKRI,06/01/2022,UK - Professional Memberships & Subscriptions,UKRI - Assurance,Unspecified,99117469,400,UK - Professional Memberships & Subscriptions
BEIS,UKRI - UKRI,06/01/2022,Fees (Including College Members),UKRI - GCRF Delivery,Unspecified,99121444,1539,Fees (Including College Members)
BEIS,UKRI - UKRI,06/01/2022,Unspecified,"UKRI - Data Policy, Governance and MI",SQW Ltd,99121449,67477.2,Legal & Professional Services
BEIS,UKRI - UKRI,06/01/2022,Unspecified,UKRI - Culture Leadership and Learning,Unspecified,99121459,350,Legal & Professional Services
BEIS,UKRI - UKRI,06/01/2022,Recruitment Costs,UKRI People and Organisation Development,Onefix Recruitment Ltd,99121462,60,Recruitment Costs
BEIS,UKRI - UKRI,06/01/2022,Safety Materials & Equipment,UKRI - Estates,Soaks Bathrooms Ltd TA Sanitise Plus,99121497,66,Safety Materials & Equipment
BEIS,UKRI - UKRI,06/01/2022,Recruitment Costs,UKRI People and Organisation Development,Onefix Recruitment Ltd,99121507,2556,Recruitment Costs
BEIS,UKRI - Research England,06/01/2022,Unspecified,RE - Research Excellence Framework (REF),Northern Health Science Alliance Ltd,99122423,450,Council & Committee Honoraria
BEIS,UKRI - EPSRC,06/01/2022,Fees (Including College Members),SPF - Trustworthy Autonomous Systems OpEx,Unspecified,99123417,320,Fees (Including College Members)
BEIS,UKRI - EPSRC,06/01/2022,Fees (Including College Members),Governance and Planning,Unspecified,99123418,160,Fees (Including College Members)
BEIS,UKRI - EPSRC,06/01/2022,Fees (Including College Members),Business Improvement,Unspecified,99123419,320,Fees (Including College Members)
BEIS,UKRI - Research England,06/01/2022,Unspecified,RE - Research Excellence Framework (REF),Northern Health Science Alliance Ltd,99123421,450,Council & Committee Honoraria
BEIS,UKRI - UKRI,06/01/2022,Unspecified,UKRI - Digital Data and Technology Project Costs,LA International Computer Consultants Ltd,99123422,3293.4,Contract Staff
BEIS,UKRI - Research England,06/01/2022,Unspecified,RE - Research Excellence Framework (REF),Northern Health Science Alliance Ltd,99123435,450,Council & Committee Honoraria
